Ref,Fund Type,Dept,Cost Centre Description    ,Description    ,Creditor Name    ,GL Code Net Amount,Payment date        
1,Revenue,CCHD,Supporting People Programme,Grants to Voluntary Bodies,1625 Independent People,3658.32, 08-Nov-2010
2,Revenue,CCHD,Supporting People Programme,Grants to Voluntary Bodies,1625 Independent People,14490.12, 08-Nov-2010
3,Revenue,CCHD,Supported Living (S28a),Private & Voluntary Home Care,3 Trees Community Support Ltd,6172.56, 12-Nov-2010
4,Revenue,CCHD,Supported Living (S28a),Private & Voluntary Home Care,3 Trees Community Support Ltd,7860.95, 22-Nov-2010
5,Revenue,CCHD,PD Direct Payments North,Grants to Voluntary Bodies,A4E Management Limited,23434.93, 12-Nov-2010
6,Revenue,CCHD,Training - Adult Services,Training Expenses,Acorn Health & Safety Limited,475.50, 02-Nov-2010
7,Revenue,CCHD,Training - Adult Services,Training Expenses,Acorn Health & Safety Limited,764.00, 09-Nov-2010
8,Revenue,CCHD,Day Care - South,Private & Voluntary Day Care,Action for Blind People,2546.95, 22-Nov-2010
9,Revenue,CCHD,Day Care - North,Private & Voluntary Day Care,Action for Blind People,3178.90, 26-Nov-2010
10,Revenue,CCHD,Home Care Purch North,Commissioned Service (Inc SLA Grants),Agincare UK Limited,20929.58, 01-Nov-2010
11,Revenue,CCHD,Contracts & Commissioning Team,Other Small Contracts,Agincare UK Limited,4500.00, 05-Nov-2010
12,Revenue,CCHD,Contracts & Commissioning Team,Other Small Contracts,Agincare UK Limited,4500.00, 12-Nov-2010
13,Revenue,CCHD,Contracts & Commissioning Team,Other Small Contracts,Agincare UK Limited,3500.00, 19-Nov-2010
14,Revenue,CCHD,Contracts & Commissioning Team,Other Small Contracts,Agincare UK Limited,3500.00, 26-Nov-2010
15,Revenue,CCHD,Home Care Purch North,Other Small Contracts,Agincare UK Limited,799.96, 19-Nov-2010
16,Revenue,CCHD,Home Care Purch North,Other Small Contracts,Agincare UK Limited,799.96, 19-Nov-2010
17,Revenue,CCHD,Home Care Purch North,Other Small Contracts,Allied  Healthcare Group Limited,1727.04, 30-Nov-2010
18,Revenue,CCHD,Home Care Purch North,Other Small Contracts,Allied  Healthcare Group Limited,1727.04, 25-Nov-2010
19,Revenue,CCHD,Contracts & Commissioning Team,Other Small Contracts,Allied Healthcare Group,9500.00, 05-Nov-2010
20,Revenue,CCHD,Contracts & Commissioning Team,Other Small Contracts,Allied Healthcare Group,9500.00, 12-Nov-2010
21,Revenue,CCHD,Contracts & Commissioning Team,Other Small Contracts,Allied Healthcare Group,9500.00, 19-Nov-2010
22,Revenue,CCHD,Contracts & Commissioning Team,Other Small Contracts,Allied Healthcare Group,9500.00, 26-Nov-2010
23,Revenue,CCHD,Elderly MH non-res purchasing,Private & Voluntary Day Care,Alzheimers Society Bristol Branch,520.32, 29-Nov-2010
24,Revenue,CCHD,Elderly MH non-res purchasing,Private & Voluntary Day Care,Alzheimers Society Bristol Branch,845.52, 29-Nov-2010
25,Revenue,CCHD,Elderly MH non-res purchasing,Private & Voluntary Day Care,Alzheimers Society Bristol Branch,845.52, 29-Nov-2010
26,Revenue,CCHD,Elderly MH non-res purchasing,Private & Voluntary Day Care,Alzheimers Society Bristol Branch,780.48, 29-Nov-2010
27,Revenue,CCHD,Elderly MH non-res purchasing,Private & Voluntary Day Care,Alzheimers Society Bristol Branch,520.32, 29-Nov-2010
28,Revenue,CCHD,Section 117 Placements,Private & Voluntary Day Care,Alzheimers Society Bristol Branch,585.36, 29-Nov-2010
29,Revenue,CCHD,Private Sector Housing,Conference Expenses,APP User Group,540.00, 19-Nov-2010
30,Revenue,CCHD,Bed and Breakfast,Bed & Breakfast,Ashley Guest House Ltd,1862.00, 19-Nov-2010
31,Revenue,CCHD,Bed and Breakfast,Bed & Breakfast,Ashley Guest House Ltd,1694.00, 03-Nov-2010
32,Revenue,CCHD,Bed and Breakfast,Bed & Breakfast,Ashley Guest House Ltd,1958.00, 30-Nov-2010
33,Revenue,CCHD,Bed and Breakfast,Bed & Breakfast,Ashley Guest House Ltd,1790.00, 05-Nov-2010
34,Revenue,CCHD,Bed and Breakfast,Bed & Breakfast,Ashley Guest House Ltd,1862.00, 16-Nov-2010
35,Revenue,CCHD,Supporting People Programme,Grants to Voluntary Bodies,Aspects and Milestones Trust,1426.32, 30-Nov-2010
36,Revenue,CCHD,Supporting People Programme,Grants to Voluntary Bodies,Aspects and Milestones Trust,1737.24, 30-Nov-2010
37,Revenue,CCHD,Supporting People Programme,Grants to Voluntary Bodies,Aspects and Milestones Trust,2165.04, 30-Nov-2010
38,Revenue,CCHD,Supporting People Programme,Grants to Voluntary Bodies,Aspects and Milestones Trust,3996.40, 30-Nov-2010
39,Revenue,CCHD,Supporting People Programme,Grants to Voluntary Bodies,Aspects and Milestones Trust,1426.32, 04-Nov-2010
40,Revenue,CCHD,Supporting People Programme,Grants to Voluntary Bodies,Aspects and Milestones Trust,1737.24, 04-Nov-2010
41,Revenue,CCHD,Supporting People Programme,Grants to Voluntary Bodies,Aspects and Milestones Trust,2165.04, 04-Nov-2010
42,Revenue,CCHD,Supporting People Programme,Grants to Voluntary Bodies,Aspects and Milestones Trust,3996.40, 04-Nov-2010
43,Revenue,CCHD,Supporting People Programme,Grants to Voluntary Bodies,Aspects and Milestones Trust,1737.24, 30-Nov-2010
44,Revenue,CCHD,Supporting People Programme,Grants to Voluntary Bodies,Aspects and Milestones Trust,1671.50, 04-Nov-2010
45,Revenue,CCHD,Supporting People Programme,Grants to Voluntary Bodies,Aspects and Milestones Trust,868.62, 30-Nov-2010
46,Revenue,CCHD,Elderly MH Home Care,Other Small Contracts,Aspects and Milestones Trust,926.88, 26-Nov-2010
47,Revenue,CCHD,Elderly MH Home Care,Other Small Contracts,Aspects and Milestones Trust,1486.87, 26-Nov-2010
48,Revenue,CCHD,Younger MH non-res purchasing,Private & Voluntary Day Care,Aspects and Milestones Trust,920.07, 12-Nov-2010
49,Revenue,CCHD,Elderly MH non-res purchasing,Private & Voluntary Day Care,Aspects and Milestones Trust,893.76, 02-Nov-2010
50,Revenue,CCHD,Elderly MH non-res purchasing,Private & Voluntary Day Care,Aspects and Milestones Trust,510.72, 02-Nov-2010
51,Revenue,CCHD,Elderly MH non-res purchasing,Private & Voluntary Day Care,Aspects and Milestones Trust,697.32, 03-Nov-2010
52,Revenue,CCHD,Elderly MH non-res purchasing,Private & Voluntary Day Care,Aspects and Milestones Trust,755.43, 04-Nov-2010
53,Revenue,CCHD,Supported Living (S28a),Private & Voluntary Home Care,Aspects and Milestones Trust,9689.17, 04-Nov-2010
54,Revenue,CCHD,Supported Living (S28a),Private & Voluntary Home Care,Aspects and Milestones Trust,9689.17, 04-Nov-2010
55,Revenue,CCHD,Supported Living (S28a),Private & Voluntary Home Care,Aspects and Milestones Trust,9376.62, 04-Nov-2010
56,Revenue,CCHD,Elderly MH non-res purchasing,Private & Voluntary Day Care,Aspects and Milestones Trust,986.87, 12-Nov-2010
57,Revenue,CCHD,Elderly MH non-res purchasing,Private & Voluntary Day Care,Aspects and Milestones Trust,603.84, 12-Nov-2010
58,Revenue,CCHD,Section 117 Placements,Private & Voluntary Day Care,Aspects and Milestones Trust,1029.65, 22-Nov-2010
59,Revenue,CCHD,Elderly MH non-res purchasing,Private & Voluntary Day Care,Aspects and Milestones Trust,548.63, 12-Nov-2010
60,Revenue,CCHD,Younger MH non-res purchasing,Private & Voluntary Day Care,Aspects and Milestones Trust,640.76, 12-Nov-2010
61,Revenue,CCHD,Purchase of Non-Res Care - KD,Private & Voluntary Day Care,Aspects and Milestones Trust,1776.84, 16-Nov-2010
62,Revenue,CCHD,Supported Living - KH,Private & Voluntary Home Care,Aspects and Milestones Trust,863.16, 19-Nov-2010
63,Revenue,CCHD,Supported Living (S28a),Private & Voluntary Home Care,Aspects and Milestones Trust,955.21, 16-Nov-2010
64,Revenue,CCHD,Supported Living - PS,Private & Voluntary Home Care,Aspects and Milestones Trust,988.67, 19-Nov-2010
65,Revenue,CCHD,Supported Living - PS,Private & Voluntary Home Care,Aspects and Milestones Trust,1370.51, 19-Nov-2010
66,Revenue,CCHD,Supported Living - PS,Private & Voluntary Home Care,Aspects and Milestones Trust,1739.42, 19-Nov-2010
67,Revenue,CCHD,Supported Living - PS,Private & Voluntary Home Care,Aspects and Milestones Trust,681.58, 19-Nov-2010
68,Revenue,CCHD,Supported Living (S28a),Private & Voluntary Home Care,Aspects and Milestones Trust,1493.17, 19-Nov-2010
69,Revenue,CCHD,Supported Living - PS,Private & Voluntary Home Care,Aspects and Milestones Trust,964.81, 19-Nov-2010
70,Revenue,CCHD,Supported Living (S28a),Private & Voluntary Home Care,Aspects and Milestones Trust,5551.75, 19-Nov-2010
71,Revenue,CCHD,Supported Living (S28a),Private & Voluntary Home Care,Aspects and Milestones Trust,4441.40, 19-Nov-2010
72,Revenue,CCHD,Supported Living (S28a),Private & Voluntary Home Care,Aspects and Milestones Trust,4441.40, 19-Nov-2010
73,Revenue,CCHD,Supported Living - PS,Private & Voluntary Home Care,Aspects and Milestones Trust,828.09, 19-Nov-2010
74,Revenue,CCHD,Supported Living - PS,Private & Voluntary Home Care,Aspects and Milestones Trust,799.20, 19-Nov-2010
75,Revenue,CCHD,Supported Living (S28a),Private & Voluntary Home Care,Aspects and Milestones Trust,1301.95, 19-Nov-2010
76,Revenue,CCHD,Supported Living - KH,Private & Voluntary Home Care,Aspects and Milestones Trust,873.60, 24-Nov-2010
77,Revenue,CCHD,Supported Living (S28a),Private & Voluntary Home Care,Aspects and Milestones Trust,3262.16, 22-Nov-2010
78,Revenue,CCHD,Supported Living (S28a),Private & Voluntary Home Care,Aspects and Milestones Trust,9305.79, 24-Nov-2010
79,Revenue,CCHD,Purchase of Non-Res Care - PS,Private & Voluntary Day Care,Aspects and Milestones Trust,991.58, 19-Nov-2010
80,Revenue,CCHD,Purchase of Non-Res Care - PS,Private & Voluntary Day Care,Aspects and Milestones Trust,1220.97, 19-Nov-2010
81,Revenue,CCHD,Purchase of Non-Res Care - PS,Private & Voluntary Day Care,Aspects and Milestones Trust,1282.10, 19-Nov-2010
82,Revenue,CCHD,Purchase of Non-Res Care - PS,Private & Voluntary Day Care,Aspects and Milestones Trust,878.07, 19-Nov-2010
83,Revenue,CCHD,Purchase of Non-Res Care - PS,Private & Voluntary Day Care,Aspects and Milestones Trust,795.93, 19-Nov-2010
84,Revenue,CCHD,Purchase of Non-Res Care - PS,Private & Voluntary Day Care,Aspects and Milestones Trust,1036.03, 19-Nov-2010
85,Revenue,CCHD,Purchase of Non-Res Care - PS,Private & Voluntary Day Care,Aspects and Milestones Trust,1195.87, 19-Nov-2010
86,Revenue,CCHD,Purchase of Non-Res Care - PS,Private & Voluntary Day Care,Aspects and Milestones Trust,987.44, 19-Nov-2010
87,Revenue,CCHD,Purchase of Non-Res Care - KH,Private & Voluntary Day Care,Aspects and Milestones Trust,934.55, 24-Nov-2010
88,Revenue,CCHD,Supported Living (S28a),Private & Voluntary Home Care,Aspects and Milestones Trust,610.76, 22-Nov-2010
89,Revenue,CCHD,Supported Living (S28a),Private & Voluntary Home Care,Aspects and Milestones Trust,2610.88, 24-Nov-2010
90,Revenue,CCHD,Supported Living (S28a),Private & Voluntary Home Care,Aspects and Milestones Trust,3728.92, 24-Nov-2010
91,Revenue,CCHD,Supported Living (S28a),Private & Voluntary Home Care,Aspects and Milestones Trust,2425.50, 25-Nov-2010
92,Revenue,CCHD,Supported Living (S28a),Private & Voluntary Home Care,Aspects and Milestones Trust,3015.46, 26-Nov-2010
93,Revenue,CCHD,Supported Living (S28a),Private & Voluntary Home Care,Aspects and Milestones Trust,4110.50, 26-Nov-2010
94,Revenue,CCHD,Supported Living (S28a),Private & Voluntary Home Care,Aspects and Milestones Trust,4091.09, 26-Nov-2010
95,Revenue,CCHD,Supported Living (S28a),Private & Voluntary Home Care,Aspects and Milestones Trust,3385.00, 26-Nov-2010
96,Revenue,CCHD,Supported Living (S28a),Private & Voluntary Home Care,Aspects and Milestones Trust,2848.00, 26-Nov-2010
97,Revenue,CCHD,Supported Living (S28a),Private & Voluntary Home Care,Aspects and Milestones Trust,3120.00, 26-Nov-2010
98,Revenue,CCHD,Supported Living (S28a),Private & Voluntary Home Care,Aspects and Milestones Trust,2896.66, 26-Nov-2010
99,Revenue,CCHD,Supported Living (S28a),Private & Voluntary Home Care,Aspects and Milestones Trust,3630.35, 26-Nov-2010
100,Revenue,CCHD,Supported Living (S28a),Private & Voluntary Home Care,Aspects and Milestones Trust,2585.19, 26-Nov-2010
101,Revenue,CCHD,Supported Living (S28a),Private & Voluntary Home Care,Aspects and Milestones Trust,4221.00, 26-Nov-2010
102,Revenue,CCHD,Supported Living (S28a),Private & Voluntary Home Care,Aspects and Milestones Trust,2820.00, 26-Nov-2010
103,Revenue,CCHD,Supported Living (S28a),Private & Voluntary Home Care,Aspects and Milestones Trust,2932.00, 26-Nov-2010
104,Revenue,CCHD,Supported Living (S28a),Private & Voluntary Home Care,Aspects and Milestones Trust,3069.53, 26-Nov-2010
105,Revenue,CCHD,Supported Living (S28a),Private & Voluntary Home Care,Aspects and Milestones Trust,4006.55, 26-Nov-2010
106,Revenue,CCHD,Supported Living (S28a),Private & Voluntary Home Care,Aspects and Milestones Trust,2963.09, 26-Nov-2010
107,Revenue,CCHD,Supported Living (S28a),Private & Voluntary Home Care,Aspects and Milestones Trust,3217.00, 26-Nov-2010
108,Revenue,CCHD,Supported Living (S28a),Private & Voluntary Home Care,Aspects and Milestones Trust,3064.00, 26-Nov-2010
109,Revenue,CCHD,Supported Living (S28a),Private & Voluntary Home Care,Aspects and Milestones Trust,3448.00, 26-Nov-2010
110,Revenue,CCHD,Elderly MH non-res purchasing,Private & Voluntary Day Care,Aspects and Milestones Trust,1149.12, 02-Nov-2010
111,Revenue,CCHD,Purchase of Non-Res Care - KD,Private & Voluntary Day Care,Avon Autistic Foundation Limited,3290.64, 24-Nov-2010
112,Revenue,CCHD,Purchase of Non-Res Care - KD,Private & Voluntary Day Care,Avon Autistic Foundation Limited,2989.44, 24-Nov-2010
113,Revenue,CCHD,Purchase of RAC places,Other L.A.'s - General,Bath & North East Somerset Dist Council,2129.09, 12-Nov-2010
114,Revenue,CCHD,Purchase of RAC places,Other L.A.'s - General,Bath & North East Somerset Dist Council,20175.95, 12-Nov-2010
115,Revenue,CCHD,Training - Adult Services,Training Expenses,Bob Dawson,750.00, 16-Nov-2010
116,Revenue,CCHD,Home Care Purch South,Other Small Contracts,Bradley House Home Care Services,90.51, 10-Nov-2010
117,Revenue,CCHD,Home Care Purch North,Other Small Contracts,Bradley House Home Care Services,2754.09, 10-Nov-2010
118,Revenue,CCHD,Day Care - South,Private & Voluntary Day Care,Bradley House Home Care Services,60.34, 10-Nov-2010
119,Revenue,CCHD,Day Care - North,Private & Voluntary Day Care,Bradley House Home Care Services,241.36, 10-Nov-2010
120,Revenue,CCHD,Elderly MH Home Care,Other Small Contracts,Bradley House Home Care Services,206.88, 10-Nov-2010
121,Revenue,CCHD,Home Care Purch South,Other Small Contracts,Bradley House Home Care Services,90.51, 15-Nov-2010
122,Revenue,CCHD,Home Care Purch North,Other Small Contracts,Bradley House Home Care Services,2814.43, 15-Nov-2010
123,Revenue,CCHD,Day Care - South,Private & Voluntary Day Care,Bradley House Home Care Services,60.34, 15-Nov-2010
124,Revenue,CCHD,Day Care - North,Private & Voluntary Day Care,Bradley House Home Care Services,327.56, 15-Nov-2010
125,Revenue,CCHD,Elderly MH Home Care,Other Small Contracts,Bradley House Home Care Services,224.12, 15-Nov-2010
126,Revenue,CCHD,Home Care Purch South,Other Small Contracts,Bradley House Home Care Services,94.82, 24-Nov-2010
127,Revenue,CCHD,Home Care Purch North,Other Small Contracts,Bradley House Home Care Services,2848.91, 24-Nov-2010
128,Revenue,CCHD,Day Care - South,Private & Voluntary Day Care,Bradley House Home Care Services,56.03, 24-Nov-2010
129,Revenue,CCHD,Day Care - North,Private & Voluntary Day Care,Bradley House Home Care Services,271.53, 24-Nov-2010
130,Revenue,CCHD,Elderly MH Home Care,Other Small Contracts,Bradley House Home Care Services,224.12, 24-Nov-2010
131,Revenue,CCHD,Home Care Purch South,Other Small Contracts,Bradley House Home Care Services,86.20, 30-Nov-2010
132,Revenue,CCHD,Home Care Purch North,Other Small Contracts,Bradley House Home Care Services,2779.95, 30-Nov-2010
133,Revenue,CCHD,Day Care - South,Private & Voluntary Day Care,Bradley House Home Care Services,51.72, 30-Nov-2010
134,Revenue,CCHD,Day Care - North,Private & Voluntary Day Care,Bradley House Home Care Services,318.94, 30-Nov-2010
135,Revenue,CCHD,Elderly MH Home Care,Other Small Contracts,Bradley House Home Care Services,219.81, 30-Nov-2010
136,Revenue,CCHD,Home Care Purch South,Other Small Contracts,Bradley House Home Care Services,90.51, 09-Nov-2010
137,Revenue,CCHD,Home Care Purch North,Other Small Contracts,Bradley House Home Care Services,2805.81, 09-Nov-2010
138,Revenue,CCHD,Day Care - South,Private & Voluntary Day Care,Bradley House Home Care Services,60.34, 09-Nov-2010
139,Revenue,CCHD,Day Care - North,Private & Voluntary Day Care,Bradley House Home Care Services,323.25, 09-Nov-2010
140,Revenue,CCHD,Elderly MH Home Care,Other Small Contracts,Bradley House Home Care Services,202.57, 09-Nov-2010
141,Revenue,CCHD,Woodleaze,"Provisions (Food, etc)",Brake Bros,630.58, 03-Nov-2010
142,Revenue,CCHD,Woodleaze,"Provisions (Food, etc)",Brake Bros,941.43, 24-Nov-2010
143,Revenue,CCHD,Woodleaze,"Provisions (Food, etc)",Brake Bros,516.69, 22-Nov-2010
144,Revenue,CCHD,Woodleaze,"Provisions (Food, etc)",Brake Bros,615.51, 22-Nov-2010
145,Revenue,CCHD,Adult Placement Scheme,Adults - Family Support,Individual,1211.38, 23-Nov-2010
146,Revenue,CCHD,Private Sector Housing,Prop.Serv. General Repairs,Bristol City Council,625.00, 30-Nov-2010
147,Revenue,CCHD,Purchase of RAC places,Other L.A.'s - General,Bristol City Council,10982.67, 22-Nov-2010
148,Revenue,CCHD,Purchase of RAC places,Other L.A.'s - General,Bristol City Council,8517.48, 22-Nov-2010
149,Revenue,CCHD,Purchase of RAC places,Other L.A.'s - General,Bristol City Council,6335.48, 22-Nov-2010
150,Revenue,CCHD,Supporting People Programme,Grants to Voluntary Bodies,Bristol Houses,9639.60, 08-Nov-2010
151,Revenue,CCHD,Supported Living - KD,Private & Voluntary Home Care,Bristol Houses UK Ltd,1264.81, 03-Nov-2010
152,Revenue,CCHD,Supported Living - KD,Private & Voluntary Home Care,Bristol Houses UK Ltd,1029.00, 03-Nov-2010
153,Revenue,CCHD,Supported Living - KD,Private & Voluntary Home Care,Bristol Houses UK Ltd,1732.15, 03-Nov-2010
154,Revenue,CCHD,Day Care - North,Private & Voluntary Day Care,Bristol Houses UK Ltd,1487.44, 12-Nov-2010
155,Revenue,CCHD,Supported Living - KD,Private & Voluntary Home Care,Bristol Houses UK Ltd,1003.28, 03-Nov-2010
156,Revenue,CCHD,Bed and Breakfast,Bed & Breakfast,Bristol Housing & Support Limited,768.00, 16-Nov-2010
157,Revenue,CCHD,Bed and Breakfast,Bed & Breakfast,Bristol Housing & Support Limited,692.00, 16-Nov-2010
158,Revenue,CCHD,Bed and Breakfast,Bed & Breakfast,Bristol Housing & Support Limited,644.00, 16-Nov-2010
159,Revenue,CCHD,Bed and Breakfast,Bed & Breakfast,Bristol Housing & Support Limited,524.00, 16-Nov-2010
160,Revenue,CCHD,Bed and Breakfast,Bed & Breakfast,Bristol Housing & Support Limited,596.00, 30-Nov-2010
161,Revenue,CCHD,Commissioning,Commissioned Service (Inc SLA Grants),Bristol PCT,2699.00, 26-Nov-2010
162,Revenue,CCHD,Commissioning,Commissioned Service (Inc SLA Grants),Bristol PCT,2892.00, 26-Nov-2010
163,Revenue,CCHD,Commissioning,Commissioned Service (Inc SLA Grants),Bristol PCT,1005.50, 26-Nov-2010
164,Revenue,CCHD,Emersons Green Offices,Water Charges,Bristol Wessex Billing Services Limited,946.15, 04-Nov-2010
165,Revenue,CCHD,Charlton,Water Charges,Bristol Wessex Billing Services Limited,2844.15, 08-Nov-2010
166,Revenue,CCHD,Kerr House,Water Charges,Bristol Wessex Billing Services Limited,5651.02, 03-Nov-2010
167,Revenue,CCHD,Kerr House NRC,Water Charges,Bristol Wessex Billing Services Limited,997.24, 03-Nov-2010
168,Revenue,CCHD,Hydrotherapy,Water Charges,Bristol Wessex Billing Services Limited,837.11, 05-Nov-2010
169,Revenue,CCHD,Supporting People Programme,Grants to Voluntary Bodies,Bromford Housing Group,14293.20, 08-Nov-2010
170,Revenue,CCHD,Elderly Purchasing - South,Nursing Homes,Brunelcare,12786.77, 22-Nov-2010
171,Revenue,CCHD,Elderly Purchasing - North,Nursing Homes,Brunelcare,3162.75, 22-Nov-2010
172,Revenue,CCHD,Frenchay Hospital Purchasing,Nursing Homes,Brunelcare,6139.95, 22-Nov-2010
173,Revenue,CCHD,South Glos Users in South Glos Homes,Nursing Homes,Brunelcare,11071.87, 22-Nov-2010
174,Revenue,CCHD,Elderly Mental Health,Nursing Homes,Brunelcare,13858.60, 22-Nov-2010
175,Revenue,CCHD,Section 117 Placements,Nursing Homes,Brunelcare,1763.79, 22-Nov-2010
176,Revenue,CCHD,Contracts & Commissioning Team,Other Small Contracts,Brunelcare,13500.00, 05-Nov-2010
177,Revenue,CCHD,Contracts & Commissioning Team,Other Small Contracts,Brunelcare,13500.00, 12-Nov-2010
178,Revenue,CCHD,Contracts & Commissioning Team,Other Small Contracts,Brunelcare,13500.00, 19-Nov-2010
179,Revenue,CCHD,Contracts & Commissioning Team,Other Small Contracts,Brunelcare,13500.00, 26-Nov-2010
180,Revenue,CCHD,Tenancy Start Up Scheme,Other Supplies & Services,Brunt & Fussell,1487.50, 19-Nov-2010
181,Revenue,CCHD,Information Systems - Software,Computer Equipment - Purchase,BT Global Services Solutions,759.31, 22-Nov-2010
182,Revenue,CCHD,Information Systems - Software,Computer Equipment - Purchase,BT Global Services Solutions,759.31, 15-Nov-2010
183,Revenue,CCHD,Woodleaze,Cleaning & Domestic Supplies,Bunzl Cleaning & Hygiene Supplies,519.95, 03-Nov-2010
184,Revenue,CCHD,Supported Living - KD,Private & Voluntary Home Care,Camphill Communities Thornbury Limited,1907.92, 24-Nov-2010
185,Revenue,CCHD,Supported Living - KD,Private & Voluntary Home Care,Camphill Communities Thornbury Limited,1754.00, 24-Nov-2010
186,Revenue,CCHD,Supported Living - KD,Private & Voluntary Home Care,Camphill Communities Thornbury Limited,1640.56, 24-Nov-2010
187,Revenue,CCHD,Supported Living - KD,Private & Voluntary Home Care,Camphill Communities Thornbury Limited,1640.56, 24-Nov-2010
188,Revenue,CCHD,Supported Living - KD,Private & Voluntary Home Care,Camphill Communities Thornbury Limited,1887.68, 24-Nov-2010
189,Revenue,CCHD,Supported Living - KD,Private & Voluntary Home Care,Camphill Communities Thornbury Limited,1640.56, 24-Nov-2010
190,Revenue,CCHD,Supported Living - PS,Private & Voluntary Home Care,Camphill Village Trust,1449.11, 16-Nov-2010
191,Revenue,CCHD,Charlton,Refuse Collection Charges,Cannon Hygiene Limited,557.43, 10-Nov-2010
192,Revenue,CCHD,Woodleaze,Refuse Collection Charges,Cannon Hygiene Limited,480.66, 02-Nov-2010
193,Revenue,CCHD,Purchase of Non-Res Care - KD,Private & Voluntary Day Care,Care Horizons Limited,578.87, 23-Nov-2010
194,Revenue,CCHD,Supported Living - KD,Private & Voluntary Home Care,Care Horizons Limited,5234.74, 23-Nov-2010
195,Revenue,CCHD,Supported Living - KD,Private & Voluntary Home Care,Care Horizons Limited,1614.70, 23-Nov-2010
196,Revenue,CCHD,Brandon Day Care,Private & Voluntary Day Care,Care Horizons Limited,1322.79, 29-Nov-2010
197,Revenue,CCHD,Home Care - General,Other Supplies & Services,Care monitoring 2000 Ltd,39600.00, 11-Nov-2010
198,Revenue,CCHD,Contracts & Commissioning Team,Other Small Contracts,Care UK Homecare,20000.00, 05-Nov-2010
199,Revenue,CCHD,Contracts & Commissioning Team,Other Small Contracts,Care UK Homecare,20000.00, 12-Nov-2010
200,Revenue,CCHD,Contracts & Commissioning Team,Other Small Contracts,Care UK Homecare,20000.00, 19-Nov-2010
201,Revenue,CCHD,Contracts & Commissioning Team,Other Small Contracts,Care UK Homecare,20000.00, 26-Nov-2010
202,Revenue,CCHD,Contracts & Commissioning Team,Other Small Contracts,Care UK Homecare,255000.00, 18-Nov-2010
203,Revenue,CCHD,Home Care Purch North,Other Small Contracts,Careforce Group,7726.09, 24-Nov-2010
204,Revenue,CCHD,Home Care Purch North,Other Small Contracts,Careforce Group,7263.33, 24-Nov-2010
205,Revenue,CCHD,Home Care Purch North,Other Small Contracts,Careforce Group,7421.78, 29-Nov-2010
206,Revenue,CCHD,Contracts & Commissioning Team,Other Small Contracts,Carewatch (Bristol),2500.00, 05-Nov-2010
207,Revenue,CCHD,Contracts & Commissioning Team,Other Small Contracts,Carewatch (Bristol),2500.00, 15-Nov-2010
208,Revenue,CCHD,Contracts & Commissioning Team,Other Small Contracts,Carewatch (Bristol),2500.00, 19-Nov-2010
209,Revenue,CCHD,Contracts & Commissioning Team,Other Small Contracts,Carewatch (Bristol),2500.00, 26-Nov-2010
210,Revenue,CCHD,Home Care Purch North,Other Small Contracts,Carewatch (Bristol),672.30, 03-Nov-2010
211,Revenue,CCHD,Home Care Purch North,Other Small Contracts,Carewatch (Bristol),911.25, 03-Nov-2010
212,Revenue,CCHD,Home Care Purch North,Other Small Contracts,Carewatch (Bristol),882.90, 03-Nov-2010
213,Revenue,CCHD,Detained,Nursing Homes,Castlebeck Care (Teesdale) Limited,16166.66, 12-Nov-2010
214,Revenue,CCHD,Detained,Nursing Homes,Castlebeck Care (Teesdale) Limited,16218.98, 22-Nov-2010
215,Revenue,CCHD,Detained,Nursing Homes,Castlebeck Care (Teesdale) Limited,16705.55, 22-Nov-2010
216,Revenue,CCHD,Preventative Technology Grant,Other Supplies & Services,CCP,68000.00, 24-Nov-2010
217,Revenue,CCHD,Home Care Purch South,Other Small Contracts,Chrysalis Community Care Group Ltd,357.00, 09-Nov-2010
218,Revenue,CCHD,Home Care Purch North,Other Small Contracts,Chrysalis Community Care Group Ltd,1727.20, 09-Nov-2010
219,Revenue,CCHD,Day Care - North,Private & Voluntary Day Care,Chrysalis Community Care Group Ltd,125.80, 09-Nov-2010
220,Revenue,CCHD,Elderly MH Home Care,Other Small Contracts,Chrysalis Community Care Group Ltd,217.60, 09-Nov-2010
221,Revenue,CCHD,Elderly MH non-res purchasing,Private & Voluntary Day Care,Chrysalis Community Care Group Ltd,34.00, 09-Nov-2010
222,Revenue,CCHD,Home Care Purch South,Other Small Contracts,Chrysalis Community Care Group Ltd,370.60, 30-Nov-2010
223,Revenue,CCHD,Home Care Purch North,Other Small Contracts,Chrysalis Community Care Group Ltd,2074.00, 30-Nov-2010
224,Revenue,CCHD,Day Care - North,Private & Voluntary Day Care,Chrysalis Community Care Group Ltd,136.00, 30-Nov-2010
225,Revenue,CCHD,Elderly MH Home Care,Other Small Contracts,Chrysalis Community Care Group Ltd,170.00, 30-Nov-2010
226,Revenue,CCHD,Elderly MH non-res purchasing,Private & Voluntary Day Care,Chrysalis Community Care Group Ltd,34.00, 30-Nov-2010
227,Revenue,CCHD,Home Care Purch South,Other Small Contracts,Chrysalis Community Care Group Ltd,367.20, 04-Nov-2010
228,Revenue,CCHD,Home Care Purch North,Other Small Contracts,Chrysalis Community Care Group Ltd,1523.20, 04-Nov-2010
229,Revenue,CCHD,Day Care - North,Private & Voluntary Day Care,Chrysalis Community Care Group Ltd,180.20, 04-Nov-2010
230,Revenue,CCHD,Elderly MH Home Care,Other Small Contracts,Chrysalis Community Care Group Ltd,193.80, 04-Nov-2010
231,Revenue,CCHD,Elderly MH non-res purchasing,Private & Voluntary Day Care,Chrysalis Community Care Group Ltd,34.00, 04-Nov-2010
232,Revenue,CCHD,Home Care Purch South,Other Small Contracts,Chrysalis Community Care Group Ltd,370.60, 26-Nov-2010
233,Revenue,CCHD,Home Care Purch North,Other Small Contracts,Chrysalis Community Care Group Ltd,2036.60, 26-Nov-2010
234,Revenue,CCHD,Day Care - North,Private & Voluntary Day Care,Chrysalis Community Care Group Ltd,54.40, 26-Nov-2010
235,Revenue,CCHD,Elderly MH Home Care,Other Small Contracts,Chrysalis Community Care Group Ltd,156.40, 26-Nov-2010
236,Revenue,CCHD,Elderly MH non-res purchasing,Private & Voluntary Day Care,Chrysalis Community Care Group Ltd,34.00, 26-Nov-2010
237,Revenue,CCHD,Home Care Purch South,Other Small Contracts,Chrysalis Community Care Group Ltd,374.00, 23-Nov-2010
238,Revenue,CCHD,Home Care Purch North,Other Small Contracts,Chrysalis Community Care Group Ltd,1628.60, 23-Nov-2010
239,Revenue,CCHD,Day Care - North,Private & Voluntary Day Care,Chrysalis Community Care Group Ltd,119.00, 23-Nov-2010
240,Revenue,CCHD,Elderly MH Home Care,Other Small Contracts,Chrysalis Community Care Group Ltd,173.40, 23-Nov-2010
241,Revenue,CCHD,Elderly MH non-res purchasing,Private & Voluntary Day Care,Chrysalis Community Care Group Ltd,34.00, 23-Nov-2010
242,Revenue,CCHD,Home Care Purch South,Other Small Contracts,Chrysalis Community Care Group Ltd,380.80, 23-Nov-2010
243,Revenue,CCHD,Home Care Purch North,Other Small Contracts,Chrysalis Community Care Group Ltd,1679.60, 23-Nov-2010
244,Revenue,CCHD,Day Care - North,Private & Voluntary Day Care,Chrysalis Community Care Group Ltd,108.80, 23-Nov-2010
245,Revenue,CCHD,Elderly MH Home Care,Other Small Contracts,Chrysalis Community Care Group Ltd,214.20, 23-Nov-2010
246,Revenue,CCHD,Elderly MH non-res purchasing,Private & Voluntary Day Care,Chrysalis Community Care Group Ltd,68.00, 23-Nov-2010
247,Revenue,CCHD,Home Care Purch South,Other Small Contracts,Chrysalis Community Care Group Ltd,374.00, 15-Nov-2010
248,Revenue,CCHD,Home Care Purch North,Other Small Contracts,Chrysalis Community Care Group Ltd,1992.40, 15-Nov-2010
249,Revenue,CCHD,Day Care - North,Private & Voluntary Day Care,Chrysalis Community Care Group Ltd,54.40, 15-Nov-2010
250,Revenue,CCHD,Elderly MH Home Care,Other Small Contracts,Chrysalis Community Care Group Ltd,224.40, 15-Nov-2010
251,Revenue,CCHD,Elderly MH non-res purchasing,Private & Voluntary Day Care,Chrysalis Community Care Group Ltd,34.00, 15-Nov-2010
252,Revenue,CCHD,Finance,Training Expenses,CIPFA,590.00, 16-Nov-2010
253,Revenue,CCHD,Community Support - MH Under 6,Preventative Assistance,Individual,900.00, 02-Nov-2010
254,Revenue,CCHD,Training - Adult Services,Training Expenses,ComputerWorld Training Limited,595.00, 11-Nov-2010
255,Revenue,CCHD,Bed and Breakfast,Bed & Breakfast,Connolly & Callaghan Limited,476.00, 03-Nov-2010
256,Revenue,CCHD,Bed and Breakfast,Bed & Breakfast,Connolly & Callaghan Limited,686.00, 02-Nov-2010
257,Revenue,CCHD,Bed and Breakfast,Bed & Breakfast,Connolly & Callaghan Limited,511.00, 02-Nov-2010
258,Revenue,CCHD,Bed and Breakfast,Bed & Breakfast,Connolly & Callaghan Limited,441.00, 02-Nov-2010
259,Revenue,CCHD,Bed and Breakfast,Bed & Breakfast,Connolly & Callaghan Limited,476.00, 03-Nov-2010
260,Revenue,CCHD,Bed and Breakfast,Bed & Breakfast,Connolly & Callaghan Limited,511.00, 03-Nov-2010
261,Revenue,CCHD,Bed and Breakfast,Bed & Breakfast,Connolly & Callaghan Limited,686.00, 11-Nov-2010
262,Revenue,CCHD,Bed and Breakfast,Bed & Breakfast,Connolly & Callaghan Limited,511.00, 11-Nov-2010
263,Revenue,CCHD,Bed and Breakfast,Bed & Breakfast,Connolly & Callaghan Limited,511.00, 16-Nov-2010
264,Revenue,CCHD,Bed and Breakfast,Bed & Breakfast,Connolly & Callaghan Limited,476.00, 16-Nov-2010
265,Revenue,CCHD,Bed and Breakfast,Bed & Breakfast,Connolly & Callaghan Limited,441.00, 16-Nov-2010
266,Revenue,CCHD,Bed and Breakfast,Bed & Breakfast,Connolly & Callaghan Limited,686.00, 23-Nov-2010
267,Revenue,CCHD,Bed and Breakfast,Bed & Breakfast,Connolly & Callaghan Limited,511.00, 23-Nov-2010
268,Revenue,CCHD,Bed and Breakfast,Bed & Breakfast,Connolly & Callaghan Limited,511.00, 23-Nov-2010
269,Revenue,CCHD,Bed and Breakfast,Bed & Breakfast,Connolly & Callaghan Limited,441.00, 23-Nov-2010
270,Revenue,CCHD,Bed and Breakfast,Bed & Breakfast,Connolly & Callaghan Limited,476.00, 23-Nov-2010
271,Revenue,CCHD,Bed and Breakfast,Bed & Breakfast,Connolly & Callaghan Limited,441.00, 23-Nov-2010
272,Revenue,CCHD,Bed and Breakfast,Bed & Breakfast,Connolly & Callaghan Limited,441.00, 24-Nov-2010
273,Revenue,CCHD,Under 65s PWLD - PS,Residential Homes,Consensus Support Services Ltd,9189.20, 22-Nov-2010
274,Revenue,CCHD,Detained,Nursing Homes,Craegmoor Facilities Company Ltd,13573.66, 30-Nov-2010
275,Revenue,CCHD,Detained,Nursing Homes,Craegmoor Facilities Company Ltd,11384.36, 30-Nov-2010
276,Revenue,CCHD,Tenancy Start Up Scheme,Other Supplies & Services,Curley Brothers,615.00, 16-Nov-2010
277,Revenue,CCHD,Rent in Advance,Other Supplies & Services,Curley Brothers,623.31, 22-Nov-2010
278,Revenue,CCHD,Learning Difficulties PSL,Rent,Individual,1800.00, 22-Nov-2010
279,Revenue,CCHD,Day Care - North,Private & Voluntary Day Care,Deafblind UK,1351.35, 12-Nov-2010
280,Revenue,CCHD,Day Care - South,Private & Voluntary Day Care,Deafblind UK,1120.08, 12-Nov-2010
281,Revenue,CCHD,Day Care - South,Private & Voluntary Day Care,Deafblind UK,2140.00, 12-Nov-2010
282,Revenue,CCHD,Training - Adult Services,Training Expenses,Denise Hope,1875.00, 04-Nov-2010
283,Revenue,CCHD,Training - Adult Services,Training Expenses,Dennis Casling,550.00, 11-Nov-2010
284,Revenue,CCHD,Day Care - South,Private & Voluntary Day Care,Dhek Bhal,547.28, 30-Nov-2010
285,Revenue,CCHD,Day Care - South,Private & Voluntary Day Care,Dhek Bhal,547.28, 30-Nov-2010
286,Revenue,CCHD,Day Care - South,Private & Voluntary Day Care,Dhek Bhal,1039.20, 22-Nov-2010
287,Revenue,CCHD,Home Care Purch South,Other Small Contracts,DoCare Ltd,1720.50, 04-Nov-2010
288,Revenue,CCHD,Home Care Purch North,Other Small Contracts,DoCare Ltd,3747.90, 04-Nov-2010
289,Revenue,CCHD,Day Care - South,Private & Voluntary Day Care,DoCare Ltd,88.35, 04-Nov-2010
290,Revenue,CCHD,Day Care - North,Private & Voluntary Day Care,DoCare Ltd,474.30, 04-Nov-2010
291,Revenue,CCHD,Elderly MH Home Care,Other Small Contracts,DoCare Ltd,618.45, 04-Nov-2010
292,Revenue,CCHD,Home Care Purch South,Other Small Contracts,DoCare Ltd,1906.50, 16-Nov-2010
293,Revenue,CCHD,Home Care Purch North,Other Small Contracts,DoCare Ltd,3617.70, 16-Nov-2010
294,Revenue,CCHD,Day Care - South,Private & Voluntary Day Care,DoCare Ltd,13.95, 16-Nov-2010
295,Revenue,CCHD,Day Care - North,Private & Voluntary Day Care,DoCare Ltd,460.35, 16-Nov-2010
296,Revenue,CCHD,Elderly MH Home Care,Other Small Contracts,DoCare Ltd,613.80, 16-Nov-2010
297,Revenue,CCHD,Home Care Purch South,Other Small Contracts,DoCare Ltd,1813.50, 30-Nov-2010
298,Revenue,CCHD,Home Care Purch North,Other Small Contracts,DoCare Ltd,3840.90, 30-Nov-2010
299,Revenue,CCHD,Day Care - South,Private & Voluntary Day Care,DoCare Ltd,97.65, 30-Nov-2010
300,Revenue,CCHD,Day Care - North,Private & Voluntary Day Care,DoCare Ltd,404.55, 30-Nov-2010
301,Revenue,CCHD,Elderly MH Home Care,Other Small Contracts,DoCare Ltd,632.40, 30-Nov-2010
302,Revenue,CCHD,Elderly MH non-res purchasing,Private & Voluntary Day Care,DoCare Ltd,74.40, 30-Nov-2010
303,Revenue,CCHD,Commissioning,Commissioned Service (Inc SLA Grants),Dr B G Whiteside & Partners,595.00, 19-Nov-2010
304,Revenue,CCHD,Commissioning,Commissioned Service (Inc SLA Grants),Dr B G Whiteside & Partners,595.00, 19-Nov-2010
305,Revenue,CCHD,Supporting People Programme,Grants to Voluntary Bodies,Drugs & Homeless Initiative,10354.00, 22-Nov-2010
306,Revenue,CCHD,Brokerage and Information Service,Grants to Voluntary Bodies,Drugs & Homeless Initiative,9210.09, 26-Nov-2010
307,Revenue,CCHD,Bed and Breakfast,Bed & Breakfast,E J Bartlett,546.00, 01-Nov-2010
308,Revenue,CCHD,Bed and Breakfast,Bed & Breakfast,E J Bartlett,546.00, 01-Nov-2010
309,Revenue,CCHD,Bed and Breakfast,Bed & Breakfast,E J Bartlett,546.00, 01-Nov-2010
310,Revenue,CCHD,Bed and Breakfast,Bed & Breakfast,E J Bartlett,637.00, 01-Nov-2010
311,Revenue,CCHD,Bed and Breakfast,Bed & Breakfast,E J Bartlett,624.00, 01-Nov-2010
312,Revenue,CCHD,Bed and Breakfast,Bed & Breakfast,E J Bartlett,637.00, 01-Nov-2010
313,Revenue,CCHD,Bed and Breakfast,Bed & Breakfast,E J Bartlett,546.00, 11-Nov-2010
314,Revenue,CCHD,Bed and Breakfast,Bed & Breakfast,E J Bartlett,546.00, 11-Nov-2010
315,Revenue,CCHD,Bed and Breakfast,Bed & Breakfast,E J Bartlett,546.00, 11-Nov-2010
316,Revenue,CCHD,Bed and Breakfast,Bed & Breakfast,E J Bartlett,637.00, 11-Nov-2010
317,Revenue,CCHD,Bed and Breakfast,Bed & Breakfast,E J Bartlett,546.00, 11-Nov-2010
318,Revenue,CCHD,Bed and Breakfast,Bed & Breakfast,E J Bartlett,637.00, 11-Nov-2010
319,Revenue,CCHD,Bed and Breakfast,Bed & Breakfast,E J Bartlett,546.00, 12-Nov-2010
320,Revenue,CCHD,Bed and Breakfast,Bed & Breakfast,E J Bartlett,546.00, 12-Nov-2010
321,Revenue,CCHD,Bed and Breakfast,Bed & Breakfast,E J Bartlett,819.00, 16-Nov-2010
322,Revenue,CCHD,Bed and Breakfast,Bed & Breakfast,E J Bartlett,585.00, 15-Nov-2010
323,Revenue,CCHD,Bed and Breakfast,Bed & Breakfast,E J Bartlett,546.00, 25-Nov-2010
324,Revenue,CCHD,Bed and Breakfast,Bed & Breakfast,E J Bartlett,637.00, 12-Nov-2010
325,Revenue,CCHD,Bed and Breakfast,Bed & Breakfast,E J Bartlett,546.00, 19-Nov-2010
326,Revenue,CCHD,Bed and Breakfast,Bed & Breakfast,E J Bartlett,546.00, 19-Nov-2010
327,Revenue,CCHD,Bed and Breakfast,Bed & Breakfast,E J Bartlett,819.00, 19-Nov-2010
328,Revenue,CCHD,Bed and Breakfast,Bed & Breakfast,E J Bartlett,455.00, 19-Nov-2010
329,Revenue,CCHD,HRD Grant - Main,Training Expenses,Effective Training & Consultancy Limited,778.50, 12-Nov-2010
330,Revenue,CCHD,Supporting People Programme,Grants to Voluntary Bodies,Elim Housing Association Ltd,4434.56, 22-Nov-2010
331,Revenue,CCHD,Training - Adult Services,Training Expenses,Emerald Training & Development Limited,875.00, 19-Nov-2010
332,Revenue,CCHD,Younger MH non-res purchasing,Private & Voluntary Day Care,Enham,638.72, 22-Nov-2010
333,Revenue,CCHD,Tenancy Start Up Scheme,Other Supplies & Services,Evenbrook Group Ltd,1330.00, 16-Nov-2010
334,Revenue,CCHD,Elderly Purchasing - South,Nursing Homes,Fairview Court Care Home,1618.07, 04-Nov-2010
335,Revenue,CCHD,Southmead Hospital Purchasing,Nursing Homes,Fairview Court Care Home,822.95, 04-Nov-2010
336,Revenue,CCHD,South Glos Users in South Glos Homes,Nursing Homes,Fairview Court Care Home,2888.31, 04-Nov-2010
337,Revenue,CCHD,Elderly Mental Health,Nursing Homes,Fairview Court Care Home,6371.12, 04-Nov-2010
338,Revenue,CCHD,Supported Living - PS,Private & Voluntary Home Care,Freeways Trust Limited,2185.13, 04-Nov-2010
339,Revenue,CCHD,Supported Living - KD,Private & Voluntary Home Care,Freeways Trust Limited,4635.00, 05-Nov-2010
340,Revenue,CCHD,Purchase of Non-Res Care - PS,Private & Voluntary Day Care,Freeways Trust Limited,2112.00, 05-Nov-2010
341,Revenue,CCHD,Wapley Court,Prop.Serv. General Repairs,Geoff Lewis Flooring Limited,528.00, 04-Nov-2010
342,Revenue,CCHD,Home Care Purch South,Other Small Contracts,Greenbanks Homecare (Western) Limited,4531.64, 23-Nov-2010
343,Revenue,CCHD,Home Care Purch North,Other Small Contracts,Greenbanks Homecare (Western) Limited,324.24, 23-Nov-2010
344,Revenue,CCHD,Day Care - South,Private & Voluntary Day Care,Greenbanks Homecare (Western) Limited,285.64, 23-Nov-2010
345,Revenue,CCHD,Carer`s Grant - South,Carers Breaks & Services,Greenbanks Homecare (Western) Limited,54.04, 23-Nov-2010
346,Revenue,CCHD,Under 65s -MH  Home Care Purch,Other Small Contracts,Greenbanks Homecare (Western) Limited,193.00, 23-Nov-2010
347,Revenue,CCHD,Elderly MH Home Care,Other Small Contracts,Greenbanks Homecare (Western) Limited,590.58, 23-Nov-2010
348,Revenue,CCHD,Home Care Purch South,Other Small Contracts,Greenbanks Homecare (Western) Limited,5257.32, 16-Nov-2010
349,Revenue,CCHD,Home Care Purch North,Other Small Contracts,Greenbanks Homecare (Western) Limited,316.52, 16-Nov-2010
350,Revenue,CCHD,Day Care - South,Private & Voluntary Day Care,Greenbanks Homecare (Western) Limited,277.92, 16-Nov-2010
351,Revenue,CCHD,Carer`s Grant - South,Carers Breaks & Services,Greenbanks Homecare (Western) Limited,100.36, 16-Nov-2010
352,Revenue,CCHD,Under 65s -MH  Home Care Purch,Other Small Contracts,Greenbanks Homecare (Western) Limited,196.86, 16-Nov-2010
353,Revenue,CCHD,Elderly MH Home Care,Other Small Contracts,Greenbanks Homecare (Western) Limited,548.12, 16-Nov-2010
354,Revenue,CCHD,Home Care Purch South,Other Small Contracts,Greenbanks Homecare (Western) Limited,5010.28, 16-Nov-2010
355,Revenue,CCHD,Home Care Purch North,Other Small Contracts,Greenbanks Homecare (Western) Limited,308.80, 16-Nov-2010
356,Revenue,CCHD,Day Care - South,Private & Voluntary Day Care,Greenbanks Homecare (Western) Limited,208.44, 16-Nov-2010
357,Revenue,CCHD,Carer`s Grant - South,Carers Breaks & Services,Greenbanks Homecare (Western) Limited,104.22, 16-Nov-2010
358,Revenue,CCHD,Under 65s -MH  Home Care Purch,Other Small Contracts,Greenbanks Homecare (Western) Limited,212.30, 16-Nov-2010
359,Revenue,CCHD,Elderly MH Home Care,Other Small Contracts,Greenbanks Homecare (Western) Limited,521.10, 16-Nov-2010
360,Revenue,CCHD,Home Care Purch South,Other Small Contracts,Greenbanks Homecare (Western) Limited,5052.74, 16-Nov-2010
361,Revenue,CCHD,Home Care Purch North,Other Small Contracts,Greenbanks Homecare (Western) Limited,374.42, 16-Nov-2010
362,Revenue,CCHD,Day Care - South,Private & Voluntary Day Care,Greenbanks Homecare (Western) Limited,281.78, 16-Nov-2010
363,Revenue,CCHD,Carer`s Grant - South,Carers Breaks & Services,Greenbanks Homecare (Western) Limited,46.32, 16-Nov-2010
364,Revenue,CCHD,Under 65s -MH  Home Care Purch,Other Small Contracts,Greenbanks Homecare (Western) Limited,200.72, 16-Nov-2010
365,Revenue,CCHD,Elderly MH Home Care,Other Small Contracts,Greenbanks Homecare (Western) Limited,544.26, 16-Nov-2010
366,Revenue,CCHD,Home Care Purch South,Other Small Contracts,Greenbanks Homecare (Western) Limited,4975.54, 26-Nov-2010
367,Revenue,CCHD,Home Care Purch North,Other Small Contracts,Greenbanks Homecare (Western) Limited,335.82, 26-Nov-2010
368,Revenue,CCHD,Day Care - South,Private & Voluntary Day Care,Greenbanks Homecare (Western) Limited,277.92, 26-Nov-2010
369,Revenue,CCHD,Carer`s Grant - South,Carers Breaks & Services,Greenbanks Homecare (Western) Limited,108.08, 26-Nov-2010
370,Revenue,CCHD,Under 65s -MH  Home Care Purch,Other Small Contracts,Greenbanks Homecare (Western) Limited,196.86, 26-Nov-2010
371,Revenue,CCHD,Elderly MH Home Care,Other Small Contracts,Greenbanks Homecare (Western) Limited,382.14, 26-Nov-2010
372,Revenue,CCHD,Home Care Purch South,Other Small Contracts,Greenbanks Homecare (Western) Limited,5052.74, 23-Nov-2010
373,Revenue,CCHD,Home Care Purch North,Other Small Contracts,Greenbanks Homecare (Western) Limited,366.70, 23-Nov-2010
374,Revenue,CCHD,Day Care - South,Private & Voluntary Day Care,Greenbanks Homecare (Western) Limited,289.50, 23-Nov-2010
375,Revenue,CCHD,Carer`s Grant - South,Carers Breaks & Services,Greenbanks Homecare (Western) Limited,108.08, 23-Nov-2010
376,Revenue,CCHD,Under 65s -MH  Home Care Purch,Other Small Contracts,Greenbanks Homecare (Western) Limited,208.44, 23-Nov-2010
377,Revenue,CCHD,Elderly MH Home Care,Other Small Contracts,Greenbanks Homecare (Western) Limited,621.46, 23-Nov-2010
378,Revenue,CCHD,Home Care Purch South,Other Small Contracts,Greenbanks Homecare (Western) Limited,1470.66, 19-Nov-2010
379,Revenue,CCHD,Home Care Purch South,Other Small Contracts,Greenbanks Homecare (Western) Limited,1084.66, 19-Nov-2010
380,Revenue,CCHD,Home Care Purch South,Other Small Contracts,Greenbanks Homecare (Western) Limited,4485.32, 23-Nov-2010
381,Revenue,CCHD,Home Care Purch North,Other Small Contracts,Greenbanks Homecare (Western) Limited,386.00, 23-Nov-2010
382,Revenue,CCHD,Day Care - South,Private & Voluntary Day Care,Greenbanks Homecare (Western) Limited,262.48, 23-Nov-2010
383,Revenue,CCHD,Carer`s Grant - South,Carers Breaks & Services,Greenbanks Homecare (Western) Limited,108.08, 23-Nov-2010
384,Revenue,CCHD,Under 65s -MH  Home Care Purch,Other Small Contracts,Greenbanks Homecare (Western) Limited,220.02, 23-Nov-2010
385,Revenue,CCHD,Elderly MH Home Care,Other Small Contracts,Greenbanks Homecare (Western) Limited,513.38, 23-Nov-2010
386,Revenue,CCHD,Home Care Purch South,Other Small Contracts,Greenbanks Homecare (Western) Limited,4898.34, 19-Nov-2010
387,Revenue,CCHD,Home Care Purch North,Other Small Contracts,Greenbanks Homecare (Western) Limited,316.52, 19-Nov-2010
388,Revenue,CCHD,Day Care - South,Private & Voluntary Day Care,Greenbanks Homecare (Western) Limited,324.24, 19-Nov-2010
389,Revenue,CCHD,Carer`s Grant - South,Carers Breaks & Services,Greenbanks Homecare (Western) Limited,46.32, 19-Nov-2010
390,Revenue,CCHD,Under 65s -MH  Home Care Purch,Other Small Contracts,Greenbanks Homecare (Western) Limited,235.46, 19-Nov-2010
391,Revenue,CCHD,Elderly MH Home Care,Other Small Contracts,Greenbanks Homecare (Western) Limited,567.42, 19-Nov-2010
392,Revenue,CCHD,Home Care Purch South,Other Small Contracts,Guardian Homecare (Bristol & Avon) Ltd,3028.78, 10-Nov-2010
393,Revenue,CCHD,Home Care Purch North,Other Small Contracts,Guardian Homecare (Bristol & Avon) Ltd,4469.54, 10-Nov-2010
394,Revenue,CCHD,Day Care - South,Private & Voluntary Day Care,Guardian Homecare (Bristol & Avon) Ltd,31.84, 10-Nov-2010
395,Revenue,CCHD,Day Care - North,Private & Voluntary Day Care,Guardian Homecare (Bristol & Avon) Ltd,784.06, 10-Nov-2010
396,Revenue,CCHD,Elderly MH Home Care,Other Small Contracts,Guardian Homecare (Bristol & Avon) Ltd,115.42, 10-Nov-2010
397,Revenue,CCHD,PWLD Home Care - Under 65 - PS,Private & Voluntary Home Care,Guardian Homecare (Bristol & Avon) Ltd,31.84, 10-Nov-2010
398,Revenue,CCHD,PWLD Home Care - Under 65 - KD,Private & Voluntary Home Care,Guardian Homecare (Bristol & Avon) Ltd,15.92, 10-Nov-2010
399,Revenue,CCHD,Home Care Purch South,Other Small Contracts,Guardian Homecare (Bristol & Avon) Ltd,3000.92, 10-Nov-2010
400,Revenue,CCHD,Home Care Purch North,Other Small Contracts,Guardian Homecare (Bristol & Avon) Ltd,4612.82, 10-Nov-2010
401,Revenue,CCHD,Day Care - South,Private & Voluntary Day Care,Guardian Homecare (Bristol & Avon) Ltd,31.84, 10-Nov-2010
402,Revenue,CCHD,Day Care - North,Private & Voluntary Day Care,Guardian Homecare (Bristol & Avon) Ltd,803.96, 10-Nov-2010
403,Revenue,CCHD,Elderly MH Home Care,Other Small Contracts,Guardian Homecare (Bristol & Avon) Ltd,111.44, 10-Nov-2010
404,Revenue,CCHD,PWLD Home Care - Under 65 - PS,Private & Voluntary Home Care,Guardian Homecare (Bristol & Avon) Ltd,31.84, 10-Nov-2010
405,Revenue,CCHD,PWLD Home Care - Under 65 - KD,Private & Voluntary Home Care,Guardian Homecare (Bristol & Avon) Ltd,15.92, 10-Nov-2010
406,Revenue,CCHD,PWLD Home Care - Under 65 - KH,Private & Voluntary Home Care,Guardian Homecare (Bristol & Avon) Ltd,103.48, 10-Nov-2010
407,Revenue,CCHD,Home Care Purch South,Other Small Contracts,Guardian Homecare (Bristol & Avon) Ltd,2897.44, 19-Nov-2010
408,Revenue,CCHD,Home Care Purch North,Other Small Contracts,Guardian Homecare (Bristol & Avon) Ltd,4381.98, 19-Nov-2010
409,Revenue,CCHD,Day Care - South,Private & Voluntary Day Care,Guardian Homecare (Bristol & Avon) Ltd,31.84, 19-Nov-2010
410,Revenue,CCHD,Day Care - North,Private & Voluntary Day Care,Guardian Homecare (Bristol & Avon) Ltd,692.52, 19-Nov-2010
411,Revenue,CCHD,Elderly MH Home Care,Other Small Contracts,Guardian Homecare (Bristol & Avon) Ltd,127.36, 19-Nov-2010
412,Revenue,CCHD,PWLD Home Care - Under 65 - PS,Private & Voluntary Home Care,Guardian Homecare (Bristol & Avon) Ltd,31.84, 19-Nov-2010
413,Revenue,CCHD,PWLD Home Care - Under 65 - KD,Private & Voluntary Home Care,Guardian Homecare (Bristol & Avon) Ltd,15.92, 19-Nov-2010
414,Revenue,CCHD,PWLD Home Care - Under 65 - KH,Private & Voluntary Home Care,Guardian Homecare (Bristol & Avon) Ltd,163.18, 19-Nov-2010
415,Revenue,CCHD,Home Care Purch South,Other Small Contracts,Guardian Homecare (Bristol & Avon) Ltd,3064.60, 19-Nov-2010
416,Revenue,CCHD,Home Care Purch North,Other Small Contracts,Guardian Homecare (Bristol & Avon) Ltd,4139.20, 19-Nov-2010
417,Revenue,CCHD,Day Care - South,Private & Voluntary Day Care,Guardian Homecare (Bristol & Avon) Ltd,127.36, 19-Nov-2010
418,Revenue,CCHD,Day Care - North,Private & Voluntary Day Care,Guardian Homecare (Bristol & Avon) Ltd,823.86, 19-Nov-2010
419,Revenue,CCHD,Elderly MH Home Care,Other Small Contracts,Guardian Homecare (Bristol & Avon) Ltd,115.42, 19-Nov-2010
420,Revenue,CCHD,PWLD Home Care - Under 65 - PS,Private & Voluntary Home Care,Guardian Homecare (Bristol & Avon) Ltd,31.84, 19-Nov-2010
421,Revenue,CCHD,PWLD Home Care - Under 65 - KD,Private & Voluntary Home Care,Guardian Homecare (Bristol & Avon) Ltd,15.92, 19-Nov-2010
422,Revenue,CCHD,PWLD Home Care - Under 65 - KH,Private & Voluntary Home Care,Guardian Homecare (Bristol & Avon) Ltd,167.16, 19-Nov-2010
423,Revenue,CCHD,Home Care Purch South,Other Small Contracts,Guardian Homecare (Bristol & Avon) Ltd,2981.02, 19-Nov-2010
424,Revenue,CCHD,Home Care Purch North,Other Small Contracts,Guardian Homecare (Bristol & Avon) Ltd,3816.82, 19-Nov-2010
425,Revenue,CCHD,Day Care - South,Private & Voluntary Day Care,Guardian Homecare (Bristol & Avon) Ltd,127.36, 19-Nov-2010
426,Revenue,CCHD,Day Care - North,Private & Voluntary Day Care,Guardian Homecare (Bristol & Avon) Ltd,684.56, 19-Nov-2010
427,Revenue,CCHD,Elderly MH Home Care,Other Small Contracts,Guardian Homecare (Bristol & Avon) Ltd,290.54, 19-Nov-2010
428,Revenue,CCHD,Elderly MH non-res purchasing,Private & Voluntary Day Care,Guardian Homecare (Bristol & Avon) Ltd,23.88, 19-Nov-2010
429,Revenue,CCHD,PWLD Home Care - Under 65 - PS,Private & Voluntary Home Care,Guardian Homecare (Bristol & Avon) Ltd,31.84, 19-Nov-2010
430,Revenue,CCHD,PWLD Home Care - Under 65 - KD,Private & Voluntary Home Care,Guardian Homecare (Bristol & Avon) Ltd,15.92, 19-Nov-2010
431,Revenue,CCHD,PWLD Home Care - Under 65 - KH,Private & Voluntary Home Care,Guardian Homecare (Bristol & Avon) Ltd,167.16, 19-Nov-2010
432,Revenue,CCHD,Home Care Purch South,Other Small Contracts,Guardian Homecare (Bristol & Avon) Ltd,2738.24, 19-Nov-2010
433,Revenue,CCHD,Home Care Purch North,Other Small Contracts,Guardian Homecare (Bristol & Avon) Ltd,4358.10, 19-Nov-2010
434,Revenue,CCHD,Day Care - South,Private & Voluntary Day Care,Guardian Homecare (Bristol & Avon) Ltd,7.96, 19-Nov-2010
435,Revenue,CCHD,Day Care - North,Private & Voluntary Day Care,Guardian Homecare (Bristol & Avon) Ltd,573.12, 19-Nov-2010
436,Revenue,CCHD,Elderly MH Home Care,Other Small Contracts,Guardian Homecare (Bristol & Avon) Ltd,119.40, 19-Nov-2010
437,Revenue,CCHD,Elderly MH non-res purchasing,Private & Voluntary Day Care,Guardian Homecare (Bristol & Avon) Ltd,63.68, 19-Nov-2010
438,Revenue,CCHD,PWLD Home Care - Under 65 - PS,Private & Voluntary Home Care,Guardian Homecare (Bristol & Avon) Ltd,31.84, 19-Nov-2010
439,Revenue,CCHD,PWLD Home Care - Under 65 - KD,Private & Voluntary Home Care,Guardian Homecare (Bristol & Avon) Ltd,15.92, 19-Nov-2010
440,Revenue,CCHD,Home Care Purch South,Other Small Contracts,Guardian Homecare (Bristol & Avon) Ltd,2988.98, 24-Nov-2010
441,Revenue,CCHD,Home Care Purch North,Other Small Contracts,Guardian Homecare (Bristol & Avon) Ltd,3327.28, 24-Nov-2010
442,Revenue,CCHD,Day Care - South,Private & Voluntary Day Care,Guardian Homecare (Bristol & Avon) Ltd,127.36, 24-Nov-2010
443,Revenue,CCHD,Day Care - North,Private & Voluntary Day Care,Guardian Homecare (Bristol & Avon) Ltd,831.82, 24-Nov-2010
444,Revenue,CCHD,Elderly MH Home Care,Other Small Contracts,Guardian Homecare (Bristol & Avon) Ltd,398.00, 24-Nov-2010
445,Revenue,CCHD,Elderly MH non-res purchasing,Private & Voluntary Day Care,Guardian Homecare (Bristol & Avon) Ltd,47.76, 24-Nov-2010
446,Revenue,CCHD,PWLD Home Care - Under 65 - PS,Private & Voluntary Home Care,Guardian Homecare (Bristol & Avon) Ltd,31.84, 24-Nov-2010
447,Revenue,CCHD,PWLD Home Care - Under 65 - KD,Private & Voluntary Home Care,Guardian Homecare (Bristol & Avon) Ltd,15.92, 24-Nov-2010
448,Revenue,CCHD,PWLD Home Care - Under 65 - KH,Private & Voluntary Home Care,Guardian Homecare (Bristol & Avon) Ltd,167.16, 24-Nov-2010
449,Revenue,CCHD,Southmead Hospital Team,Agency Staff (Operational)/PCT Pay,Hays Specialist Recruitment,1122.23, 24-Nov-2010
450,Revenue,CCHD,Southmead Hospital Team,Agency Staff (Operational)/PCT Pay,Hays Specialist Recruitment,1122.23, 24-Nov-2010
451,Revenue,CCHD,Southmead Hospital Team,Agency Staff (Operational)/PCT Pay,Hays Specialist Recruitment,925.08, 24-Nov-2010
452,Revenue,CCHD,Southmead Hospital Team,Agency Staff (Operational)/PCT Pay,Hays Specialist Recruitment,1122.23, 24-Nov-2010
453,Revenue,CCHD,Southmead Hospital Team,Agency Staff (Operational)/PCT Pay,Hays Specialist Recruitment,1122.23, 24-Nov-2010
454,Revenue,CCHD,Southmead Hospital Team,Agency Staff (Operational)/PCT Pay,Hays Specialist Recruitment,1122.23, 24-Nov-2010
455,Revenue,CCHD,Southmead Hospital Team,Agency Staff (Operational)/PCT Pay,Hays Specialist Recruitment,1122.23, 18-Nov-2010
456,Revenue,CCHD,Southmead Hospital Team,Agency Staff (Operational)/PCT Pay,Hays Specialist Recruitment,454.96, 18-Nov-2010
457,Revenue,CCHD,Housing Needs,Agency Staff (Admin/Support Staff) Pay,Hays Specialist Recruitment,431.25, 11-Nov-2010
458,Revenue,CCHD,Housing Needs,Agency Staff (Admin/Support Staff) Pay,Hays Specialist Recruitment,431.25, 11-Nov-2010
459,Revenue,CCHD,Southmead Hospital Team,Agency Staff (Operational)/PCT Pay,Hays Specialist Recruitment,1122.23, 18-Nov-2010
460,Revenue,CCHD,Housing Needs,Agency Staff (Admin/Support Staff) Pay,Hays Specialist Recruitment,431.25, 11-Nov-2010
461,Revenue,CCHD,Southmead Hospital Team,Agency Staff (Operational)/PCT Pay,Hays Specialist Recruitment,1122.22, 19-Nov-2010
462,Revenue,CCHD,Southmead Hospital Team,Agency Staff (Operational)/PCT Pay,Hays Specialist Recruitment,1122.22, 19-Nov-2010
463,Revenue,CCHD,Southmead Hospital Team,Agency Staff (Operational)/PCT Pay,Hays Specialist Recruitment,1122.23, 25-Nov-2010
464,Revenue,CCHD,Day Care - South,Private & Voluntary Day Care,Headway Bristol,1443.15, 12-Nov-2010
465,Revenue,CCHD,Day Care - North,Private & Voluntary Day Care,Headway Bristol,1286.28, 12-Nov-2010
466,Revenue,CCHD,Community Support ACM - North,Preventative Assistance,Helen & Douglas House,2700.00, 26-Nov-2010
467,Revenue,CCHD,Elderly Purchasing - North,Nursing Homes,Horfield Care Limited,3085.69, 05-Nov-2010
468,Revenue,CCHD,Frenchay Hospital Purchasing,Nursing Homes,Horfield Care Limited,8636.26, 05-Nov-2010
469,Revenue,CCHD,Southmead Hospital Purchasing,Nursing Homes,Horfield Care Limited,5574.18, 05-Nov-2010
470,Revenue,CCHD,Adult Learning Difficulties - Kingswood,Agency Staff (Operational)/PCT Pay,IPE,1433.70, 19-Nov-2010
471,Revenue,CCHD,Adult Learning Difficulties - Kingswood,Agency Staff (Operational)/PCT Pay,IPE,2386.80, 19-Nov-2010
472,Revenue,CCHD,Tenancy Start Up Scheme,Other Supplies & Services,Individual,1250.00, 09-Nov-2010
473,Revenue,CCHD,Training - Adult Services,Training Expenses,Individual,600.00, 11-Nov-2010
474,Revenue,CCHD,Yate District Office,Printing & Stationery,K N Office Supplies,449.95, 04-Nov-2010
475,Revenue,CCHD,Purchase of Non-Res Care - PS,Independent Living,Individual,895.19, 01-Nov-2010
476,Revenue,CCHD,Supporting People Programme,Grants to Voluntary Bodies,Keyring Living Support Networks,2577.60, 05-Nov-2010
477,Revenue,CCHD,Supporting People Programme,Grants to Voluntary Bodies,Kingswood Young Homeless Project,2502.72, 09-Nov-2010
478,Revenue,CCHD,Supporting People Programme,Grants to Voluntary Bodies,Kingswood Young Homeless Project,5133.12, 09-Nov-2010
479,Revenue,CCHD,Supporting People Programme,Grants to Voluntary Bodies,Knightstone Housing Association Limited,516.64, 08-Nov-2010
480,Revenue,CCHD,Supporting People Programme,Grants to Voluntary Bodies,Knightstone Housing Association Limited,733.12, 08-Nov-2010
481,Revenue,CCHD,Supporting People Programme,Grants to Voluntary Bodies,Knightstone Housing Association Limited,1387.68, 08-Nov-2010
482,Revenue,CCHD,Supporting People Programme,Grants to Voluntary Bodies,Knightstone Housing Association Limited,2097.92, 08-Nov-2010
483,Revenue,CCHD,Supporting People Programme,Grants to Voluntary Bodies,Knightstone Housing Association Limited,2153.80, 08-Nov-2010
484,Revenue,CCHD,Supporting People Programme,Grants to Voluntary Bodies,Knightstone Housing Association Limited,2545.40, 08-Nov-2010
485,Revenue,CCHD,Supporting People Programme,Grants to Voluntary Bodies,Knightstone Housing Association Limited,7263.52, 08-Nov-2010
486,Revenue,CCHD,Supporting People Programme,Grants to Voluntary Bodies,Knightstone Housing Association Limited,8013.60, 08-Nov-2010
487,Revenue,CCHD,Supporting People Programme,Grants to Voluntary Bodies,Knightstone Housing Association Limited,13051.36, 08-Nov-2010
488,Revenue,CCHD,Newton House,Prop.Serv. General Repairs,KRF Metal Fabrications Limited,1987.00, 03-Nov-2010
489,Revenue,CCHD,Contracts & Commissioning Team,Other Small Contracts,Kumari Care Limited,7500.00, 05-Nov-2010
490,Revenue,CCHD,Contracts & Commissioning Team,Other Small Contracts,Kumari Care Limited,7500.00, 12-Nov-2010
491,Revenue,CCHD,Contracts & Commissioning Team,Other Small Contracts,Kumari Care Limited,7500.00, 22-Nov-2010
492,Revenue,CCHD,Contracts & Commissioning Team,Other Small Contracts,Kumari Care Limited,7500.00, 26-Nov-2010
493,Revenue,CCHD,Home Care Purch North,Other Small Contracts,Kumari Care Limited,809.87, 04-Nov-2010
494,Revenue,CCHD,Home Care Purch North,Other Small Contracts,Kumari Care Limited,809.87, 22-Nov-2010
495,Revenue,CCHD,Home Care Purch North,Other Small Contracts,Kumari Care Limited,809.87, 26-Nov-2010
496,Revenue,CCHD,Home Care Purch North,Other Small Contracts,Kumari Care Limited,809.87, 23-Nov-2010
497,Revenue,CCHD,Home Care Purch South,Other Small Contracts,Kumari Care Limited,1064.70, 10-Nov-2010
498,Revenue,CCHD,Home Care Purch South,Other Small Contracts,Kumari Care Limited,881.40, 10-Nov-2010
499,Revenue,CCHD,Day Care - South,Private & Voluntary Day Care,Kumari Care Limited,62.40, 10-Nov-2010
500,Revenue,CCHD,Home Care Purch South,Other Small Contracts,Kumari Care Limited,1064.70, 10-Nov-2010
501,Revenue,CCHD,Home Care Purch South,Other Small Contracts,Kumari Care Limited,581.10, 10-Nov-2010
502,Revenue,CCHD,Home Care Purch South,Other Small Contracts,Kumari Care Limited,522.60, 10-Nov-2010
503,Revenue,CCHD,Home Care Purch South,Other Small Contracts,Kumari Care Limited,1848.60, 10-Nov-2010
504,Revenue,CCHD,Home Care Purch South,Other Small Contracts,Kumari Care Limited,939.90, 10-Nov-2010
505,Revenue,CCHD,Home Care Purch South,Other Small Contracts,Kumari Care Limited,522.60, 10-Nov-2010
506,Revenue,CCHD,Home Care Purch South,Other Small Contracts,Kumari Care Limited,1899.30, 10-Nov-2010
507,Revenue,CCHD,Elderly MH Home Care,Other Small Contracts,Kumari Care Limited,760.50, 23-Nov-2010
508,Revenue,CCHD,Home Care Purch South,Other Small Contracts,Kumari Care Limited,694.20, 23-Nov-2010
509,Revenue,CCHD,Home Care Purch South,Other Small Contracts,Kumari Care Limited,616.20, 23-Nov-2010
510,Revenue,CCHD,Home Care Purch South,Other Small Contracts,Kumari Care Limited,772.20, 23-Nov-2010
511,Revenue,CCHD,Home Care Purch South,Other Small Contracts,Kumari Care Limited,978.90, 23-Nov-2010
512,Revenue,CCHD,Home Care Purch South,Other Small Contracts,Kumari Care Limited,534.30, 23-Nov-2010
513,Revenue,CCHD,Adult Placement Scheme,Adults - Family Support,Individual,1533.15, 25-Nov-2010
514,Revenue,CCHD,Supported Living - KH,Private & Voluntary Home Care,Lifeways Community Care (Gloucester) Ltd,11373.00, 24-Nov-2010
515,Revenue,CCHD,Supported Living - KH,Private & Voluntary Home Care,Lifeways Community Care (Gloucester) Ltd,11373.00, 24-Nov-2010
516,Revenue,CCHD,Supported Living - KH,Private & Voluntary Home Care,Lifeways Community Care (Gloucester) Ltd,11373.00, 24-Nov-2010
517,Revenue,CCHD,Supported Living - KH,Private & Voluntary Home Care,Lifeways Community Care (Gloucester) Ltd,8792.00, 24-Nov-2010
518,Revenue,CCHD,Home Care Purch North,Other Small Contracts,Lloyds TSB Commercial Finance Limited,1014.95, 10-Nov-2010
519,Revenue,CCHD,Supported Living - KD,Private & Voluntary Home Care,Lloyds TSB Commercial Finance Limited,1581.78, 24-Nov-2010
520,Revenue,CCHD,Supported Living - PS,Private & Voluntary Home Care,Lloyds TSB Commercial Finance Limited,6046.52, 16-Nov-2010
521,Revenue,CCHD,Supported Living - PS,Private & Voluntary Home Care,Lloyds TSB Commercial Finance Limited,4021.12, 16-Nov-2010
522,Revenue,CCHD,Home Care Purch North,Other Small Contracts,Lloyds TSB Commercial Finance Limited,3054.50, 15-Nov-2010
523,Revenue,CCHD,Day Care - North,Private & Voluntary Day Care,Lloyds TSB Commercial Finance Limited,513.22, 15-Nov-2010
524,Revenue,CCHD,Elderly MH Home Care,Other Small Contracts,Lloyds TSB Commercial Finance Limited,42.13, 15-Nov-2010
525,Revenue,CCHD,Elderly MH non-res purchasing,Private & Voluntary Day Care,Lloyds TSB Commercial Finance Limited,76.60, 15-Nov-2010
526,Revenue,CCHD,Home Care Purch South,Other Small Contracts,Lloyds TSB Commercial Finance Limited,80.43, 30-Nov-2010
527,Revenue,CCHD,Home Care Purch North,Other Small Contracts,Lloyds TSB Commercial Finance Limited,3749.57, 30-Nov-2010
528,Revenue,CCHD,Day Care - North,Private & Voluntary Day Care,Lloyds TSB Commercial Finance Limited,574.50, 30-Nov-2010
529,Revenue,CCHD,Elderly MH Home Care,Other Small Contracts,Lloyds TSB Commercial Finance Limited,45.96, 30-Nov-2010
530,Revenue,CCHD,Elderly MH non-res purchasing,Private & Voluntary Day Care,Lloyds TSB Commercial Finance Limited,76.60, 30-Nov-2010
531,Revenue,CCHD,Supported Living - PS,Private & Voluntary Home Care,Lloyds TSB Commercial Finance Limited,687.40, 15-Nov-2010
532,Revenue,CCHD,Training - Adult Services,Training Expenses,M & O Training Ltd,600.00, 18-Nov-2010
533,Revenue,CCHD,Supporting People Programme,Grants to Voluntary Bodies,Maples Community Housing Limited,2620.20, 09-Nov-2010
534,Revenue,CCHD,Adult Placement Scheme,Adults - Family Support,Individual,1816.31, 01-Nov-2010
535,Revenue,CCHD,NRS Contract,Daily Living Equipment,Medequip Assistive Technology Ltd,46563.00, 22-Nov-2010
536,Revenue,CCHD,NRS Contract,Daily Living Equipment,Medequip Assistive Technology Ltd,32634.22, 22-Nov-2010
537,Revenue,CCHD,NRS Contract,Other Supplies & Services,Medequip Assistive Technology Ltd,3798.33, 22-Nov-2010
538,Revenue,CCHD,Contracts & Commissioning Team,Other Small Contracts,Medico Nursing & Homecare Ltd,18000.00, 05-Nov-2010
539,Revenue,CCHD,Contracts & Commissioning Team,Other Small Contracts,Medico Nursing & Homecare Ltd,18000.00, 12-Nov-2010
540,Revenue,CCHD,Contracts & Commissioning Team,Other Small Contracts,Medico Nursing & Homecare Ltd,18000.00, 19-Nov-2010
541,Revenue,CCHD,Contracts & Commissioning Team,Other Small Contracts,Medico Nursing & Homecare Ltd,18000.00, 26-Nov-2010
542,Revenue,CCHD,Home Care Purch North,Other Small Contracts,Medico Nursing & Homecare Ltd,2753.52, 03-Nov-2010
543,Revenue,CCHD,Home Care Purch North,Other Small Contracts,Medico Nursing & Homecare Ltd,573.72, 03-Nov-2010
544,Revenue,CCHD,Home Care Purch North,Other Small Contracts,Medico Nursing & Homecare Ltd,565.52, 02-Nov-2010
545,Revenue,CCHD,Home Care Purch North,Other Small Contracts,Medico Nursing & Homecare Ltd,655.73, 02-Nov-2010
546,Revenue,CCHD,Home Care Purch North,Other Small Contracts,Medico Nursing & Homecare Ltd,573.72, 03-Nov-2010
547,Revenue,CCHD,Home Care Purch North,Other Small Contracts,Medico Nursing & Homecare Ltd,1081.77, 02-Nov-2010
548,Revenue,CCHD,Home Care Purch North,Other Small Contracts,Medico Nursing & Homecare Ltd,680.60, 02-Nov-2010
549,Revenue,CCHD,Elderly MH Home Care,Other Small Contracts,Medico Nursing & Homecare Ltd,1491.53, 02-Nov-2010
550,Revenue,CCHD,Home Care Purch North,Other Small Contracts,Medico Nursing & Homecare Ltd,844.03, 02-Nov-2010
551,Revenue,CCHD,Home Care Purch North,Other Small Contracts,Medico Nursing & Homecare Ltd,766.33, 03-Nov-2010
552,Revenue,CCHD,Home Care Purch North,Other Small Contracts,Medico Nursing & Homecare Ltd,573.72, 02-Nov-2010
553,Revenue,CCHD,Home Care Purch North,Other Small Contracts,Medico Nursing & Homecare Ltd,1164.04, 02-Nov-2010
554,Revenue,CCHD,Home Care Purch North,Other Small Contracts,Medico Nursing & Homecare Ltd,1836.24, 03-Nov-2010
555,Revenue,CCHD,Home Care Purch North,Other Small Contracts,Medico Nursing & Homecare Ltd,573.72, 03-Nov-2010
556,Revenue,CCHD,Home Care Purch North,Other Small Contracts,Medico Nursing & Homecare Ltd,656.00, 03-Nov-2010
557,Revenue,CCHD,Home Care Purch North,Other Small Contracts,Medico Nursing & Homecare Ltd,1110.80, 03-Nov-2010
558,Revenue,CCHD,Day Care - North,Private & Voluntary Day Care,Medico Nursing & Homecare Ltd,229.46, 03-Nov-2010
559,Revenue,CCHD,Home Care Purch South,Other Small Contracts,Medico Nursing & Homecare Ltd,1000.04, 02-Nov-2010
560,Revenue,CCHD,PWLD Home Care - Under 65 - KH,Private & Voluntary Home Care,Medico Nursing & Homecare Ltd,901.68, 02-Nov-2010
561,Revenue,CCHD,Home Care Purch South,Other Small Contracts,Medico Nursing & Homecare Ltd,2065.84, 03-Nov-2010
562,Revenue,CCHD,Home Care Purch North,Other Small Contracts,Medico Nursing & Homecare Ltd,643.20, 02-Nov-2010
563,Revenue,CCHD,Home Care Purch South,Other Small Contracts,Medico Nursing & Homecare Ltd,590.12, 02-Nov-2010
564,Revenue,CCHD,Home Care Purch South,Other Small Contracts,Medico Nursing & Homecare Ltd,688.52, 02-Nov-2010
565,Revenue,CCHD,Home Care Purch South,Other Small Contracts,Medico Nursing & Homecare Ltd,1032.64, 02-Nov-2010
566,Revenue,CCHD,Elderly MH Home Care,Other Small Contracts,Medico Nursing & Homecare Ltd,1835.68, 03-Nov-2010
567,Revenue,CCHD,Home Care Purch South,Other Small Contracts,Medico Nursing & Homecare Ltd,1639.28, 03-Nov-2010
568,Revenue,CCHD,Home Care Purch North,Other Small Contracts,Medico Nursing & Homecare Ltd,2423.63, 12-Nov-2010
569,Revenue,CCHD,Home Care Purch North,Other Small Contracts,Medico Nursing & Homecare Ltd,2407.24, 12-Nov-2010
570,Revenue,CCHD,Home Care Purch North,Other Small Contracts,Medico Nursing & Homecare Ltd,2423.63, 12-Nov-2010
571,Revenue,CCHD,Home Care Purch North,Other Small Contracts,Medico Nursing & Homecare Ltd,2407.24, 12-Nov-2010
572,Revenue,CCHD,Home Care Purch North,Other Small Contracts,Medico Nursing & Homecare Ltd,2407.24, 12-Nov-2010
573,Revenue,CCHD,Home Care Purch North,Other Small Contracts,Medico Nursing & Homecare Ltd,2407.24, 12-Nov-2010
574,Revenue,CCHD,Home Care Purch North,Other Small Contracts,Medico Nursing & Homecare Ltd,2407.24, 12-Nov-2010
575,Revenue,CCHD,Home Care Purch North,Other Small Contracts,Medico Nursing & Homecare Ltd,2436.92, 12-Nov-2010
576,Revenue,CCHD,Home Care Purch North,Other Small Contracts,Medico Nursing & Homecare Ltd,2436.92, 12-Nov-2010
577,Revenue,CCHD,Home Care Purch North,Other Small Contracts,Medico Nursing & Homecare Ltd,2436.92, 12-Nov-2010
578,Revenue,CCHD,Home Care Purch North,Other Small Contracts,Medico Nursing & Homecare Ltd,1927.73, 05-Nov-2010
579,Revenue,CCHD,Home Care Purch North,Other Small Contracts,Medico Nursing & Homecare Ltd,1927.73, 12-Nov-2010
580,Revenue,CCHD,Home Care Purch North,Other Small Contracts,Medico Nursing & Homecare Ltd,1927.73, 09-Nov-2010
581,Revenue,CCHD,Home Care Purch North,Other Small Contracts,Medico Nursing & Homecare Ltd,1927.73, 26-Nov-2010
582,Revenue,CCHD,Home Care Purch North,Other Small Contracts,Medico Nursing & Homecare Ltd,1927.73, 19-Nov-2010
583,Revenue,CCHD,Home Care Purch North,Other Small Contracts,Medico Nursing & Homecare Ltd,2407.24, 12-Nov-2010
584,Revenue,CCHD,Supporting People Programme,Grants to Voluntary Bodies,Merlin Housing Society,2172.80, 08-Nov-2010
585,Revenue,CCHD,Supporting People Programme,Grants to Voluntary Bodies,Merlin Housing Society,2172.80, 08-Nov-2010
586,Revenue,CCHD,Supporting People Programme,Grants to Voluntary Bodies,Merlin Housing Society,3452.84, 08-Nov-2010
587,Revenue,CCHD,Intermediate Care Accommodation,Other Supplies & Services,Merlin Housing Society,781.08, 01-Nov-2010
588,Revenue,CCHD,Intermediate Care Accommodation,Other Supplies & Services,Merlin Housing Society,880.79, 03-Nov-2010
589,Revenue,CCHD,Contracts & Commissioning Team,Other Small Contracts,Milestones Outreach Dementia Services,2000.00, 05-Nov-2010
590,Revenue,CCHD,Contracts & Commissioning Team,Other Small Contracts,Milestones Outreach Dementia Services,2000.00, 12-Nov-2010
591,Revenue,CCHD,Contracts & Commissioning Team,Other Small Contracts,Milestones Outreach Dementia Services,2000.00, 19-Nov-2010
592,Revenue,CCHD,Contracts & Commissioning Team,Other Small Contracts,Milestones Outreach Dementia Services,2000.00, 26-Nov-2010
593,Revenue,CCHD,Rent in Advance,Other Supplies & Services,Individual,623.31, 26-Nov-2010
594,Revenue,CCHD,Rent in Advance,Other Supplies & Services,Individual,623.31, 16-Nov-2010
595,Revenue,CCHD,Tenancy Start Up Scheme,Other Supplies & Services,Individual,596.65, 09-Nov-2010
596,Revenue,CCHD,Rent in Advance,Other Supplies & Services,Individual,621.23, 16-Nov-2010
597,Revenue,CCHD,Day Care - South,Private & Voluntary Day Care,Mrs B Kimber,529.63, 12-Nov-2010
598,Revenue,CCHD,Day Care - South,Private & Voluntary Day Care,Mrs B Kimber,505.72, 12-Nov-2010
599,Revenue,CCHD,Day Care - South,Private & Voluntary Day Care,Mrs B Kimber,525.98, 12-Nov-2010
600,Revenue,CCHD,Home Care Purch North,Other Small Contracts,Mrs B Kimber,1685.96, 10-Nov-2010
601,Revenue,CCHD,Elderly MH Home Care,Other Small Contracts,Mrs B Kimber,618.18, 09-Nov-2010
602,Revenue,CCHD,Home Care Purch North,Other Small Contracts,Mrs B Kimber,1655.88, 16-Nov-2010
603,Revenue,CCHD,Elderly MH non-res purchasing,Private & Voluntary Day Care,Mrs B Kimber,799.48, 17-Nov-2010
604,Revenue,CCHD,Home Care Purch North,Other Small Contracts,Mrs B Kimber,634.20, 16-Nov-2010
605,Revenue,CCHD,Supported Living - KD,Private & Voluntary Home Care,Mrs B Kimber,3765.69, 23-Nov-2010
606,Revenue,CCHD,Day Care - South,Private & Voluntary Day Care,Mrs B Kimber,872.13, 12-Nov-2010
607,Revenue,CCHD,Day Care - South,Private & Voluntary Day Care,Mrs B Kimber,804.28, 12-Nov-2010
608,Revenue,CCHD,Elderly MH non-res purchasing,Private & Voluntary Day Care,Mrs B Kimber,545.10, 29-Nov-2010
609,Revenue,CCHD,Elderly MH non-res purchasing,Private & Voluntary Day Care,Mrs B Kimber,826.73, 29-Nov-2010
610,Revenue,CCHD,Day Care - South,Private & Voluntary Day Care,Mrs B Kimber,759.27, 12-Nov-2010
611,Revenue,CCHD,Day Care - South,Private & Voluntary Day Care,Mrs B Kimber,759.27, 12-Nov-2010
612,Revenue,CCHD,Elderly MH non-res purchasing,Private & Voluntary Day Care,Mrs B Kimber,506.18, 29-Nov-2010
613,Revenue,CCHD,Supported Living - KH,Private & Voluntary Home Care,Mrs B Kimber,1604.27, 22-Nov-2010
614,Revenue,CCHD,Supported Living - KH,Private & Voluntary Home Care,Mrs B Kimber,1787.30, 16-Nov-2010
615,Revenue,CCHD,Supported Living - KD,Private & Voluntary Home Care,Mrs B Kimber,3631.26, 23-Nov-2010
616,Revenue,CCHD,Supported Living - KD,Private & Voluntary Home Care,Mrs B Kimber,804.02, 23-Nov-2010
617,Revenue,CCHD,Purchase of Non-Res Care - KD,Private & Voluntary Day Care,Mrs B Kimber,761.87, 23-Nov-2010
618,Revenue,CCHD,Supported Living - PS,Private & Voluntary Home Care,Mrs B Kimber,11366.38, 15-Nov-2010
619,Revenue,CCHD,Supported Living - KD,Private & Voluntary Home Care,Mrs B Kimber,3765.25, 15-Nov-2010
620,Revenue,CCHD,Day Care - South,Private & Voluntary Day Care,Mrs B Kimber,899.38, 30-Nov-2010
621,Revenue,CCHD,Day Care - North,Private & Voluntary Day Care,Mrs B Kimber,1367.12, 26-Nov-2010
622,Revenue,CCHD,Supported Living - PS,Private & Voluntary Home Care,Mrs B Kimber,1936.54, 23-Nov-2010
623,Revenue,CCHD,Supported Living - KH,Private & Voluntary Home Care,Mrs B Kimber,1494.54, 24-Nov-2010
624,Revenue,CCHD,Supported Living - PS,Private & Voluntary Home Care,Mrs B Kimber,1140.01, 22-Nov-2010
625,Revenue,CCHD,Supported Living - KD,Private & Voluntary Home Care,Mrs B Kimber,1444.21, 24-Nov-2010
626,Revenue,CCHD,Contracts & Commissioning Team,Other Small Contracts,Mrs B Kimber,6500.00, 05-Nov-2010
627,Revenue,CCHD,Contracts & Commissioning Team,Other Small Contracts,Mrs B Kimber,6500.00, 12-Nov-2010
628,Revenue,CCHD,Contracts & Commissioning Team,Other Small Contracts,Mrs B Kimber,6500.00, 22-Nov-2010
629,Revenue,CCHD,Contracts & Commissioning Team,Other Small Contracts,Mrs B Kimber,6500.00, 26-Nov-2010
630,Revenue,CCHD,Home Care Purch North,Other Small Contracts,Mrs B Kimber,1051.20, 16-Nov-2010
631,Revenue,CCHD,Contracts & Commissioning Team,Other Small Contracts,Mrs B Kimber,1500.00, 01-Nov-2010
632,Revenue,CCHD,Younger MH non-res purchasing,Private & Voluntary Home Care,Individual,1676.00, 22-Nov-2010
633,Revenue,CCHD,Adult Placement Scheme,Adults - Family Support,Individual,673.08, 30-Nov-2010
634,Revenue,CCHD,Supporting People Programme,Grants to Voluntary Bodies,Individual,885.76, 08-Nov-2010
635,Revenue,CCHD,Purchase of Non-Res Care - PS,Private & Voluntary Day Care,Individual,927.60, 23-Nov-2010
636,Revenue,CCHD,Adult Placement Scheme,Adults - Family Support,Individual,1882.02, 25-Nov-2010
637,Revenue,CCHD,Woodleaze,Furniture & Fittings Loose,Multimount Ltd,1617.00, 24-Nov-2010
638,Revenue,CCHD,Alexandra Way,Cleaning & Domestic Supplies,Muzzell Healthcare,570.61, 09-Nov-2010
639,Revenue,CCHD,Home Care - General,Uniforms & Clothing,Muzzell Healthcare,796.85, 23-Nov-2010
640,Revenue,CCHD,Younger MH non-res purchasing,Private & Voluntary Day Care,NAS Services Limited,1427.91, 22-Nov-2010
641,Revenue,CCHD,Younger MH non-res purchasing,Private & Voluntary Day Care,NAS Services Limited,530.49, 22-Nov-2010
642,Revenue,CCHD,Younger MH non-res purchasing,Private & Voluntary Day Care,NAS Services Limited,603.20, 22-Nov-2010
643,Revenue,CCHD,Contracts & Commissioning Team,Other Small Contracts,Network Health & Social Care,2500.00, 05-Nov-2010
644,Revenue,CCHD,Contracts & Commissioning Team,Other Small Contracts,Network Health & Social Care,2500.00, 12-Nov-2010
645,Revenue,CCHD,Contracts & Commissioning Team,Other Small Contracts,Network Health & Social Care,2500.00, 19-Nov-2010
646,Revenue,CCHD,Contracts & Commissioning Team,Other Small Contracts,Network Health & Social Care,2500.00, 26-Nov-2010
647,Revenue,CCHD,Supporting People Programme,Grants to Voluntary Bodies,Next Link,2076.60, 08-Nov-2010
648,Revenue,CCHD,Tenancy Start Up Scheme,Other Supplies & Services,Individual,623.00, 17-Nov-2010
649,Revenue,CCHD,S28A - Under 65,Residential Homes,North Lincolnshire Council,3561.83, 09-Nov-2010
650,Revenue,CCHD,Chipping Sodbury Memorial Day,Electricity,npower,654.06, 26-Nov-2010
651,Revenue,CCHD,Home Care Purch South,Other Small Contracts,Nursing Solutions Limited,810.00, 15-Nov-2010
652,Revenue,CCHD,Elderly MH Home Care,Other Small Contracts,Nursing Solutions Limited,372.60, 15-Nov-2010
653,Revenue,CCHD,Elderly MH non-res purchasing,Private & Voluntary Day Care,Nursing Solutions Limited,251.10, 15-Nov-2010
654,Revenue,CCHD,Home Care Purch South,Other Small Contracts,Nursing Solutions Limited,886.95, 15-Nov-2010
655,Revenue,CCHD,Elderly MH Home Care,Other Small Contracts,Nursing Solutions Limited,190.35, 15-Nov-2010
656,Revenue,CCHD,Elderly MH non-res purchasing,Private & Voluntary Day Care,Nursing Solutions Limited,162.00, 15-Nov-2010
657,Revenue,CCHD,Home Care Purch South,Other Small Contracts,Nursing Solutions Limited,899.10, 15-Nov-2010
658,Revenue,CCHD,Elderly MH Home Care,Other Small Contracts,Nursing Solutions Limited,356.40, 15-Nov-2010
659,Revenue,CCHD,Elderly MH non-res purchasing,Private & Voluntary Day Care,Nursing Solutions Limited,178.20, 15-Nov-2010
660,Revenue,CCHD,Home Care Purch South,Other Small Contracts,Nursing Solutions Limited,927.45, 19-Nov-2010
661,Revenue,CCHD,Elderly MH Home Care,Other Small Contracts,Nursing Solutions Limited,575.10, 19-Nov-2010
662,Revenue,CCHD,Elderly MH non-res purchasing,Private & Voluntary Day Care,Nursing Solutions Limited,182.25, 19-Nov-2010
663,Revenue,CCHD,Home Care Purch South,Other Small Contracts,Nursing Solutions Limited,1028.70, 19-Nov-2010
664,Revenue,CCHD,Elderly MH Home Care,Other Small Contracts,Nursing Solutions Limited,449.55, 19-Nov-2010
665,Revenue,CCHD,Elderly MH non-res purchasing,Private & Voluntary Day Care,Nursing Solutions Limited,259.20, 19-Nov-2010
666,Revenue,CCHD,Housing Advice,Grants to Voluntary Bodies,Orchard & Shipman PLC,13333.25, 15-Nov-2010
667,Revenue,CCHD,Housing Advice,Grants to Voluntary Bodies,Orchard & Shipman PLC,13333.25, 26-Nov-2010
668,Revenue,CCHD,Hydrotherapy,Cleaning & Domestic Supplies,PHS Group Plc,461.04, 24-Nov-2010
669,Revenue,CCHD,Home Care Purch North,Other Small Contracts,Premier Homecare Limited,9596.14, 09-Nov-2010
670,Revenue,CCHD,Day Care - North,Private & Voluntary Day Care,Premier Homecare Limited,1088.00, 09-Nov-2010
671,Revenue,CCHD,Elderly MH Home Care,Other Small Contracts,Premier Homecare Limited,244.80, 09-Nov-2010
672,Revenue,CCHD,Elderly MH non-res purchasing,Private & Voluntary Day Care,Premier Homecare Limited,195.84, 09-Nov-2010
673,Revenue,CCHD,Home Care Purch North,Other Small Contracts,Premier Homecare Limited,8986.88, 24-Nov-2010
674,Revenue,CCHD,Day Care - North,Private & Voluntary Day Care,Premier Homecare Limited,1294.72, 24-Nov-2010
675,Revenue,CCHD,Elderly MH Home Care,Other Small Contracts,Premier Homecare Limited,353.60, 24-Nov-2010
676,Revenue,CCHD,Elderly MH non-res purchasing,Private & Voluntary Day Care,Premier Homecare Limited,87.04, 24-Nov-2010
677,Revenue,CCHD,Home Care Purch North,Other Small Contracts,Premier Homecare Limited,8557.12, 11-Nov-2010
678,Revenue,CCHD,Day Care - North,Private & Voluntary Day Care,Premier Homecare Limited,1033.60, 11-Nov-2010
679,Revenue,CCHD,Elderly MH Home Care,Other Small Contracts,Premier Homecare Limited,244.80, 11-Nov-2010
680,Revenue,CCHD,Elderly MH non-res purchasing,Private & Voluntary Day Care,Premier Homecare Limited,261.12, 11-Nov-2010
681,Revenue,CCHD,Home Care Purch North,Other Small Contracts,Premier Homecare Limited,9797.44, 19-Nov-2010
682,Revenue,CCHD,Day Care - North,Private & Voluntary Day Care,Premier Homecare Limited,1332.80, 19-Nov-2010
683,Revenue,CCHD,Elderly MH Home Care,Other Small Contracts,Premier Homecare Limited,179.52, 19-Nov-2010
684,Revenue,CCHD,Elderly MH non-res purchasing,Private & Voluntary Day Care,Premier Homecare Limited,250.24, 19-Nov-2010
685,Revenue,CCHD,Home Care Purch North,Other Small Contracts,Premier Homecare Limited,9764.80, 24-Nov-2010
686,Revenue,CCHD,Day Care - North,Private & Voluntary Day Care,Premier Homecare Limited,1332.80, 24-Nov-2010
687,Revenue,CCHD,Elderly MH Home Care,Other Small Contracts,Premier Homecare Limited,179.52, 24-Nov-2010
688,Revenue,CCHD,Elderly MH non-res purchasing,Private & Voluntary Day Care,Premier Homecare Limited,184.96, 24-Nov-2010
689,Revenue,CCHD,Alexandra Way,Agency Staff (Admin/Support Staff) Pay,Prestige Nursing,588.41, 02-Nov-2010
690,Revenue,CCHD,Contracts & Commissioning Team,Other Small Contracts,Prestige Nursing,4500.00, 05-Nov-2010
691,Revenue,CCHD,Contracts & Commissioning Team,Other Small Contracts,Prestige Nursing,4500.00, 12-Nov-2010
692,Revenue,CCHD,Contracts & Commissioning Team,Other Small Contracts,Prestige Nursing,4500.00, 19-Nov-2010
693,Revenue,CCHD,Contracts & Commissioning Team,Other Small Contracts,Prestige Nursing,4500.00, 26-Nov-2010
694,Revenue,CCHD,Kingswood District Office,Postages,Purchase Power,513.00, 09-Nov-2010
695,Revenue,CCHD,The Chase,Radio Pager/Mobile Phones,R G D King (Electrical) Co Limited,498.00, 25-Nov-2010
696,Revenue,CCHD,Elderly Mental Health,Agency Staff (Admin/Support Staff) Pay,Randstad Care Ltd,1072.00, 17-Nov-2010
697,Revenue,CCHD,Care Management Team - South,Agency Staff (Operational)/PCT Pay,Randstad Care Ltd,1369.92, 12-Nov-2010
698,Revenue,CCHD,Elderly Mental Health,Agency Staff (Admin/Support Staff) Pay,Randstad Care Ltd,1184.00, 19-Nov-2010
699,Revenue,CCHD,Care Management Team - South,Agency Staff (Operational)/PCT Pay,Randstad Care Ltd,1336.91, 12-Nov-2010
700,Revenue,CCHD,Elderly Mental Health,Agency Staff (Admin/Support Staff) Pay,Randstad Care Ltd,960.00, 19-Nov-2010
701,Revenue,CCHD,Care Management Team - South,Agency Staff (Operational)/PCT Pay,Randstad Care Ltd,1237.88, 26-Nov-2010
702,Revenue,CCHD,Care Management Team - South,Agency Staff (Operational)/PCT Pay,Randstad Care Ltd,1336.91, 22-Nov-2010
703,Revenue,CCHD,Care Management Team - South,Agency Staff (Operational)/PCT Pay,Randstad Care Ltd,1221.37, 26-Nov-2010
704,Revenue,CCHD,Care Management Team - South,Agency Staff (Operational)/PCT Pay,Randstad Care Ltd,1171.86, 30-Nov-2010
705,Revenue,CCHD,Care Management Team - South,Agency Staff (Operational)/PCT Pay,Randstad Care Ltd,1171.86, 30-Nov-2010
706,Revenue,CCHD,Carer's Grant - MH <65,Carers Breaks & Services,Rethink,595.00, 12-Nov-2010
707,Revenue,CCHD,Training - Adult Services,Training Expenses,Rhodes Training & Development,777.00, 11-Nov-2010
708,Revenue,CCHD,Kerr House NRC,Postages,Royal Mail Group Plc,500.00, 30-Nov-2010
709,Revenue,CCHD,Learning Difficulties Development Fund,Other Supplies & Services,Royal Mencap Society,608.00, 24-Nov-2010
710,Revenue,CCHD,Learning Difficulties PSL,Rent,Individual,1400.00, 01-Nov-2010
711,Revenue,CCHD,Charlton,"Provisions (Food, etc)",School Milk Services Limited,572.96, 08-Nov-2010
712,Revenue,CCHD,Woodleaze,"Provisions (Food, etc)",School Milk Services Limited,828.06, 29-Nov-2010
713,Revenue,CCHD,Charlton,"Provisions (Food, etc)",School Milk Services Limited,684.75, 29-Nov-2010
714,Revenue,CCHD,Supported Living - PS,Private & Voluntary Home Care,Selborne Care Ltd,1843.68, 15-Nov-2010
715,Revenue,CCHD,Purchase of Non-Res Care - KD,Private & Voluntary Day Care,Selborne Care Ltd,794.64, 23-Nov-2010
716,Revenue,CCHD,Supported Living - PS,Private & Voluntary Home Care,Selborne Care Ltd,1379.84, 01-Nov-2010
717,Revenue,CCHD,Purchase of Non-Res Care - KD,Private & Voluntary Day Care,Selborne Care Ltd,1494.68, 23-Nov-2010
718,Revenue,CCHD,Supported Living - PS,Private & Voluntary Home Care,Selborne Care Ltd,4876.30, 01-Nov-2010
719,Revenue,CCHD,Supported Living - PS,Private & Voluntary Home Care,Selborne Care Ltd,4997.44, 19-Nov-2010
720,Revenue,CCHD,Purchase of Non-Res Care - KD,Private & Voluntary Day Care,Selborne Care Ltd,901.28, 23-Nov-2010
721,Revenue,CCHD,Supported Living - KH,Private & Voluntary Home Care,Selborne Care Ltd,1149.40, 01-Nov-2010
722,Revenue,CCHD,Purchase of Non-Res Care - KD,Private & Voluntary Day Care,Selborne Care Ltd,889.44, 23-Nov-2010
723,Revenue,CCHD,Supported Living - PS,Private & Voluntary Home Care,Selborne Care Ltd,564.48, 01-Nov-2010
724,Revenue,CCHD,Supported Living - PS,Private & Voluntary Home Care,Selborne Care Ltd,4713.80, 01-Nov-2010
725,Revenue,CCHD,Purchase of Non-Res Care - KD,Private & Voluntary Day Care,Selborne Care Ltd,778.72, 23-Nov-2010
726,Revenue,CCHD,Supported Living - KH,Private & Voluntary Home Care,Selborne Care Ltd,627.20, 01-Nov-2010
727,Revenue,CCHD,Supported Living - PS,Private & Voluntary Home Care,Selborne Care Ltd,1951.76, 01-Nov-2010
728,Revenue,CCHD,Purchase of Non-Res Care - KD,Private & Voluntary Day Care,Selborne Care Ltd,609.28, 23-Nov-2010
729,Revenue,CCHD,Supported Living - KD,Private & Voluntary Home Care,Selborne Care Ltd,1118.80, 23-Nov-2010
730,Revenue,CCHD,Purchase of Non-Res Care - KH,Private & Voluntary Day Care,Servoca Nursing & Care,1392.54, 24-Nov-2010
731,Revenue,CCHD,Purchase of Non-Res Care - KH,Private & Voluntary Day Care,Servoca Nursing & Care,1392.54, 24-Nov-2010
732,Revenue,CCHD,Purchase of Non-Res Care - KH,Private & Voluntary Day Care,Servoca Nursing & Care,640.64, 24-Nov-2010
733,Revenue,CCHD,Block Contracts,Nursing Homes,Shaw Healthcare Specialist Services Ltd,14992.15, 12-Nov-2010
734,Revenue,CCHD,Occupational Therapy Team,Interpreting & Translation,Signingworks,557.20, 04-Nov-2010
735,Revenue,CCHD,Supported Living - KD,Private & Voluntary Home Care,Smile Independent Living Support Limited,1019.97, 23-Nov-2010
736,Revenue,CCHD,Purchase of Non-Res Care - KD,Private & Voluntary Day Care,Smile Independent Living Support Limited,803.55, 15-Nov-2010
737,Revenue,CCHD,Supported Living - KD,Private & Voluntary Home Care,Smile Independent Living Support Limited,921.73, 15-Nov-2010
738,Revenue,CCHD,Purchase of Non-Res Care - KD,Private & Voluntary Day Care,Smile Independent Living Support Limited,1134.10, 15-Nov-2010
739,Revenue,CCHD,Purchase of Non-Res Care - KD,Private & Voluntary Day Care,Smile Independent Living Support Limited,650.90, 15-Nov-2010
740,Revenue,CCHD,Purchase of Non-Res Care - KD,Private & Voluntary Day Care,Smile Independent Living Support Limited,1278.68, 15-Nov-2010
741,Revenue,CCHD,Supported Living - PS,Private & Voluntary Home Care,Smile Independent Living Support Limited,511.05, 22-Nov-2010
742,Revenue,CCHD,Purchase of Non-Res Care - KD,Private & Voluntary Day Care,Smile Independent Living Support Limited,969.10, 15-Nov-2010
743,Revenue,CCHD,Purchase of Non-Res Care - KD,Private & Voluntary Day Care,Smile Independent Living Support Limited,523.10, 16-Nov-2010
744,Revenue,CCHD,Purchase of Non-Res Care - KD,Private & Voluntary Day Care,Smile Independent Living Support Limited,1132.40, 15-Nov-2010
745,Revenue,CCHD,Purchase of Non-Res Care - KD,Private & Voluntary Day Care,Smile Independent Living Support Limited,970.80, 15-Nov-2010
746,Revenue,CCHD,Purchase of Non-Res Care - KD,Private & Voluntary Day Care,Smile Independent Living Support Limited,598.15, 24-Nov-2010
747,Revenue,CCHD,Purchase of Non-Res Care - KD,Private & Voluntary Day Care,Smile Independent Living Support Limited,817.62, 15-Nov-2010
748,Revenue,CCHD,Supported Living - KD,Private & Voluntary Home Care,Smile Independent Living Support Limited,4227.51, 15-Nov-2010
749,Revenue,CCHD,Supported Living - KD,Private & Voluntary Home Care,Smile Independent Living Support Limited,4218.66, 24-Nov-2010
750,Revenue,CCHD,Day Care - South,Private & Voluntary Day Care,South Gloucestershire Crossroads,655.85, 30-Nov-2010
751,Revenue,CCHD,Contracts & Commissioning Team,Other Small Contracts,South Gloucestershire Crossroads,5000.00, 05-Nov-2010
752,Revenue,CCHD,Contracts & Commissioning Team,Other Small Contracts,South Gloucestershire Crossroads,5000.00, 12-Nov-2010
753,Revenue,CCHD,Contracts & Commissioning Team,Other Small Contracts,South Gloucestershire Crossroads,5000.00, 19-Nov-2010
754,Revenue,CCHD,Contracts & Commissioning Team,Other Small Contracts,South Gloucestershire Crossroads,5000.00, 26-Nov-2010
755,Revenue,CCHD,Delayed Transfers of Care Gran,Other Supplies & Services,South Gloucestershire Primary Care Trust,35000.00, 02-Nov-2010
756,Revenue,CCHD,Carer`s Grant - Adult Care,Other Supplies & Services,South Gloucestershire Primary Care Trust,750.00, 19-Nov-2010
757,Revenue,CCHD,Minor Adaptations Service,Daily Living Equipment,Southern Electric Contracting Limited,218.70, 25-Nov-2010
758,Revenue,CCHD,Minor Adaptations Service,Maintenance by Contractor,Southern Electric Contracting Limited,549.32, 25-Nov-2010
759,Revenue,CCHD,Minor Adaptations Service,Daily Living Equipment,Southern Electric Contracting Limited,36.45, 25-Nov-2010
760,Revenue,CCHD,Kerr House,Cleaning & Domestic Supplies,Spot On Supplies (Hygiene) Limited,535.17, 23-Nov-2010
761,Revenue,CCHD,Kerr House,Laundry Services,Spot On Supplies (Hygiene) Limited,47.76, 23-Nov-2010
762,Revenue,CCHD,Younger MH non-res purchasing,Private & Voluntary Day Care,Supported Independance Ltd,3460.00, 05-Nov-2010
763,Revenue,CCHD,Supporting People Programme,Grants to Voluntary Bodies,Supported Independent Living Schemes,4465.92, 22-Nov-2010
764,Revenue,CCHD,Supporting People Programme,Grants to Voluntary Bodies,Supported Independent Living Schemes,5388.32, 22-Nov-2010
765,Revenue,CCHD,Supported Living - PS,Private & Voluntary Home Care,Supported Independent Living Schemes,642.84, 19-Nov-2010
766,Revenue,CCHD,Supported Living - PS,Private & Voluntary Home Care,Supported Independent Living Schemes,605.40, 04-Nov-2010
767,Revenue,CCHD,Supporting People Programme,Grants to Voluntary Bodies,Survive,3017.28, 09-Nov-2010
768,Revenue,CCHD,Supporting People Programme,Grants to Voluntary Bodies,Survive,10156.16, 09-Nov-2010
769,Revenue,CCHD,Southmead Hospital Team,Agency Staff (Operational)/PCT Pay,SWIM Recruitment,1057.50, 22-Nov-2010
770,Revenue,CCHD,Southmead Hospital Team,Agency Staff (Operational)/PCT Pay,SWIM Recruitment,547.50, 24-Nov-2010
771,Revenue,CCHD,Southmead Hospital Team,Agency Staff (Operational)/PCT Pay,SWIM Recruitment,900.00, 22-Nov-2010
772,Revenue,CCHD,Southmead Hospital Team,Agency Staff (Operational)/PCT Pay,SWIM Recruitment,922.50, 11-Nov-2010
773,Revenue,CCHD,Housing Needs,Agency Staff (Admin/Support Staff) Pay,SWIM Recruitment,457.07, 11-Nov-2010
774,Revenue,CCHD,Housing Needs,Agency Staff (Admin/Support Staff) Pay,SWIM Recruitment,580.40, 11-Nov-2010
775,Revenue,CCHD,Southmead Hospital Team,Agency Staff (Operational)/PCT Pay,SWIM Recruitment,847.50, 12-Nov-2010
776,Revenue,CCHD,Southmead Hospital Team,Agency Staff (Operational)/PCT Pay,SWIM Recruitment,877.50, 12-Nov-2010
777,Revenue,CCHD,Housing Needs,Agency Staff (Admin/Support Staff) Pay,SWIM Recruitment,464.32, 11-Nov-2010
778,Revenue,CCHD,Southmead Hospital Team,Agency Staff (Operational)/PCT Pay,SWIM Recruitment,870.00, 22-Nov-2010
779,Revenue,CCHD,Housing Needs,Agency Staff (Admin/Support Staff) Pay,SWIM Recruitment,457.07, 25-Nov-2010
780,Revenue,CCHD,Southmead Hospital Team,Computer Equipment - Purchase,SWIM Recruitment,885.00, 24-Nov-2010
781,Revenue,CCHD,Housing Needs,Agency Staff (Admin/Support Staff) Pay,SWIM Recruitment,536.87, 30-Nov-2010
782,Revenue,CCHD,Home Care Purch South,Other Small Contracts,Tender Home Care Limited,1966.92, 04-Nov-2010
783,Revenue,CCHD,Home Care Purch North,Other Small Contracts,Tender Home Care Limited,3902.83, 04-Nov-2010
784,Revenue,CCHD,Day Care - South,Private & Voluntary Day Care,Tender Home Care Limited,70.88, 04-Nov-2010
785,Revenue,CCHD,Day Care - North,Private & Voluntary Day Care,Tender Home Care Limited,279.09, 04-Nov-2010
786,Revenue,CCHD,Elderly MH Home Care,Other Small Contracts,Tender Home Care Limited,199.35, 04-Nov-2010
787,Revenue,CCHD,Home Care Purch South,Other Small Contracts,Tender Home Care Limited,1740.99, 12-Nov-2010
788,Revenue,CCHD,Home Care Purch North,Other Small Contracts,Tender Home Care Limited,3823.09, 12-Nov-2010
789,Revenue,CCHD,Day Care - South,Private & Voluntary Day Care,Tender Home Care Limited,70.88, 12-Nov-2010
790,Revenue,CCHD,Day Care - North,Private & Voluntary Day Care,Tender Home Care Limited,230.36, 12-Nov-2010
791,Revenue,CCHD,Elderly MH Home Care,Other Small Contracts,Tender Home Care Limited,150.62, 12-Nov-2010
792,Revenue,CCHD,Home Care Purch South,Other Small Contracts,Tender Home Care Limited,1678.97, 15-Nov-2010
793,Revenue,CCHD,Home Care Purch North,Other Small Contracts,Tender Home Care Limited,3459.83, 15-Nov-2010
794,Revenue,CCHD,Day Care - South,Private & Voluntary Day Care,Tender Home Care Limited,70.88, 15-Nov-2010
795,Revenue,CCHD,Day Care - North,Private & Voluntary Day Care,Tender Home Care Limited,230.36, 15-Nov-2010
796,Revenue,CCHD,Home Care Purch South,Other Small Contracts,Tender Home Care Limited,1767.57, 25-Nov-2010
797,Revenue,CCHD,Home Care Purch North,Other Small Contracts,Tender Home Care Limited,3247.19, 25-Nov-2010
798,Revenue,CCHD,Day Care - South,Private & Voluntary Day Care,Tender Home Care Limited,70.88, 25-Nov-2010
799,Revenue,CCHD,Day Care - North,Private & Voluntary Day Care,Tender Home Care Limited,230.36, 25-Nov-2010
800,Revenue,CCHD,Brandon Day Care,Private & Voluntary Day Care,The Brandon Trust,48498.00, 12-Nov-2010
801,Revenue,CCHD,Purchase of Non-Res Care - KH,Private & Voluntary Day Care,The Brandon Trust,971.24, 24-Nov-2010
802,Revenue,CCHD,Day Care - North,Private & Voluntary Day Care,The Brandon Trust,672.64, 26-Nov-2010
803,Revenue,CCHD,Day Care - South,Private & Voluntary Day Care,The Brandon Trust,622.20, 22-Nov-2010
804,Revenue,CCHD,Purchase of Non-Res Care - PS,Private & Voluntary Day Care,The Brandon Trust,746.64, 19-Nov-2010
805,Revenue,CCHD,Purchase of Non-Res Care - KH,Private & Voluntary Day Care,The Brandon Trust,3609.06, 24-Nov-2010
806,Revenue,CCHD,Purchase of Non-Res Care - KH,Private & Voluntary Day Care,The Brandon Trust,2716.76, 24-Nov-2010
807,Revenue,CCHD,Purchase of Non-Res Care - PS,Private & Voluntary Day Care,The Brandon Trust,1400.48, 19-Nov-2010
808,Revenue,CCHD,Purchase of Non-Res Care - KH,Private & Voluntary Day Care,The Brandon Trust,733.50, 24-Nov-2010
809,Revenue,CCHD,Purchase of Non-Res Care - KD,Private & Voluntary Day Care,The Brandon Trust,912.25, 24-Nov-2010
810,Revenue,CCHD,Purchase of Non-Res Care - PS,Private & Voluntary Day Care,The Brandon Trust,1042.79, 15-Nov-2010
811,Revenue,CCHD,Brandon Day Care,Private & Voluntary Day Care,The Brandon Trust,33099.00, 30-Nov-2010
812,Revenue,CCHD,Supporting People Programme,Grants to Voluntary Bodies,The Hatch Camphill Community,22197.32, 08-Nov-2010
813,Revenue,CCHD,NTS Grant - Trainee Social Wor,Training Expenses,The Open University,2600.00, 11-Nov-2010
814,Revenue,CCHD,Contracts & Commissioning Team,Other Small Contracts,The Royal Bank of Scotland Commercial,5000.00, 05-Nov-2010
815,Revenue,CCHD,Contracts & Commissioning Team,Other Small Contracts,The Royal Bank of Scotland Commercial,5000.00, 12-Nov-2010
816,Revenue,CCHD,Contracts & Commissioning Team,Other Small Contracts,The Royal Bank of Scotland Commercial,5000.00, 19-Nov-2010
817,Revenue,CCHD,Contracts & Commissioning Team,Other Small Contracts,The Royal Bank of Scotland Commercial,5000.00, 26-Nov-2010
818,Revenue,CCHD,Learning Difficulties PSL,Rent,Individual,650.00, 22-Nov-2010
819,Revenue,CCHD,Learning Difficulties PSL,Rent,Individual,750.00, 22-Nov-2010
820,Revenue,CCHD,Learning Difficulties PSL,Rent,Individual,488.00, 22-Nov-2010
821,Revenue,CCHD,Podiatry Equipment,Other Supplies & Services,Timesco of London Ltd,502.45, 01-Nov-2010
822,Revenue,CCHD,Community Support - MH Under 6,Preventative Assistance,Top Dog,576.00, 09-Nov-2010
823,Revenue,CCHD,Tenancy Start Up Scheme,Other Supplies & Services,Total Lettings Limited,1295.00, 08-Nov-2010
824,Revenue,CCHD,Emersons Green Offices,Rent,Trustees Of The Thorner 1990 Settlement,1892.50, 10-Nov-2010
825,Revenue,CCHD,Preventative Technology Grant,Other Supplies & Services,Tunstall Telecom Limited,898.88, 16-Nov-2010
826,Revenue,CCHD,Preventative Technology Grant,Other Supplies & Services,Tunstall Telecom Limited,575.00, 23-Nov-2010
827,Revenue,CCHD,Minor Adaptations Service,Daily Living Equipment,TVM Cheltenham Limited,1140.00, 05-Nov-2010
828,Revenue,CCHD,Minor Adaptations Service,Maintenance by Contractor,TVM Cheltenham Limited,1037.17, 02-Nov-2010
829,Revenue,CCHD,Minor Adaptations Service,Maintenance by Contractor,TVM Cheltenham Limited,739.85, 02-Nov-2010
830,Revenue,CCHD,Minor Adaptations Service,Maintenance by Contractor,TVM Cheltenham Limited,634.35, 04-Nov-2010
831,Revenue,CCHD,Minor Adaptations Service,Daily Living Equipment,TVM Cheltenham Limited,655.00, 04-Nov-2010
832,Revenue,CCHD,Minor Adaptations Service,Daily Living Equipment,TVM Cheltenham Limited,872.00, 04-Nov-2010
833,Revenue,CCHD,Minor Adaptations Service,Prop.Serv. General Repairs,TVM Cheltenham Limited,811.00, 26-Nov-2010
834,Revenue,CCHD,Minor Adaptations Service,Maintenance by Contractor,TVM Cheltenham Limited,1063.50, 30-Nov-2010
835,Revenue,CCHD,S28A - Under 65,Residential Homes,United Response,2488.80, 24-Nov-2010
836,Revenue,CCHD,HRD Grant - Main,Training Expenses,University Of The West Of England,610.00, 03-Nov-2010
837,Revenue,CCHD,Homelessness Grant,Agency Staff (Admin/Support Staff) Pay,Venn Group Limited,669.33, 22-Nov-2010
838,Revenue,CCHD,Homelessness Grant,Agency Staff (Admin/Support Staff) Pay,Venn Group Limited,669.33, 11-Nov-2010
839,Revenue,CCHD,Homelessness Grant,Agency Staff (Admin/Support Staff) Pay,Venn Group Limited,669.33, 11-Nov-2010
840,Revenue,CCHD,Homelessness Grant,Agency Staff (Admin/Support Staff) Pay,Venn Group Limited,669.33, 22-Nov-2010
841,Revenue,CCHD,Homelessness Grant,Agency Staff (Admin/Support Staff) Pay,Venn Group Limited,669.33, 25-Nov-2010
842,Revenue,CCHD,Kingswood District Office,Telephones,Vodafone Corporate Limited,652.88, 09-Nov-2010
843,Revenue,CCHD,Mental Capacity Act - Advocacy,Radio Pager/Mobile Phones,Vodafone Corporate Limited,125.24, 24-Nov-2010
844,Revenue,CCHD,Home Care - General,Radio Pager/Mobile Phones,Vodafone Corporate Limited,8.21, 24-Nov-2010
845,Revenue,CCHD,Directorate,Radio Pager/Mobile Phones,Vodafone Corporate Limited,122.50, 24-Nov-2010
846,Revenue,CCHD,Finance,Radio Pager/Mobile Phones,Vodafone Corporate Limited,165.89, 24-Nov-2010
847,Revenue,CCHD,Finance - FAB,Radio Pager/Mobile Phones,Vodafone Corporate Limited,157.96, 24-Nov-2010
848,Revenue,CCHD,Contracts & Commissioning Team,Radio Pager/Mobile Phones,Vodafone Corporate Limited,41.72, 24-Nov-2010
849,Revenue,CCHD,Performance Management Support,Radio Pager/Mobile Phones,Vodafone Corporate Limited,72.58, 24-Nov-2010
850,Revenue,CCHD,Communications Service,Radio Pager/Mobile Phones,Vodafone Corporate Limited,20.99, 24-Nov-2010
851,Revenue,CCHD,Planning and Partnerships Team,Radio Pager/Mobile Phones,Vodafone Corporate Limited,93.57, 24-Nov-2010
852,Revenue,CCHD,Information Systems Team,Radio Pager/Mobile Phones,Vodafone Corporate Limited,75.26, 24-Nov-2010
853,Revenue,CCHD,Information Systems - Software,Radio Pager/Mobile Phones,Vodafone Corporate Limited,8.43, 24-Nov-2010
854,Revenue,CCHD,Senior Management,Radio Pager/Mobile Phones,Vodafone Corporate Limited,97.75, 24-Nov-2010
855,Revenue,CCHD,Supporting People,Radio Pager/Mobile Phones,Vodafone Corporate Limited,24.18, 24-Nov-2010
856,Revenue,CCHD,Housing GF Directorates,Radio Pager/Mobile Phones,Vodafone Corporate Limited,48.43, 24-Nov-2010
857,Revenue,CCHD,Private Sector Housing,Radio Pager/Mobile Phones,Vodafone Corporate Limited,100.09, 24-Nov-2010
858,Revenue,CCHD,Housing Needs,Radio Pager/Mobile Phones,Vodafone Corporate Limited,17.85, 24-Nov-2010
859,Revenue,CCHD,Private Sector Housing,Radio Pager/Mobile Phones,Vodafone Corporate Limited,886.58, 11-Nov-2010
860,Revenue,CCHD,Kingswood District Office,Telephones,Vodafone Corporate Limited,459.25, 19-Nov-2010
861,Revenue,CCHD,Kerr House,Office Supplies & Equipment,W & A Ross Limited,532.88, 29-Nov-2010
862,Revenue,CCHD,Supporting People Programme,Grants to Voluntary Bodies,Willowbank Care Limited,7444.00, 16-Nov-2010
863,Revenue,CCHD,Supported Living - KD,Private & Voluntary Day Care,Willowbank Care Limited,6191.18, 10-Nov-2010
864,Revenue,CCHD,Supported Living - KD,Private & Voluntary Home Care,Willowbank Care Limited,6191.18, 16-Nov-2010
865,Revenue,CCHD,Supported Living - KD,Private & Voluntary Home Care,Willowbank Care Limited,2092.30, 22-Nov-2010
866,Revenue,CCHD,Supported Living - KD,Private & Voluntary Home Care,Willowbank Care Limited,4523.08, 09-Nov-2010
867,Revenue,CCHD,Supported Living - KD,Private & Voluntary Home Care,Willowbank Care Limited,4523.08, 22-Nov-2010
868,Revenue,CCHD,Supported Living - KD,Private & Voluntary Home Care,Willowbank Care Limited,2048.78, 22-Nov-2010
869,Revenue,CCHD,Supported Living - KD,Private & Voluntary Home Care,Willowbank Care Limited,2598.36, 09-Nov-2010
870,Revenue,CCHD,Supported Living - KD,Private & Voluntary Home Care,Willowbank Care Limited,2598.36, 22-Nov-2010
871,Revenue,CCHD,Supported Living (S28a),Private & Voluntary Home Care,Willowbank Care Limited,4371.02, 15-Nov-2010
872,Revenue,CCHD,Supported Living (S28a),Private & Voluntary Home Care,Willowbank Care Limited,4371.02, 29-Nov-2010
873,Revenue,CCHD,Supported Living (S28a),Private & Voluntary Home Care,Willowbank Care Limited,4616.50, 12-Nov-2010
874,Revenue,CCHD,Supported Living (S28a),Private & Voluntary Home Care,Willowbank Care Limited,4616.50, 29-Nov-2010
875,Revenue,CCHD,Supported Living (S28a),Private & Voluntary Home Care,Willowbank Care Limited,4616.50, 30-Nov-2010
876,Revenue,CCHD,Supported Living - KD,Private & Voluntary Day Care,Willowbank Care Limited,2999.98, 09-Nov-2010
877,Revenue,CCHD,Supported Living - KD,Private & Voluntary Home Care,Willowbank Care Limited,2999.98, 16-Nov-2010
878,Revenue,CCHD,Supported Living - KD,Private & Voluntary Home Care,Willowbank Care Limited,3024.78, 09-Nov-2010
879,Revenue,CCHD,Supported Living - KD,Private & Voluntary Home Care,Willowbank Care Limited,3024.78, 16-Nov-2010
880,Revenue,CCHD,Supported Living - KD,Private & Voluntary Home Care,Willowbank Care Limited,2251.48, 10-Nov-2010
881,Revenue,CCHD,Supported Living - KD,Private & Voluntary Home Care,Willowbank Care Limited,2251.48, 16-Nov-2010
882,Revenue,CCHD,Day Care - North,Private & Voluntary Day Care,Windmill Care Limited,720.00, 19-Nov-2010
,,,,,,2501584.11,
883,Revenue,CECR,Infrastructure - Discr,Furniture & Fittings Loose,8 Solutions Limited,700.00, 26-Nov-2010
884,Revenue,CECR,C&RS Streetcare Helpdesk,Prop.Serv. General Repairs,A E Horder (Contracting) Limited,747.69, 26-Nov-2010
885,Revenue,CECR,Benefits Administration,Agency Staff (Admin/Support Staff) Pay,Accurate Assessments Ltd,1000.00, 05-Nov-2010
886,Revenue,CECR,Benefits Administration,Agency Staff (Admin/Support Staff) Pay,Accurate Assessments Ltd,850.00, 11-Nov-2010
887,Revenue,CECR,Corporate Legal Section,Membership Fees,Achilles Information Limited,612.50, 04-Nov-2010
888,Revenue,CECR,VFM and Procurement,Membership Fees,Achilles Information Limited,612.50, 04-Nov-2010
889,Revenue,CECR,Design Materials,Printing & Stationery,Ambassador Litho Limited,3673.00, 19-Nov-2010
890,Revenue,CECR,Improvement Fund,Project Funding,Aspire EU,1000.00, 16-Nov-2010
891,Revenue,CECR,Organisational Improvement,Project Funding,Aspire EU,1166.50, 02-Nov-2010
892,Revenue,CECR,Buildings Holding a/c,Fees - General,Atkins Limited,22594.97, 04-Nov-2010
893,Revenue,CECR,District Audit Fees,Audit Fees,Audit Commision,27734.00, 19-Nov-2010
894,Revenue,CECR,District Audit Fees,Audit Fees,Audit Commision,31263.50, 19-Nov-2010
895,Revenue,CECR,District Audit Fees,Audit Fees,Audit Commision,35912.50, 26-Nov-2010
896,Revenue,CECR,Service Reviews Prog - ICT Costs,Software Purchase,Autodata Products Plc,20897.61, 11-Nov-2010
897,Revenue,CECR,Service Reviews Prog - ICT Costs,Software Support & Maintenance,Autodata Products Plc,780.16, 11-Nov-2010
898,Revenue,CECR,Service Reviews Prog - ICT Costs,Computer Equipment - Purchase,B2Net Ltd,38462.70, 19-Nov-2010
899,Revenue,CECR,Service Reviews Prog - ICT Costs,Consultants Fees,B2Net Ltd,2000.00, 19-Nov-2010
900,Revenue,CECR,Pre 1996 Pensions,Annual Pension,Bath & North East Somerset Dist Council,9057.70, 04-Nov-2010
901,Revenue,CECR,Pre 1996 Pensions,Annual Pension,Bath & North East Somerset Dist Council,9155.33, 04-Nov-2010
902,Revenue,CECR,Pre 1996 Pensions,Annual Pension,Bath & North East Somerset Dist Council,15531.53, 04-Nov-2010
903,Revenue,CECR,Pre 1996 Pensions,Annual Pension,Bath & North East Somerset Dist Council,33432.17, 04-Nov-2010
904,Revenue,CECR,Benefits Administration,Training Expenses,Bath & North East Somerset Dist Council,1080.00, 25-Nov-2010
905,Revenue,CECR,Corporate Legal Section,Legal Fees,Bevan Brittan LLP,2127.00, 25-Nov-2010
906,Revenue,CECR,Corporate Legal Section,Legal Fees,Bevan Brittan LLP,850.00, 25-Nov-2010
907,Revenue,CECR,Benefits Administration,Printing & Stationery,Bibby Factors Manchester Limited,1100.00, 01-Nov-2010
908,Revenue,CECR,Electoral Expenses,Printing & Stationery,Bolmoor Industries Limited,487.76, 09-Nov-2010
909,Revenue,CECR,Members Support,Other Premises Costs,Bristol Sound Systems Limited,534.00, 25-Nov-2010
910,Revenue,CECR,Badminton Road Offices,Maintenance by Contractor,C M B Maintenance Services Limited,8774.25, 24-Nov-2010
911,Revenue,CECR,Benefits Administration,Printing & Stationery,CACI Limited,5049.49, 26-Nov-2010
912,Revenue,CECR,Registration Services,Computer Equipment - Purchase,Capita Business Services Ltd,960.00, 10-Nov-2010
913,Revenue,CECR,One Stop Shops - General,Computer Equipment - Purchase,Capita Business Services Ltd,2560.00, 10-Nov-2010
914,Revenue,CECR,Exchequer Administration,Radio Pager/Mobile Phones,Capita Business Services Ltd,2585.00, 10-Nov-2010
915,Revenue,CECR,Registration Services,Computer Equipment - Purchase,Capita Business Services Ltd,120.00, 10-Nov-2010
916,Revenue,CECR,One Stop Shops - General,Computer Equipment - Purchase,Capita Business Services Ltd,320.00, 10-Nov-2010
917,Revenue,CECR,Exchequer Administration,Radio Pager/Mobile Phones,Capita Business Services Ltd,320.00, 10-Nov-2010
918,Revenue,CECR,PSD Mech Engineers,Agency Staff (Operational)/PCT Pay,CDI Anders Elite Limited,1050.00, 04-Nov-2010
919,Revenue,CECR,PSD Mech Engineers,Agency Staff (Operational)/PCT Pay,CDI Anders Elite Limited,1050.00, 09-Nov-2010
920,Revenue,CECR,PSD Mech Engineers,Agency Staff (Operational)/PCT Pay,CDI Anders Elite Limited,1134.00, 15-Nov-2010
921,Revenue,CECR,PSD Mech Engineers,Agency Staff (Operational)/PCT Pay,CDI Anders Elite Limited,1050.00, 30-Nov-2010
922,Revenue,CECR,Member Development,External Lecturers Fees,CMS Training Limited,890.00, 25-Nov-2010
923,Revenue,CECR,Customer Relations,Training Expenses,Commission for Local Admin in England,1025.00, 25-Nov-2010
924,Revenue,CECR,Service Reviews Prog - ICT Costs,Training Expenses,ComputerWorld Training Limited,2290.00, 09-Nov-2010
925,Revenue,CECR,Applications - Discr,Training Expenses,ComputerWorld Training Limited,1145.00, 12-Nov-2010
926,Revenue,CECR,Applications - Discr,Training Expenses,ComputerWorld Training Limited,1145.00, 12-Nov-2010
927,Revenue,CECR,CRB Checks,CRB Vetting Fees,Criminal Records Bureau,1080.00, 17-Nov-2010
928,Revenue,CECR,PSD Information Management,Software Purchase,Davian Systems Ltd,600.00, 25-Nov-2010
929,Revenue,CECR,C&RS Streetcare Helpdesk,Computer Equipment - Purchase,DSG Retail Limited,1140.00, 18-Nov-2010
930,Revenue,CECR,Scanning,Computer Equipment - Purchase,DSG Retail Limited,13.75, 18-Nov-2010
931,Revenue,CECR,Director of Corporate Resources,Rent,Eastwood Park Limited,2503.16, 18-Nov-2010
932,Revenue,CECR,C&RS Streetcare Helpdesk,Agency Staff (Admin/Support Staff) Pay,Eden Brown Limited,968.50, 04-Nov-2010
933,Revenue,CECR,Revenues Recovery Division,Agency Staff (Admin/Support Staff) Pay,Eden Brown Limited,851.00, 04-Nov-2010
934,Revenue,CECR,C&RS Streetcare Helpdesk,Agency Staff (Admin/Support Staff) Pay,Eden Brown Limited,949.00, 11-Nov-2010
935,Revenue,CECR,Revenues Recovery Division,Agency Staff (Admin/Support Staff) Pay,Eden Brown Limited,851.00, 11-Nov-2010
936,Revenue,CECR,Benefits Administration,Agency Staff (Admin/Support Staff) Pay,Eden Brown Limited,1040.00, 11-Nov-2010
937,Revenue,CECR,C&RS Streetcare Helpdesk,Agency Staff (Admin/Support Staff) Pay,Eden Brown Limited,955.50, 18-Nov-2010
938,Revenue,CECR,Revenues Recovery Division,Agency Staff (Admin/Support Staff) Pay,Eden Brown Limited,851.00, 18-Nov-2010
939,Revenue,CECR,Benefits Administration,Agency Staff (Admin/Support Staff) Pay,Eden Brown Limited,1040.00, 18-Nov-2010
940,Revenue,CECR,C&RS Streetcare Helpdesk,Agency Staff (Admin/Support Staff) Pay,Eden Brown Limited,897.00, 29-Nov-2010
941,Revenue,CECR,Revenues Recovery Division,Agency Staff (Admin/Support Staff) Pay,Eden Brown Limited,833.75, 24-Nov-2010
942,Revenue,CECR,Benefits Administration,Agency Staff (Admin/Support Staff) Pay,Eden Brown Limited,1040.00, 24-Nov-2010
943,Revenue,CECR,Chief Executive,Books & Publications,Emap Communications Ltd,58.08, 11-Nov-2010
944,Revenue,CECR,Corporate Communications,Books & Publications,Emap Communications Ltd,58.08, 11-Nov-2010
945,Revenue,CECR,LADS Divisional Management,Books & Publications,Emap Communications Ltd,88.00, 11-Nov-2010
946,Revenue,CECR,Democratic and Statutory Services,Books & Publications,Emap Communications Ltd,88.00, 11-Nov-2010
947,Revenue,CECR,Director of Corporate Resources,Books & Publications,Emap Communications Ltd,59.84, 11-Nov-2010
948,Revenue,CECR,Head of Corporate Finance,Books & Publications,Emap Communications Ltd,176.00, 11-Nov-2010
949,Revenue,CECR,Revenues and Benefits Management,Books & Publications,Emap Communications Ltd,176.00, 11-Nov-2010
950,Revenue,CECR,Combined Group Budgets,Books & Publications,Emap Communications Ltd,176.00, 11-Nov-2010
951,Revenue,CECR,Applications - Discr,Training Expenses,Focus on Training,1295.00, 01-Nov-2010
952,Revenue,CECR,PSD Mech Engineers,Prop.Serv. General Repairs,Frank Bowtell Limited,868.21, 10-Nov-2010
953,Revenue,CECR,Travellers Site - Patchway,Prop.Serv. General Repairs,Frank Bowtell Limited,376.10, 18-Nov-2010
954,Revenue,CECR,Travellers Site - Winterbourne,Prop.Serv. General Repairs,Frank Bowtell Limited,376.10, 18-Nov-2010
955,Revenue,CECR,Travellers Site - Winterbourne,Prop.Serv. General Repairs,Frank Bowtell Limited,636.80, 04-Nov-2010
956,Revenue,CECR,Travellers Site - Winterbourne,Prop.Serv. General Repairs,Frank Bowtell Limited,596.80, 26-Nov-2010
957,Revenue,CECR,PSD Clerk of Works,Agency Staff (Operational)/PCT Pay,Franklyn Recruitment Limited,102.00, 18-Nov-2010
958,Revenue,CECR,PSD Clerk of Works,Agency Staff (Admin/Support Staff) Pay,Franklyn Recruitment Limited,408.00, 18-Nov-2010
959,Revenue,CECR,PSD Project Management,Agency Staff (Admin/Support Staff) Pay,Franklyn Recruitment Limited,1162.50, 03-Nov-2010
960,Revenue,CECR,PSD Clerk of Works,Agency Staff (Admin/Support Staff) Pay,Franklyn Recruitment Limited,459.00, 10-Nov-2010
961,Revenue,CECR,PSD Project Management,Agency Staff (Admin/Support Staff) Pay,Franklyn Recruitment Limited,1375.63, 10-Nov-2010
962,Revenue,CECR,PSD Clerk of Works,Agency Staff (Admin/Support Staff) Pay,Franklyn Recruitment Limited,471.75, 18-Nov-2010
963,Revenue,CECR,PSD Project Management,Agency Staff (Admin/Support Staff) Pay,Franklyn Recruitment Limited,1181.88, 18-Nov-2010
964,Revenue,CECR,Democratic and Statutory Services,Training Expenses,G4S Assessment Services (UK) Ltd,1560.00, 22-Nov-2010
965,Revenue,CECR,Corporate Financial Services,Advertising for Recruitment,Gatenby Sanderson Limited,4675.00, 26-Nov-2010
966,Revenue,CECR,Corporate Financial Services,Advertising for Recruitment,Gatenby Sanderson Limited,2314.00, 29-Nov-2010
967,Revenue,CECR,Broad Lane Depot,Building Improvements,Geoff Lewis Flooring Limited,2480.00, 12-Nov-2010
968,Revenue,CECR,Benefits Administration,Agency Staff (Admin/Support Staff) Pay,Giant Group Plc,999.00, 02-Nov-2010
969,Revenue,CECR,Benefits Administration,Agency Staff (Admin/Support Staff) Pay,Giant Group Plc,999.00, 11-Nov-2010
970,Revenue,CECR,Benefits Administration,Agency Staff (Admin/Support Staff) Pay,Giant Group Plc,783.00, 12-Nov-2010
971,Revenue,CECR,Benefits Administration,Agency Staff (Admin/Support Staff) Pay,Giant Group Plc,911.25, 16-Nov-2010
972,Revenue,CECR,Benefits Administration,Agency Staff (Admin/Support Staff) Pay,Giant Group Plc,999.00, 24-Nov-2010
973,Revenue,CECR,C&RS Streetcare Helpdesk,Public Transport - Staff,Hanham Taxis,1140.00, 08-Nov-2010
974,Revenue,CECR,Corporate Training Growth,External Lecturers Fees,Harrison Hall Associates,975.00, 04-Nov-2010
975,Revenue,CECR,Organisational Improvement,Project Funding,Harrison Hall Associates,1100.00, 30-Nov-2010
976,Revenue,CECR,C&RS Streetcare Helpdesk,Agency Staff (Admin/Support Staff) Pay,Hays Specialist Recruitment,491.25, 10-Nov-2010
977,Revenue,CECR,C&RS Streetcare Helpdesk,Agency Staff (Admin/Support Staff) Pay,Hays Specialist Recruitment,510.90, 19-Nov-2010
978,Revenue,CECR,C&RS Streetcare Helpdesk,Agency Staff (Admin/Support Staff) Pay,Hays Specialist Recruitment,551.02, 11-Nov-2010
979,Revenue,CECR,C&RS Streetcare Helpdesk,Agency Staff (Admin/Support Staff) Pay,Hays Specialist Recruitment,500.50, 11-Nov-2010
980,Revenue,CECR,C&RS Streetcare Helpdesk,Agency Staff (Admin/Support Staff) Pay,Hays Specialist Recruitment,513.50, 19-Nov-2010
981,Revenue,CECR,C&RS Streetcare Helpdesk,Agency Staff (Admin/Support Staff) Pay,Hays Specialist Recruitment,480.35, 11-Nov-2010
982,Revenue,CECR,PSD Quantity Surveyors,Agency Staff (Admin/Support Staff) Pay,Hays Specialist Recruitment,948.00, 11-Nov-2010
983,Revenue,CECR,C&RS Streetcare Helpdesk,Agency Staff (Admin/Support Staff) Pay,Hays Specialist Recruitment,510.90, 11-Nov-2010
984,Revenue,CECR,C&RS Streetcare Helpdesk,Agency Staff (Admin/Support Staff) Pay,Hays Specialist Recruitment,513.50, 11-Nov-2010
985,Revenue,CECR,C&RS Streetcare Helpdesk,Agency Staff (Admin/Support Staff) Pay,Hays Specialist Recruitment,561.88, 11-Nov-2010
986,Revenue,CECR,C&RS Streetcare Helpdesk,Agency Staff (Admin/Support Staff) Pay,Hays Specialist Recruitment,584.27, 12-Nov-2010
987,Revenue,CECR,C&RS Streetcare Helpdesk,Agency Staff (Admin/Support Staff) Pay,Hays Specialist Recruitment,510.90, 18-Nov-2010
988,Revenue,CECR,C&RS Streetcare Helpdesk,Agency Staff (Admin/Support Staff) Pay,Hays Specialist Recruitment,458.90, 25-Nov-2010
989,Revenue,CECR,PSD Quantity Surveyors,Agency Staff (Admin/Support Staff) Pay,Hays Specialist Recruitment,726.80, 19-Nov-2010
990,Revenue,CECR,PSD Quantity Surveyors,Agency Staff (Admin/Support Staff) Pay,Hays Specialist Recruitment,995.40, 25-Nov-2010
991,Revenue,CECR,C&RS Streetcare Helpdesk,Agency Staff (Admin/Support Staff) Pay,Hays Specialist Recruitment,458.90, 25-Nov-2010
992,Revenue,CECR,C&RS Streetcare Helpdesk,Agency Staff (Admin/Support Staff) Pay,Hays Specialist Recruitment,513.50, 25-Nov-2010
993,Revenue,CECR,C&RS Streetcare Helpdesk,Agency Staff (Admin/Support Staff) Pay,Hays Specialist Recruitment,510.90, 25-Nov-2010
994,Revenue,CECR,C&RS Streetcare Helpdesk,Agency Staff (Admin/Support Staff) Pay,Hays Specialist Recruitment,572.75, 25-Nov-2010
995,Revenue,CECR,C&RS Streetcare Helpdesk,Agency Staff (Admin/Support Staff) Pay,Hays Specialist Recruitment,494.00, 25-Nov-2010
996,Revenue,CECR,Service Reviews Prog - ICT Costs,Agency Staff (Admin/Support Staff) Pay,Huxley Assoc Ltd,1119.90, 04-Nov-2010
997,Revenue,CECR,Service Reviews Prog - ICT Costs,Agency Staff (Admin/Support Staff) Pay,Huxley Assoc Ltd,1119.90, 04-Nov-2010
998,Revenue,CECR,Service Reviews Prog - ICT Costs,Agency Staff (Admin/Support Staff) Pay,Huxley Assoc Ltd,1399.88, 04-Nov-2010
999,Revenue,CECR,Service Reviews Prog - ICT Costs,Agency Staff (Admin/Support Staff) Pay,Huxley Assoc Ltd,3955.00, 03-Nov-2010
1000,Revenue,CECR,Service Reviews Prog - ICT Costs,Agency Staff (Admin/Support Staff) Pay,Huxley Assoc Ltd,1119.90, 03-Nov-2010
1001,Revenue,CECR,Service Reviews Prog - ICT Costs,Agency Staff (Admin/Support Staff) Pay,Huxley Assoc Ltd,1399.88, 10-Nov-2010
1002,Revenue,CECR,Service Reviews Prog - ICT Costs,Agency Staff (Admin/Support Staff) Pay,Huxley Assoc Ltd,3360.00, 16-Nov-2010
1003,Revenue,CECR,Service Reviews Prog - ICT Costs,Agency Staff (Admin/Support Staff) Pay,Huxley Assoc Ltd,1549.20, 30-Nov-2010
1004,Revenue,CECR,Service Reviews Prog - ICT Costs,Agency Staff (Admin/Support Staff) Pay,Huxley Assoc Ltd,2493.75, 25-Nov-2010
1005,Revenue,CECR,Service Reviews Prog - ICT Costs,Agency Staff (Admin/Support Staff) Pay,Huxley Assoc Ltd,1997.16, 26-Nov-2010
1006,Revenue,CECR,Service Reviews Prog - ICT Costs,Software Purchase,ILX Group Plc,762.20, 23-Nov-2010
1007,Revenue,CECR,Staff Health & Welfare,Occupational Health Fees,IMASS Group,9526.49, 23-Nov-2010
1008,Revenue,CECR,Thornbury Council Offices,Other Supplies & Services,Infinity FX Ltd,1644.99, 04-Nov-2010
1009,Revenue,CECR,Corporate Training Growth,External Lecturers Fees,Inspired2learn,10800.00, 16-Nov-2010
1010,Revenue,CECR,Staff Health & Welfare,Medical Fees,Interchange,1672.00, 04-Nov-2010
1011,Revenue,CECR,Corporate Legal Section,Software Support & Maintenance,Lexis Nexis Visualfiles,6040.37, 30-Nov-2010
1012,Revenue,CECR,Thornbury Council Offices,Contract Cleaning,Mags Cleaning Services,475.00, 30-Nov-2010
1013,Revenue,CECR,Electoral Expenses,Other Supplies & Services,Mail & Print Services Limited,658.70, 05-Nov-2010
1014,Revenue,CECR,Election Services,Printing & Stationery,Mail & Print Services Limited,698.15, 19-Nov-2010
1015,Revenue,CECR,Customer Services - Comm,Software Support & Maintenance,Marval Software Limited,14868.00, 19-Nov-2010
1016,Revenue,CECR,Benefits Fraud,Legal Fees,Individual,760.00, 02-Nov-2010
1017,Revenue,CECR,Standards Committee Costs,Legal Fees,Individual,1650.00, 30-Nov-2010
1018,Revenue,CECR,HROD`s Pooled Budgets,Books & Publications,News 4 U,253.45, 18-Nov-2010
1019,Revenue,CECR,HROD`s Pooled Budgets,Books & Publications,News 4 U,12.95, 18-Nov-2010
1020,Revenue,CECR,Corporate Legal Section,Books & Publications,News 4 U,242.90, 18-Nov-2010
1021,Revenue,CECR,Head of Corporate Finance,Books & Publications,News 4 U,224.50, 18-Nov-2010
1022,Revenue,CECR,PSD Business Management,Books & Publications,News 4 U,99.75, 18-Nov-2010
1023,Revenue,CECR,Members Support,Books & Publications,News 4 U,99.75, 18-Nov-2010
1024,Revenue,CECR,Combined Group Budgets,Books & Publications,News 4 U,146.34, 18-Nov-2010
1025,Revenue,CECR,Total Place Funding,Project Funding,North Somerset Council,80000.00, 04-Nov-2010
1026,Revenue,CECR,QSD Document Management,Software Support & Maintenance,Northgate Information Solutions UK Limited,690.00, 19-Nov-2010
1027,Revenue,CECR,Benefits Administration,Consultants Fees,Northgate Information Solutions UK Limited,2000.00, 19-Nov-2010
1028,Revenue,CECR,Learning & Resources,Software Support & Maintenance,NorthgateArinso UK Limited,453.00, 30-Nov-2010
1029,Revenue,CECR,Badminton Road Offices,Security Systems,NSG Associates Ltd,1412.76, 09-Nov-2010
1030,Revenue,CECR,Broad Lane Depot,Security Systems,NSG Associates Ltd,494.40, 09-Nov-2010
1031,Revenue,CECR,Badminton Road Offices,Security Systems,NSG Associates Ltd,1467.76, 09-Nov-2010
1032,Revenue,CECR,Badminton Road Offices,Security Systems,NSG Associates Ltd,1398.28, 09-Nov-2010
1033,Revenue,CECR,Thornbury Council Offices,Security Systems,NSG Associates Ltd,542.36, 03-Nov-2010
1034,Revenue,CECR,Badminton Road Offices,Security Systems,NSG Associates Ltd,1580.67, 09-Nov-2010
1035,Revenue,CECR,Thornbury Council Offices,Security Systems,NSG Associates Ltd,993.98, 10-Nov-2010
1036,Revenue,CECR,Broad Lane Depot,Security Systems,NSG Associates Ltd,448.05, 10-Nov-2010
1037,Revenue,CECR,Badminton Road Offices,Security Systems,NSG Associates Ltd,1386.71, 11-Nov-2010
1038,Revenue,CECR,Broad Lane Depot,Security Systems,NSG Associates Ltd,448.05, 17-Nov-2010
1039,Revenue,CECR,Badminton Road Offices,Security Systems,NSG Associates Ltd,1273.80, 17-Nov-2010
1040,Revenue,CECR,Broad Lane Depot,Security Systems,NSG Associates Ltd,499.55, 23-Nov-2010
1041,Revenue,CECR,Badminton Road Offices,Security Systems,NSG Associates Ltd,1386.71, 23-Nov-2010
1042,Revenue,CECR,Broad Lane Depot,Security Systems,NSG Associates Ltd,448.05, 03-Nov-2010
1043,Revenue,CECR,Nibley Court Offices,Security Systems,NSG Installations Ltd,651.05, 09-Nov-2010
1044,Revenue,CECR,Nibley Court Offices,Security Systems,NSG Installations Ltd,670.55, 09-Nov-2010
1045,Revenue,CECR,Nibley Court Offices,Security Systems,NSG Installations Ltd,573.05, 03-Nov-2010
1046,Revenue,CECR,Nibley Court Offices,Security Systems,NSG Installations Ltd,466.95, 10-Nov-2010
1047,Revenue,CECR,Nibley Court Offices,Security Systems,NSG Installations Ltd,449.55, 17-Nov-2010
1048,Revenue,CECR,Ridgewood Site,Security Systems,NSG Monitoring Ltd,458.04, 10-Nov-2010
1049,Revenue,CECR,Ridgewood Site,Security Systems,NSG Monitoring Ltd,437.22, 15-Nov-2010
1050,Revenue,CECR,Fees incurred on sale of fixed assets,Other Premises Costs,NSG Monitoring Ltd,733.20, 16-Nov-2010
1051,Revenue,CECR,Chief Executive,Radio Pager/Mobile Phones,O2 (UK) Limited,82.79, 23-Nov-2010
1052,Revenue,CECR,Business Support Services Management,Radio Pager/Mobile Phones,O2 (UK) Limited,43.95, 23-Nov-2010
1053,Revenue,CECR,Print Service Overheads,Radio Pager/Mobile Phones,O2 (UK) Limited,9.14, 23-Nov-2010
1054,Revenue,CECR,Director of Corporate Resources,Radio Pager/Mobile Phones,O2 (UK) Limited,25.69, 23-Nov-2010
1055,Revenue,CECR,ICT Business Services - Discr,Radio Pager/Mobile Phones,O2 (UK) Limited,26.10, 23-Nov-2010
1056,Revenue,CECR,Operations Manager - Discr,Radio Pager/Mobile Phones,O2 (UK) Limited,38.31, 23-Nov-2010
1057,Revenue,CECR,Infrastructure - Discr,Radio Pager/Mobile Phones,O2 (UK) Limited,868.36, 23-Nov-2010
1058,Revenue,CECR,Customer Services - Discr,Radio Pager/Mobile Phones,O2 (UK) Limited,130.16, 23-Nov-2010
1059,Revenue,CECR,Infrastructure - Discr,Consultants Fees,ONI Plc,1500.00, 26-Nov-2010
1060,Revenue,CECR,GIS Team,Licences,Ordnance Survey,26268.83, 25-Nov-2010
1061,Revenue,CECR,Colour,Equipment Maintenance,Portrayal Limited,547.72, 19-Nov-2010
1062,Revenue,CECR,High Volume - Thornbury,Equipment Maintenance,Portrayal Limited,415.65, 19-Nov-2010
1063,Revenue,CECR,High Volume - Kingswood,Equipment Maintenance,Portrayal Limited,184.97, 19-Nov-2010
1064,Revenue,CECR,Self Service,Equipment Maintenance,Portrayal Limited,3350.47, 19-Nov-2010
1065,Revenue,CECR,Self Service,Equipment Maintenance,Portrayal Limited,1479.27, 19-Nov-2010
1066,Revenue,CECR,Self Service,Equipment Maintenance,Portrayal Limited,1441.41, 19-Nov-2010
1067,Revenue,CECR,Franking and Postage Costs,Postages,Postage By Phone-Pitney Bowes Ltd,6008.00, 15-Nov-2010
1068,Revenue,CECR,Franking and Postage Costs,Postages,Postage By Phone-Pitney Bowes Ltd,3009.00, 09-Nov-2010
1069,Revenue,CECR,Franking and Postage Costs,Postages,Postage By Phone-Pitney Bowes Ltd,5000.00, 19-Nov-2010
1070,Revenue,CECR,Thornbury Computer Suite,Equipment Maintenance,Power Technique Service Limited,853.00, 12-Nov-2010
1071,Revenue,CECR,Paper,Printing & Stationery,Premier Paper Group Limited,668.52, 05-Nov-2010
1072,Revenue,CECR,Paper,Printing & Stationery,Premier Paper Group Limited,4250.00, 19-Nov-2010
1073,Revenue,CECR,SR Enabling -  External support,Consultants Fees,Price Waterhouse Coopers LLp,14288.80, 17-Nov-2010
1074,Revenue,CECR,Electoral Expenses,Other Supplies & Services,Prism,531.00, 09-Nov-2010
1075,Revenue,CECR,Badminton Road Offices,Prop.Serv. General Repairs,Professional Hygiene Ltd,560.40, 30-Nov-2010
1076,Revenue,CECR,Badminton Road Offices,Prop.Serv. General Repairs,Professional Hygiene Ltd,537.72, 19-Nov-2010
1077,Revenue,CECR,QSD Controls,Consultants Fees,Richard Ward,1800.00, 25-Nov-2010
1078,Revenue,CECR,QSD Controls,Consultants Fees,Richard Ward,1800.00, 05-Nov-2010
1079,Revenue,CECR,Election Services,Postages,Royal Mail Group Plc,1133.69, 15-Nov-2010
1080,Revenue,CECR,Franking and Postage Costs,Postages,Royal Mail Group Plc,33.14, 01-Nov-2010
1081,Revenue,CECR,Franking and Postage Costs,Postages,Royal Mail Group Plc,944.98, 01-Nov-2010
1082,Revenue,CECR,Franking and Postage Costs,Postages,Royal Mail Group Plc,5.45, 01-Nov-2010
1083,Revenue,CECR,Franking and Postage Costs,Postages,Royal Mail Group Plc,26.94, 01-Nov-2010
1084,Revenue,CECR,Infrastructure - Discr,Agency Staff (Admin/Support Staff) Pay,Sanderson Recruitment PLC,2593.80, 09-Nov-2010
1085,Revenue,CECR,Customer Services - Comm,Agency Staff (Admin/Support Staff) Pay,Sanderson Recruitment PLC,2409.95, 05-Nov-2010
1086,Revenue,CECR,Customer Services - Comm,Agency Staff (Admin/Support Staff) Pay,Sanderson Recruitment PLC,2390.33, 05-Nov-2010
1087,Revenue,CECR,Infrastructure - Discr,Agency Staff (Admin/Support Staff) Pay,Sanderson Recruitment PLC,2416.60, 05-Nov-2010
1088,Revenue,CECR,Infrastructure - Discr,Agency Staff (Admin/Support Staff) Pay,Sanderson Recruitment PLC,2940.00, 05-Nov-2010
1089,Revenue,CECR,Infrastructure - Discr,Agency Staff (Admin/Support Staff) Pay,Sanderson Recruitment PLC,2236.52, 19-Nov-2010
1090,Revenue,CECR,Customer Services - Comm,Agency Staff (Admin/Support Staff) Pay,Sanderson Recruitment PLC,2645.45, 11-Nov-2010
1091,Revenue,CECR,Customer Services - Comm,Agency Staff (Admin/Support Staff) Pay,Sanderson Recruitment PLC,2437.43, 11-Nov-2010
1092,Revenue,CECR,Customer Services - Discr,Office Supplies & Equipment,Simple Technology (UK) Limited,1172.50, 25-Nov-2010
1093,Revenue,CECR,Spending ex - HRA Balances,Grants to Voluntary Bodies,Siston Parish Council,1016.38, 24-Nov-2010
1094,Revenue,CECR,Broad Lane Depot,Refuse Collection Charges,SITA UK LTD,829.70, 19-Nov-2010
1095,Revenue,CECR,PSD Architects,Agency Staff (Admin/Support Staff) Pay,SIV Human Resources,948.75, 04-Nov-2010
1096,Revenue,CECR,Service Reviews Prog - ICT Costs,Computer Equipment - Purchase,Specialist Computer Centres Plc,864.24, 16-Nov-2010
1097,Revenue,CECR,Buildings Holding a/c,Fees - General,Sustain Limited,2344.00, 01-Nov-2010
1098,Revenue,CECR,Payroll,Miscellaneous Income,T G W U,-30.75, 11-Nov-2010
1099,Revenue,CECR,Payroll,Other Supplies & Services,Individual,1736.75, 02-Nov-2010
1100,Revenue,CECR,Customer Relations,Software Purchase,Texthelp Systems Ltd,1345.00, 23-Nov-2010
1101,Revenue,CECR,Head of Corporate Finance,Other Employee Expenses,The Hay Group Management Limited,500.00, 24-Nov-2010
1102,Revenue,CECR,Corporate Training Growth,Rent,The Park Hotel,502.13, 09-Nov-2010
1103,Revenue,CECR,Election Services,Postages,TNT Post South West Limited,5935.18, 19-Nov-2010
1104,Revenue,CECR,Outgoing Mail,Postages,TNT Post South West Limited,919.84, 08-Nov-2010
1105,Revenue,CECR,Outgoing Mail,Postages,TNT Post South West Limited,1665.84, 12-Nov-2010
1106,Revenue,CECR,Outgoing Mail,Postages,TNT Post South West Limited,568.05, 12-Nov-2010
1107,Revenue,CECR,Outgoing Mail,Postages,TNT Post South West Limited,1261.20, 23-Nov-2010
1108,Revenue,CECR,Outgoing Mail,Postages,TNT Post South West Limited,1328.04, 23-Nov-2010
1109,Revenue,CECR,Outgoing Mail,Postages,TNT Post South West Limited,1631.24, 26-Nov-2010
1110,Revenue,CECR,Outgoing Mail,Postages,TNT Post South West Limited,460.88, 30-Nov-2010
1111,Revenue,CECR,Outgoing Mail,Postages,TNT Post South West Limited,2415.76, 26-Nov-2010
1112,Revenue,CECR,Outgoing Mail,Postages,TNT Post South West Limited,686.72, 30-Nov-2010
1113,Revenue,CECR,Outgoing Mail,Postages,TNT Post South West Limited,1674.36, 29-Nov-2010
1114,Revenue,CECR,PSD Mech Engineers,Agency Staff (Operational)/PCT Pay,Trendlewood Design Ltd,1815.00, 08-Nov-2010
1115,Revenue,CECR,PSD Mech Engineers,Agency Staff (Operational)/PCT Pay,Trendlewood Design Ltd,3685.00, 04-Nov-2010
1116,Revenue,CECR,PSD Information Management,Software Support & Maintenance,Tribal Education Ltd,1159.25, 01-Nov-2010
1117,Revenue,CECR,PSD Information Management,Software Support & Maintenance,Tribal Education Ltd,15127.00, 16-Nov-2010
1118,Revenue,CECR,Payroll,Miscellaneous Income,UNISON,-505.51, 15-Nov-2010
1119,Revenue,CECR,Infrastructure - Discr,Other Consumable Materials,Vdotcom Limited,1981.00, 26-Nov-2010
1120,Revenue,CECR,Corporate Legal Section,Training Expenses,Veale Wasbrough,930.00, 30-Nov-2010
1121,Revenue,CECR,One Stop Shops - Thornbury and Yate,Agency Staff (Admin/Support Staff) Pay,Venn Group Limited,787.50, 09-Nov-2010
1122,Revenue,CECR,One Stop Shops - Thornbury and Yate,Agency Staff (Admin/Support Staff) Pay,Venn Group Limited,675.00, 09-Nov-2010
1123,Revenue,CECR,Benefits Administration,Agency Staff (Admin/Support Staff) Pay,Venn Group Limited,906.00, 11-Nov-2010
1124,Revenue,CECR,One Stop Shops - Thornbury and Yate,Agency Staff (Admin/Support Staff) Pay,Venn Group Limited,832.50, 22-Nov-2010
1125,Revenue,CECR,Benefits Administration,Agency Staff (Admin/Support Staff) Pay,Venn Group Limited,864.24, 12-Nov-2010
1126,Revenue,CECR,Benefits Administration,Agency Staff (Admin/Support Staff) Pay,Venn Group Limited,888.00, 11-Nov-2010
1127,Revenue,CECR,Corporate Communications,Agency Staff (Admin/Support Staff) Pay,Venn Group Limited,987.50, 15-Nov-2010
1128,Revenue,CECR,One Stop Shops - Thornbury and Yate,Agency Staff (Admin/Support Staff) Pay,Venn Group Limited,843.75, 22-Nov-2010
1129,Revenue,CECR,Benefits Administration,Agency Staff (Admin/Support Staff) Pay,Venn Group Limited,894.00, 24-Nov-2010
1130,Revenue,CECR,Benefits Administration,Agency Staff (Admin/Support Staff) Pay,Venn Group Limited,757.92, 24-Nov-2010
1131,Revenue,CECR,Corporate Communications,Agency Staff (Admin/Support Staff) Pay,Venn Group Limited,1777.50, 22-Nov-2010
1132,Revenue,CECR,One Stop Shops - Thornbury and Yate,Agency Staff (Admin/Support Staff) Pay,Venn Group Limited,838.13, 25-Nov-2010
1133,Revenue,CECR,Benefits Administration,Agency Staff (Admin/Support Staff) Pay,Venn Group Limited,888.00, 29-Nov-2010
1134,Revenue,CECR,DTS/ACD,Telephones,Virgin Media Payments Ltd,1647.08, 04-Nov-2010
1135,Revenue,CECR,DTS/ACD,Telephones,Virgin Media Payments Ltd,1640.65, 30-Nov-2010
1136,Revenue,CECR,DTS/ACD,Telephones,Virgin Media Payments Ltd,1875.00, 30-Nov-2010
1137,Revenue,CECR,DTS/ACD,Telephones,Virgin Media Payments Ltd,1875.00, 04-Nov-2010
1138,Revenue,CECR,Corporate Telephones,Telephones,Virgin Media Payments Ltd,6077.29, 24-Nov-2010
1139,Revenue,CECR,Corporate Telephones,Telephones,Virgin Media Payments Ltd,3403.88, 24-Nov-2010
1140,Revenue,CECR,Corporate Telephones,Telephones,Virgin Media Payments Ltd,30.00, 24-Nov-2010
1141,Revenue,CECR,Corporate Telephones,Telephones,Virgin Media Payments Ltd,6107.09, 09-Nov-2010
1142,Revenue,CECR,Corporate Telephones,Telephones,Virgin Media Payments Ltd,4170.49, 09-Nov-2010
1143,Revenue,CECR,Corporate Telephones,Telephones,Virgin Media Payments Ltd,120.00, 09-Nov-2010
1144,Revenue,CECR,Corporate Telephones,Computer Services,Virgin Media Payments Ltd,9768.54, 24-Nov-2010
1145,Revenue,CECR,Automated Telephone Payments,Telephones,Virgin Media Payments Ltd,764.24, 15-Nov-2010
1146,Revenue,CECR,HROD Divisional Management,Radio Pager/Mobile Phones,Vodafone Corporate Limited,53.60, 09-Nov-2010
1147,Revenue,CECR,Western Improvement Partnerships,Radio Pager/Mobile Phones,Vodafone Corporate Limited,12.91, 09-Nov-2010
1148,Revenue,CECR,Smarter Working Project,Radio Pager/Mobile Phones,Vodafone Corporate Limited,6.00, 09-Nov-2010
1149,Revenue,CECR,Chief Executive,Radio Pager/Mobile Phones,Vodafone Corporate Limited,147.50, 09-Nov-2010
1150,Revenue,CECR,Corporate Communications,Radio Pager/Mobile Phones,Vodafone Corporate Limited,266.28, 09-Nov-2010
1151,Revenue,CECR,Travellers Sites,Radio Pager/Mobile Phones,Vodafone Corporate Limited,104.46, 09-Nov-2010
1152,Revenue,CECR,LADS Divisional Management,Radio Pager/Mobile Phones,Vodafone Corporate Limited,57.55, 09-Nov-2010
1153,Revenue,CECR,Corporate Legal Section,Radio Pager/Mobile Phones,Vodafone Corporate Limited,97.53, 09-Nov-2010
1154,Revenue,CECR,Registration Services,Radio Pager/Mobile Phones,Vodafone Corporate Limited,39.40, 09-Nov-2010
1155,Revenue,CECR,Mail Messenger Service,Radio Pager/Mobile Phones,Vodafone Corporate Limited,18.63, 09-Nov-2010
1156,Revenue,CECR,Dept HR Support Team,Radio Pager/Mobile Phones,Vodafone Corporate Limited,7.36, 09-Nov-2010
1157,Revenue,CECR,Access to Employment (PSA),Radio Pager/Mobile Phones,Vodafone Corporate Limited,67.18, 09-Nov-2010
1158,Revenue,CECR,"Employee Relations, Rewards & Safety",Radio Pager/Mobile Phones,Vodafone Corporate Limited,117.45, 09-Nov-2010
1159,Revenue,CECR,Learning & Resources,Radio Pager/Mobile Phones,Vodafone Corporate Limited,145.24, 09-Nov-2010
1160,Revenue,CECR,Director of Corporate Resources,Radio Pager/Mobile Phones,Vodafone Corporate Limited,80.25, 09-Nov-2010
1161,Revenue,CECR,Exchequer Administration,Radio Pager/Mobile Phones,Vodafone Corporate Limited,26.27, 09-Nov-2010
1162,Revenue,CECR,Internal Audit,Radio Pager/Mobile Phones,Vodafone Corporate Limited,21.61, 09-Nov-2010
1163,Revenue,CECR,IT Management - Discr,Radio Pager/Mobile Phones,Vodafone Corporate Limited,85.89, 09-Nov-2010
1164,Revenue,CECR,ICT Business Services - Discr,Radio Pager/Mobile Phones,Vodafone Corporate Limited,54.02, 09-Nov-2010
1165,Revenue,CECR,Operations Manager - Discr,Radio Pager/Mobile Phones,Vodafone Corporate Limited,138.27, 09-Nov-2010
1166,Revenue,CECR,Infrastructure - Discr,Radio Pager/Mobile Phones,Vodafone Corporate Limited,1174.50, 09-Nov-2010
1167,Revenue,CECR,Applications - Discr,Radio Pager/Mobile Phones,Vodafone Corporate Limited,51.35, 09-Nov-2010
1168,Revenue,CECR,Customer Services - Discr,Radio Pager/Mobile Phones,Vodafone Corporate Limited,82.02, 09-Nov-2010
1169,Revenue,CECR,ICT Smarter Working Project,Radio Pager/Mobile Phones,Vodafone Corporate Limited,109.45, 09-Nov-2010
1170,Revenue,CECR,C&RS Streetcare Helpdesk,Radio Pager/Mobile Phones,Vodafone Corporate Limited,6.00, 09-Nov-2010
1171,Revenue,CECR,Members Support,Radio Pager/Mobile Phones,Vodafone Corporate Limited,419.20, 09-Nov-2010
1172,Revenue,CECR,Combined Group Budgets,Radio Pager/Mobile Phones,Vodafone Corporate Limited,142.15, 09-Nov-2010
1173,Revenue,CECR,PSD Business Management,Radio Pager/Mobile Phones,Vodafone Corporate Limited,1042.22, 01-Nov-2010
1174,Revenue,CECR,Travellers Site - Patchway,Service Contracts,Westgate Managed Services Limited,1800.00, 10-Nov-2010
1175,Revenue,CECR,Travellers Site - Winterbourne,Service Contracts,Westgate Managed Services Limited,1800.00, 10-Nov-2010
,,,,,,731986.19,
1176,Revenue,COMM,R&M Budgets,Maintenance by Contractor,A E Horder (Contracting) Limited,749.61, 03-Nov-2010
1177,Revenue,COMM,Property Services - Workforce,Other Supplies & Services,A G Gribble Limited,2698.00, 03-Nov-2010
1178,Revenue,COMM,Kingswood Park - Public Open Spaces,Street Care - Grounds Maintenance,A J Moodie Wiltshire Stonemasons,3150.00, 24-Nov-2010
1179,Revenue,COMM,Transport - Workforce,Other Supplies & Services,A K Commercials Limited,1872.61, 23-Nov-2010
1180,Revenue,COMM,Transport - Workforce,Other Supplies & Services,A K Commercials Limited,2232.74, 23-Nov-2010
1181,Revenue,COMM,Highways - Workforce,Other Supplies & Services,A T Ealey,2100.00, 10-Nov-2010
1182,Revenue,COMM,Highways - Workforce,Other Supplies & Services,A T Ealey,2100.00, 10-Nov-2010
1183,Revenue,COMM,Transport - Workforce,Other Supplies & Services,Access Hire Nationwide Ltd,1134.00, 03-Nov-2010
1184,Revenue,COMM,Highways - Workforce,Other Supplies & Services,Aggregate Industries UK Limited,1666.43, 03-Nov-2010
1185,Revenue,COMM,Transport - Workforce,Other Supplies & Services,Albert J Parsons & Sons Ltd,530.16, 03-Nov-2010
1186,Revenue,COMM,Transport - Workforce,Other Supplies & Services,Albert J Parsons & Sons Ltd,590.50, 05-Nov-2010
1187,Revenue,COMM,Transport - Workforce,Other Supplies & Services,Albert J Parsons & Sons Ltd,653.88, 19-Nov-2010
1188,Revenue,COMM,Highways - Workforce,Other Supplies & Services,Altron Communications Equipment Ltd,2742.00, 30-Nov-2010
1189,Revenue,COMM,Highways - Workforce,Other Supplies & Services,Andrew Walker Haulage,4421.75, 23-Nov-2010
1190,Revenue,COMM,Grimsbury Farm,Street Care - Grounds Maintenance,Andy O`Neil,600.00, 19-Nov-2010
1191,Revenue,COMM,Property Services - Workforce,Other Supplies & Services,Apre Surfacing Limited,1750.00, 09-Nov-2010
1192,Revenue,COMM,Property Services - Workforce,Other Supplies & Services,Apre Surfacing Limited,780.00, 22-Nov-2010
1193,Revenue,COMM,Property Services - Workforce,Other Supplies & Services,Apre Surfacing Limited,2147.00, 29-Nov-2010
1194,Revenue,COMM,Property Services - Workforce,Other Supplies & Services,Apre Surfacing Limited,4730.00, 29-Nov-2010
1195,Revenue,COMM,Street Care Mgt & General Overheads,Training Expenses,APSE,2348.00, 04-Nov-2010
1196,Revenue,COMM,Cleansing,Other Supplies & Services,Aquarius Solutions,1977.75, 19-Nov-2010
1197,Revenue,COMM,Highways - Workforce,Other Supplies & Services,Arco Limited,1036.50, 09-Nov-2010
1198,Revenue,COMM,Highways - Workforce,Other Supplies & Services,Ashtead Plant Hire Company Limited,3300.00, 03-Nov-2010
1199,Revenue,COMM,Highways - Workforce,Other Supplies & Services,Ashtead Plant Hire Company Limited,1245.00, 23-Nov-2010
1200,Revenue,COMM,Highways - Workforce,Other Supplies & Services,Ashtead Plant Hire Company Limited,775.00, 03-Nov-2010
1201,Revenue,COMM,Highways - Workforce,Other Supplies & Services,Ashtead Plant Hire Company Limited,660.00, 03-Nov-2010
1202,Revenue,COMM,Highways - Workforce,Other Supplies & Services,Ashtead Plant Hire Company Limited,3300.00, 03-Nov-2010
1203,Revenue,COMM,Highways - Workforce,Other Supplies & Services,Ashtead Plant Hire Company Limited,3445.80, 03-Nov-2010
1204,Revenue,COMM,Highways - Workforce,Other Supplies & Services,Ashtead Plant Hire Company Limited,2010.00, 03-Nov-2010
1205,Revenue,COMM,Highways - Workforce,Other Supplies & Services,Ashtead Plant Hire Company Limited,2425.00, 03-Nov-2010
1206,Revenue,COMM,Community Safety,Other Public Bodies,Avon & Somerset Police Authority,22064.56, 09-Nov-2010
1207,Revenue,COMM,Violent Crime (LAA Stretch),Project Funding,Avon & Somerset Police Authority,1200.00, 11-Nov-2010
1208,Revenue,COMM,Community Safety,Other Public Bodies,Avon & Somerset Police Authority,22064.56, 18-Nov-2010
1209,Revenue,COMM,DAT Treatment,Commissioned Service (Inc SLA Grants),Avon & Wiltshire Mental Health,139621.00, 25-Nov-2010
1210,Revenue,COMM,Street Cleansing,Other Private Contractors,Bassitys Ltd,811.50, 11-Nov-2010
1211,Revenue,COMM,DAT Treatment,Commissioned Service (Inc SLA Grants),Battle Against Tranquillisers,26864.00, 16-Nov-2010
1212,Revenue,COMM,Highways - Workforce,Other Supplies & Services,Bendrey Bros,432.90, 16-Nov-2010
1213,Revenue,COMM,Highways - Workforce,Other Supplies & Services,Biffa Waste Services Limited,1425.95, 04-Nov-2010
1214,Revenue,COMM,Arboricultural Service,Tree Maintenance,Blagdon Tree Surgeons,750.00, 11-Nov-2010
1215,Revenue,COMM,Arboricultural Service,Tree Maintenance,Blagdon Tree Surgeons,1200.00, 11-Nov-2010
1216,Revenue,COMM,Transport - Workforce,Other Supplies & Services,Blakedale Ltd,582.02, 11-Nov-2010
1217,Revenue,COMM,Highways - Workforce,Other Supplies & Services,Branch Walkers,2200.00, 23-Nov-2010
1218,Revenue,COMM,Street Care Mgt & General Overheads,Other Supplies & Services,Briggs Equipment UK Limited,743.07, 04-Nov-2010
1219,Revenue,COMM,Street Care Mgt & General Overheads,Other Supplies & Services,Briggs Equipment UK Limited,696.62, 04-Nov-2010
1220,Revenue,COMM,Street Care Mgt & General Overheads,Other Supplies & Services,Briggs Equipment UK Limited,696.62, 04-Nov-2010
1221,Revenue,COMM,Street Care Mgt & General Overheads,Other Supplies & Services,Briggs Equipment UK Limited,696.62, 04-Nov-2010
1222,Revenue,COMM,Yate Outdoor Sports Centre,Electricity,Brimsham Green School,463.88, 30-Nov-2010
1223,Revenue,COMM,Yate Outdoor Sports Centre,Gas,Brimsham Green School,3.43, 30-Nov-2010
1224,Revenue,COMM,Yate Outdoor Sports Centre,Water Charges,Brimsham Green School,435.83, 30-Nov-2010
1225,Revenue,COMM,Highways - Workforce,Other Supplies & Services,Bristol & Avon Transport & Recycling Limited,962.50, 10-Nov-2010
1226,Revenue,COMM,Highways - Workforce,Other Supplies & Services,Bristol & Avon Waste Management Limited,1710.00, 03-Nov-2010
1227,Revenue,COMM,Highways - Workforce,Other Supplies & Services,Bristol & Avon Waste Management Limited,630.00, 03-Nov-2010
1228,Revenue,COMM,Highways - Workforce,Other Supplies & Services,Bristol & Avon Waste Management Limited,720.00, 03-Nov-2010
1229,Revenue,COMM,Highways - Workforce,Other Supplies & Services,Bristol & Avon Waste Management Limited,540.00, 09-Nov-2010
1230,Revenue,COMM,Highways - Workforce,Other Supplies & Services,Bristol & Avon Waste Management Limited,990.00, 09-Nov-2010
1231,Revenue,COMM,Highways - Workforce,Other Supplies & Services,Bristol & Avon Waste Management Limited,630.00, 09-Nov-2010
1232,Revenue,COMM,Highways - Workforce,Other Supplies & Services,Bristol & Avon Waste Management Limited,1260.00, 16-Nov-2010
1233,Revenue,COMM,Highways - Workforce,Other Supplies & Services,Bristol & Bath Concrete Limited,545.03, 12-Nov-2010
1234,Revenue,COMM,Grounds Maintenance,Other Supplies & Services,Bristol City Council,19487.69, 01-Nov-2010
1235,Revenue,COMM,Grounds Maintenance,Other Supplies & Services,Bristol City Council,2196.50, 01-Nov-2010
1236,Revenue,COMM,Departmental Training,Training Expenses,British Red Cross,660.00, 11-Nov-2010
1237,Revenue,COMM,Street Lighting Management & Overheads,Administrative & Support Staff Pay,Brookson (5700B) Ltd,869.30, 12-Nov-2010
1238,Revenue,COMM,Street Lighting Management & Overheads,Administrative & Support Staff Pay,Brookson (5700B) Ltd,1056.25, 12-Nov-2010
1239,Revenue,COMM,Street Lighting Management & Overheads,Administrative & Support Staff Pay,Brookson (5700B) Ltd,1088.60, 12-Nov-2010
1240,Revenue,COMM,Street Lighting Management & Overheads,Administrative & Support Staff Pay,Brookson (5700B) Ltd,1087.50, 12-Nov-2010
1241,Revenue,COMM,Highways - Workforce,Other Supplies & Services,Broxap Limited,2033.00, 23-Nov-2010
1242,Revenue,COMM,Grounds Maintenance,Operational Equipment,BS Mowers Ltd,1200.00, 03-Nov-2010
1243,Revenue,COMM,Eastwood Park Prison Library,Telephones,BT plc,866.50, 11-Nov-2010
1244,Revenue,COMM,Highways - Workforce,Other Supplies & Services,Buildbase Civils & Lintels,5316.65, 16-Nov-2010
1245,Revenue,COMM,Transport - Workforce,Other Supplies & Services,Burnt Tree Group Ltd,462.00, 03-Nov-2010
1246,Revenue,COMM,Transport - Workforce,Other Supplies & Services,Burnt Tree Group Ltd,660.00, 03-Nov-2010
1247,Revenue,COMM,Transport - Workforce,Other Supplies & Services,Burnt Tree Group Ltd,528.00, 03-Nov-2010
1248,Revenue,COMM,Transport - Workforce,Other Supplies & Services,Burnt Tree Group Ltd,528.00, 03-Nov-2010
1249,Revenue,COMM,Transport - Workforce,Other Supplies & Services,Burnt Tree Group Ltd,528.00, 03-Nov-2010
1250,Revenue,COMM,Transport - Workforce,Other Supplies & Services,Burnt Tree Group Ltd,506.00, 03-Nov-2010
1251,Revenue,COMM,Transport - Workforce,Other Supplies & Services,Burnt Tree Group Ltd,462.00, 03-Nov-2010
1252,Revenue,COMM,Transport - Workforce,Other Supplies & Services,Burnt Tree Group Ltd,528.00, 03-Nov-2010
1253,Revenue,COMM,Transport - Workforce,Other Supplies & Services,Burnt Tree Group Ltd,770.00, 03-Nov-2010
1254,Revenue,COMM,Transport - Workforce,Other Supplies & Services,Burnt Tree Group Ltd,770.00, 03-Nov-2010
1255,Revenue,COMM,Transport - Workforce,Other Supplies & Services,Burnt Tree Group Ltd,441.00, 26-Nov-2010
1256,Revenue,COMM,Transport - Workforce,Other Supplies & Services,Burnt Tree Group Ltd,504.00, 26-Nov-2010
1257,Revenue,COMM,Transport - Workforce,Other Supplies & Services,Burnt Tree Group Ltd,504.00, 26-Nov-2010
1258,Revenue,COMM,Transport - Workforce,Other Supplies & Services,Burnt Tree Group Ltd,504.00, 26-Nov-2010
1259,Revenue,COMM,Transport - Workforce,Other Supplies & Services,Burnt Tree Group Ltd,483.00, 26-Nov-2010
1260,Revenue,COMM,Transport - Workforce,Other Supplies & Services,Burnt Tree Group Ltd,495.60, 26-Nov-2010
1261,Revenue,COMM,Transport - Workforce,Other Supplies & Services,Burnt Tree Group Ltd,630.00, 29-Nov-2010
1262,Revenue,COMM,Transport - Workforce,Other Supplies & Services,Burnt Tree Group Ltd,1197.00, 09-Nov-2010
1263,Revenue,COMM,Street Care Mgt & General Overheads,Consultants Fees,Buro Happold Engineers Limited,3562.50, 10-Nov-2010
1264,Revenue,COMM,Street Care Mgt & General Overheads,Consultants Fees,Buro Happold Engineers Limited,2677.50, 19-Nov-2010
1265,Revenue,COMM,Highways - Workforce,Other Supplies & Services,Business Lighting Ltd,600.00, 30-Nov-2010
1266,Revenue,COMM,Play Areas,R & M by Departments - Vandalism,C & R Fencing Limited,3784.00, 17-Nov-2010
1267,Revenue,COMM,Play Areas,Furniture & Fittings Loose,C & R Fencing Limited,131.00, 24-Nov-2010
1268,Revenue,COMM,Property Services - Workforce,Other Supplies & Services,C B Decorators,5000.00, 03-Nov-2010
1269,Revenue,COMM,Property Services - Workforce,Other Supplies & Services,C B Decorators,5950.00, 03-Nov-2010
1270,Revenue,COMM,Playing Field Contracts,Other Supplies & Services,C R Belcher,600.00, 03-Nov-2010
1271,Revenue,COMM,Grounds Area South,Other Private Contractors,C R Belcher,450.00, 24-Nov-2010
1272,Revenue,COMM,Highways - Workforce,Other Supplies & Services,C U Lighting Limited,4088.00, 16-Nov-2010
1273,Revenue,COMM,Highways - Workforce,Other Supplies & Services,C U Lighting Limited,3363.06, 16-Nov-2010
1274,Revenue,COMM,Highways - Workforce,Other Supplies & Services,C U Lighting Limited,1333.00, 16-Nov-2010
1275,Revenue,COMM,Highways - Workforce,Other Supplies & Services,C U Lighting Limited,1169.76, 23-Nov-2010
1276,Revenue,COMM,Highways Management & Overheads,Agency Staff (Admin/Support Staff) Pay,Capita SHG Resourcing,1081.50, 08-Nov-2010
1277,Revenue,COMM,Highways Management & Overheads,Agency Staff (Admin/Support Staff) Pay,Capita SHG Resourcing,1081.50, 08-Nov-2010
1278,Revenue,COMM,Highways Management & Overheads,Agency Staff (Admin/Support Staff) Pay,Capita SHG Resourcing,1918.38, 08-Nov-2010
1279,Revenue,COMM,Highways Management & Overheads,Agency Staff (Admin/Support Staff) Pay,Capita SHG Resourcing,2021.38, 08-Nov-2010
1280,Revenue,COMM,Highways Management & Overheads,Agency Staff (Admin/Support Staff) Pay,Capita SHG Resourcing,1094.38, 08-Nov-2010
1281,Revenue,COMM,Highways Management & Overheads,Agency Staff (Admin/Support Staff) Pay,Capita SHG Resourcing,1094.38, 10-Nov-2010
1282,Revenue,COMM,Highways - Workforce,Other Supplies & Services,Capital Cabins Limited,915.04, 03-Nov-2010
1283,Revenue,COMM,Highways - Workforce,Other Supplies & Services,Capital Cabins Limited,862.18, 05-Nov-2010
1284,Revenue,COMM,Highways - Workforce,Other Supplies & Services,Capital Cabins Limited,518.59, 18-Nov-2010
1285,Revenue,COMM,Highways Management & Overheads,Other Supplies & Services,Capital Cabins Limited,1557.65, 26-Nov-2010
1286,Revenue,COMM,Highways - Workforce,Other Supplies & Services,Capital Cabins Limited,863.66, 30-Nov-2010
1287,Revenue,COMM,Highways - Workforce,Other Supplies & Services,Capital Cabins Limited,863.66, 30-Nov-2010
1288,Revenue,COMM,Highways - Workforce,Other Supplies & Services,Capital Cabins Limited,863.66, 30-Nov-2010
1289,Revenue,COMM,Highways - Workforce,Other Supplies & Services,Capital Cabins Limited,819.33, 30-Nov-2010
1290,Revenue,COMM,Highways - Workforce,Other Supplies & Services,Capital Cabins Limited,863.66, 30-Nov-2010
1291,Revenue,COMM,Signs & Bollards - Maintenance,Other Private Contractors,Central Networks Services Limited,1124.00, 05-Nov-2010
1292,Revenue,COMM,Street Lighting - Maintenance,Other Private Contractors,Central Networks Services Limited,648.00, 05-Nov-2010
1293,Revenue,COMM,Highways - Workforce,Other Supplies & Services,Charles Endirect Ltd,848.00, 24-Nov-2010
1294,Revenue,COMM,Highways - Workforce,Other Supplies & Services,Charles Wilson Engineers Limited,462.00, 19-Nov-2010
1295,Revenue,COMM,Arboricultural Service,Tree Maintenance,Chew Tree Care,640.00, 23-Nov-2010
1296,Revenue,COMM,Highways - Workforce,Other Supplies & Services,Churngold Recycling Limited,625.60, 03-Nov-2010
1297,Revenue,COMM,Highways - Workforce,Other Supplies & Services,Churngold Recycling Limited,4483.51, 23-Nov-2010
1298,Revenue,COMM,Street Care Mgt & General Overheads,Other Supplies & Services,Churngold Recycling Limited,775.00, 08-Nov-2010
1299,Revenue,COMM,Street Care Mgt & General Overheads,Other Supplies & Services,Churngold Recycling Limited,940.00, 08-Nov-2010
1300,Revenue,COMM,Street Care Mgt & General Overheads,Other Supplies & Services,Churngold Recycling Limited,1105.00, 08-Nov-2010
1301,Revenue,COMM,Street Care Mgt & General Overheads,Other Supplies & Services,Churngold Recycling Limited,760.00, 08-Nov-2010
1302,Revenue,COMM,Street Care Mgt & General Overheads,Other Supplies & Services,Churngold Recycling Limited,470.00, 08-Nov-2010
1303,Revenue,COMM,Street Care Mgt & General Overheads,Other Supplies & Services,Churngold Recycling Limited,470.00, 05-Nov-2010
1304,Revenue,COMM,Street Care Mgt & General Overheads,Other Supplies & Services,Churngold Recycling Limited,470.00, 08-Nov-2010
1305,Revenue,COMM,Street Care Mgt & General Overheads,Other Supplies & Services,Churngold Recycling Limited,1085.00, 12-Nov-2010
1306,Revenue,COMM,Street Care Mgt & General Overheads,Other Supplies & Services,Churngold Recycling Limited,620.00, 12-Nov-2010
1307,Revenue,COMM,Transport - Workforce,Other Supplies & Services,City West Commercials Ltd,594.01, 05-Nov-2010
1308,Revenue,COMM,Trading Standards,Consultants Fees,Civica UK Limited,500.00, 19-Nov-2010
1309,Revenue,COMM,Kingswood Remembrance Park,Other Supplies & Services,"Clear Skies Software,",950.00, 19-Nov-2010
1310,Revenue,COMM,Highways - Workforce,Other Supplies & Services,Cleveland Cable Co Ltd,1418.05, 03-Nov-2010
1311,Revenue,COMM,Highways - Workforce,Other Supplies & Services,Cleveland Cable Co Ltd,707.50, 09-Nov-2010
1312,Revenue,COMM,Highways - Workforce,Other Supplies & Services,Cleveland Cable Co Ltd,1737.00, 16-Nov-2010
1313,Revenue,COMM,Highways - Workforce,Other Supplies & Services,Cleveland Cable Co Ltd,1392.00, 23-Nov-2010
1314,Revenue,COMM,Highways - Workforce,Other Supplies & Services,Colas Limited,1155.68, 23-Nov-2010
1315,Revenue,COMM,Highways - Workforce,Other Supplies & Services,Colas Limited,2294.40, 12-Nov-2010
1316,Revenue,COMM,Highways - Workforce,Other Supplies & Services,Collins Reinforcements Ltd,3689.00, 09-Nov-2010
1317,Revenue,COMM,DAT Treatment,Commissioned Service (Inc SLA Grants),Community Mentors Limited,2213.50, 01-Nov-2010
1318,Revenue,COMM,Grounds Area North,Other Private Contractors,Complete Weed Control (North Wessex) Ltd,1800.00, 29-Nov-2010
1319,Revenue,COMM,Grounds Area North,Other Private Contractors,Complete Weed Control (North Wessex) Ltd,4650.00, 30-Nov-2010
1320,Revenue,COMM,Grounds Maintenance,Other Supplies & Services,Cornish King Bulb Growers,975.48, 12-Nov-2010
1321,Revenue,COMM,Grounds Maintenance,Vehicle Repair & Maintenance,Cotswold Engineering Suppplies,513.50, 08-Nov-2010
1322,Revenue,COMM,Highways - Workforce,Other Supplies & Services,Cotswold Roller Hire Limited,924.00, 03-Nov-2010
1323,Revenue,COMM,Highways - Workforce,Other Supplies & Services,Cotswold Roller Hire Limited,1144.00, 03-Nov-2010
1324,Revenue,COMM,Highways - Workforce,Other Supplies & Services,Cotswold Roller Hire Limited,924.00, 03-Nov-2010
1325,Revenue,COMM,Highways - Workforce,Other Supplies & Services,Cotswold Roller Hire Limited,924.00, 03-Nov-2010
1326,Revenue,COMM,Highways - Workforce,Other Supplies & Services,Cotswold Roller Hire Limited,924.00, 03-Nov-2010
1327,Revenue,COMM,Highways - Workforce,Other Supplies & Services,Cotswold Roller Hire Limited,924.00, 03-Nov-2010
1328,Revenue,COMM,Highways - Workforce,Other Supplies & Services,Cotswold Roller Hire Limited,434.96, 16-Nov-2010
1329,Revenue,COMM,Highways - Workforce,Other Supplies & Services,Cotswold Roller Hire Limited,882.00, 23-Nov-2010
1330,Revenue,COMM,Highways - Workforce,Other Supplies & Services,Cotswold Roller Hire Limited,882.00, 23-Nov-2010
1331,Revenue,COMM,Highways - Workforce,Other Supplies & Services,Cotswold Roller Hire Limited,505.00, 23-Nov-2010
1332,Revenue,COMM,Highways - Workforce,Other Supplies & Services,CRL Surveys,4315.75, 02-Nov-2010
1333,Revenue,COMM,Transport - Workforce,Other Supplies & Services,D C Welding Ltd,585.00, 09-Nov-2010
1334,Revenue,COMM,Highways - Workforce,Other Supplies & Services,Daniel Contractors Limited,612.65, 19-Nov-2010
1335,Revenue,COMM,Community Engagement Manager,Consultation Expenses,Daniel Wood Associates,2702.50, 08-Nov-2010
1336,Revenue,COMM,Community Engagement Manager,Consultants Fees,Daniel Wood Associates,3172.50, 15-Nov-2010
1337,Revenue,COMM,Economic Development,Project Funding,Destination Bristol,10000.00, 16-Nov-2010
1338,Revenue,COMM,Highways Management & Overheads,Other Supplies & Services,DNB Civils Ltd,10871.54, 19-Nov-2010
1339,Revenue,COMM,Downend School Sports Centre,Other Premises Costs,Downend Secondary School,6211.00, 30-Nov-2010
1340,Revenue,COMM,Transport - Workforce,Other Supplies & Services,Econ Engineering Limited,525.54, 23-Nov-2010
1341,Revenue,COMM,Community Engagement Manager,Commissioned Service (Inc SLA Grants),Educational Action Challenging Homophobia (EACH),3106.00, 12-Nov-2010
1342,Revenue,COMM,Property Services - Workforce,Other Supplies & Services,Elite Landscaping & General Builders,1150.00, 10-Nov-2010
1343,Revenue,COMM,Property Services - Workforce,Other Supplies & Services,Elite Landscaping & General Builders,500.00, 10-Nov-2010
1344,Revenue,COMM,Property Services - Workforce,Other Supplies & Services,Elite Landscaping & General Builders,1150.00, 10-Nov-2010
1345,Revenue,COMM,Property Services - Workforce,Other Supplies & Services,Elite Landscaping & General Builders,4000.00, 10-Nov-2010
1346,Revenue,COMM,Management Env. Services,Books & Publications,Emap Communications Ltd,88.00, 11-Nov-2010
1347,Revenue,COMM,Directorate,Books & Publications,Emap Communications Ltd,88.00, 11-Nov-2010
1348,Revenue,COMM,Transport - Workforce,Other Supplies & Services,ESL,873.70, 09-Nov-2010
1349,Revenue,COMM,Transport - Workforce,Other Supplies & Services,Esso Petroleum Company Limited,1994.30, 23-Nov-2010
1350,Revenue,COMM,Transport - Workforce,Other Supplies & Services,Esso Petroleum Company Limited,2327.24, 23-Nov-2010
1351,Revenue,COMM,Highways - Workforce,Other Supplies & Services,ETM Contractors Limited,3050.00, 09-Nov-2010
1352,Revenue,COMM,Highways - Workforce,Other Supplies & Services,ETM Contractors Limited,3050.00, 12-Nov-2010
1353,Revenue,COMM,Highways - Workforce,Other Supplies & Services,ETM Contractors Limited,3050.00, 19-Nov-2010
1354,Revenue,COMM,Highways - Workforce,Other Supplies & Services,ETM Contractors Limited,3050.00, 26-Nov-2010
1355,Revenue,COMM,Highways - Workforce,Other Supplies & Services,ETM Contractors Limited,3050.00, 26-Nov-2010
1356,Revenue,COMM,Transport - Workforce,Other Supplies & Services,Extra Leasing Ltd,2322.22, 23-Nov-2010
1357,Revenue,COMM,Transport - Workforce,Other Supplies & Services,Extra Leasing Ltd,548.00, 23-Nov-2010
1358,Revenue,COMM,Transport - Workforce,Other Supplies & Services,Extra Leasing Ltd,14400.00, 23-Nov-2010
1359,Revenue,COMM,Transport - Workforce,Other Supplies & Services,Extra Leasing Ltd,10800.00, 23-Nov-2010
1360,Revenue,COMM,Highways - Workforce,Other Supplies & Services,F G Bond & Son Marshfield Garage,955.50, 16-Nov-2010
1361,Revenue,COMM,Highways - Workforce,Other Supplies & Services,F G Bond & Son Marshfield Garage,949.00, 16-Nov-2010
1362,Revenue,COMM,Highways - Workforce,Other Supplies & Services,F G Bond & Son Marshfield Garage,955.50, 16-Nov-2010
1363,Revenue,COMM,Highways - Workforce,Other Supplies & Services,F G Bond & Son Marshfield Garage,715.00, 16-Nov-2010
1364,Revenue,COMM,Highways - Workforce,Other Supplies & Services,F G Bond & Son Marshfield Garage,1189.50, 16-Nov-2010
1365,Revenue,COMM,Highways - Workforce,Other Supplies & Services,F G Bond & Son Marshfield Garage,702.00, 16-Nov-2010
1366,Revenue,COMM,Highways - Workforce,Other Supplies & Services,F G Bond & Son Marshfield Garage,936.00, 16-Nov-2010
1367,Revenue,COMM,Highways - Workforce,Other Supplies & Services,F G Bond & Son Marshfield Garage,487.50, 16-Nov-2010
1368,Revenue,COMM,Highways - Workforce,Other Supplies & Services,F G Bond & Son Marshfield Garage,1809.50, 16-Nov-2010
1369,Revenue,COMM,Highways - Workforce,Other Supplies & Services,F G Bond & Son Marshfield Garage,1058.75, 16-Nov-2010
1370,Revenue,COMM,Highways - Workforce,Other Supplies & Services,F G Bond & Son Marshfield Garage,936.00, 23-Nov-2010
1371,Revenue,COMM,Highways - Workforce,Other Supplies & Services,F G Bond & Son Marshfield Garage,715.00, 23-Nov-2010
1372,Revenue,COMM,Highways - Workforce,Other Supplies & Services,F G Bond & Son Marshfield Garage,1443.75, 23-Nov-2010
1373,Revenue,COMM,Highways - Workforce,Other Supplies & Services,F G Bond & Son Marshfield Garage,702.00, 23-Nov-2010
1374,Revenue,COMM,Highways - Workforce,Other Supplies & Services,F G Bond & Son Marshfield Garage,942.50, 23-Nov-2010
1375,Revenue,COMM,Highways - Workforce,Other Supplies & Services,F G Bond & Son Marshfield Garage,1078.00, 23-Nov-2010
1376,Revenue,COMM,Highways - Workforce,Other Supplies & Services,F G Bond & Son Marshfield Garage,942.50, 23-Nov-2010
1377,Revenue,COMM,Highways - Workforce,Other Supplies & Services,F G Bond & Son Marshfield Garage,715.00, 23-Nov-2010
1378,Revenue,COMM,Highways - Workforce,Other Supplies & Services,F G Bond & Son Marshfield Garage,936.00, 29-Nov-2010
1379,Revenue,COMM,Highways - Workforce,Other Supplies & Services,F G Bond & Son Marshfield Garage,949.00, 29-Nov-2010
1380,Revenue,COMM,Highways - Workforce,Other Supplies & Services,F G Bond & Son Marshfield Garage,1170.00, 29-Nov-2010
1381,Revenue,COMM,Highways - Workforce,Other Supplies & Services,F G Bond & Son Marshfield Garage,1170.00, 29-Nov-2010
1382,Revenue,COMM,Highways - Workforce,Other Supplies & Services,F G Bond & Son Marshfield Garage,693.00, 29-Nov-2010
1383,Revenue,COMM,Highways - Workforce,Other Supplies & Services,F G Bond & Son Marshfield Garage,702.00, 29-Nov-2010
1384,Revenue,COMM,Highways - Workforce,Other Supplies & Services,F G Bond & Son Marshfield Garage,702.00, 29-Nov-2010
1385,Revenue,COMM,Highways - Workforce,Other Supplies & Services,Febrey Structures Limited,4482.37, 03-Nov-2010
1386,Revenue,COMM,Highways - Workforce,Other Supplies & Services,Febrey Structures Limited,1120.48, 16-Nov-2010
1387,Revenue,COMM,Highways - Workforce,Other Supplies & Services,Febrey Structures Limited,927.01, 16-Nov-2010
1388,Revenue,COMM,Highways - Workforce,Other Supplies & Services,Febrey Structures Limited,3441.80, 23-Nov-2010
1389,Revenue,COMM,Highways - Workforce,Other Supplies & Services,Febrey Structures Limited,6694.08, 16-Nov-2010
1390,Revenue,COMM,Highways - Workforce,Other Supplies & Services,Febrey Structures Limited,1222.20, 16-Nov-2010
1391,Revenue,COMM,Highways - Workforce,Other Supplies & Services,Ford Fuel Oils,6106.87, 02-Nov-2010
1392,Revenue,COMM,Transport - Workforce,Other Supplies & Services,Ford Fuel Oils,2249.95, 05-Nov-2010
1393,Revenue,COMM,Transport - Workforce,Other Supplies & Services,Ford Fuel Oils,1345.36, 09-Nov-2010
1394,Revenue,COMM,Highways - Workforce,Other Supplies & Services,Ford Fuel Oils,2648.93, 04-Nov-2010
1395,Revenue,COMM,Transport - Workforce,Other Supplies & Services,Ford Fuel Oils,1171.04, 18-Nov-2010
1396,Revenue,COMM,Transport - Workforce,Other Supplies & Services,Ford Fuel Oils,18466.40, 10-Nov-2010
1397,Revenue,COMM,Highways - Workforce,Other Supplies & Services,Ford Fuel Oils,7206.50, 15-Nov-2010
1398,Revenue,COMM,Transport - Workforce,Other Supplies & Services,Ford Fuel Oils,18472.55, 18-Nov-2010
1399,Revenue,COMM,Transport - Workforce,Other Supplies & Services,Ford Fuel Oils,1762.38, 19-Nov-2010
1400,Revenue,COMM,Highways - Workforce,Other Supplies & Services,Ford Fuel Oils,6150.00, 24-Nov-2010
1401,Revenue,COMM,Street Care Mgt & General Overheads,Fuel Oil,Ford Fuel Oils,1050.00, 25-Nov-2010
1402,Revenue,COMM,Friends Group - Open Spaces,Fees - General,FWAG,740.00, 16-Nov-2010
1403,Revenue,COMM,Friends Group - Open Spaces,Fees - General,FWAG,850.00, 26-Nov-2010
1404,Revenue,COMM,Play Areas,Furniture & Fittings Loose,G B Sport & Leisure,5775.00, 29-Nov-2010
1405,Revenue,COMM,Highways Management & Overheads,Service Contracts,Gabem Management Limited,880.00, 04-Nov-2010
1406,Revenue,COMM,Highways Management & Overheads,Service Contracts,Gabem Management Limited,880.00, 24-Nov-2010
1407,Revenue,COMM,Highways Management & Overheads,Service Contracts,Gabem Management Limited,907.50, 30-Nov-2010
1408,Revenue,COMM,Highways Management & Overheads,Service Contracts,Gabem Management Limited,907.50, 30-Nov-2010
1409,Revenue,COMM,Highways Management & Overheads,Service Contracts,Gabem Management Limited,907.50, 30-Nov-2010
1410,Revenue,COMM,Highways Management & Overheads,Service Contracts,Gabem Management Limited,918.50, 30-Nov-2010
1411,Revenue,COMM,Highways Management & Overheads,Service Contracts,Gabem Management Limited,929.50, 30-Nov-2010
1412,Revenue,COMM,Highways Management & Overheads,Service Contracts,Gabem Management Limited,880.00, 04-Nov-2010
1413,Revenue,COMM,Transport - Workforce,Other Supplies & Services,Garafit Services Limited,503.45, 23-Nov-2010
1414,Revenue,COMM,Street Care Mgt & General Overheads,Other Supplies & Services,GE Capital Equipment Services Ltd,770.00, 12-Nov-2010
1415,Revenue,COMM,Highways - Workforce,Other Supplies & Services,GE Capital Equipment Services Ltd,483.00, 30-Nov-2010
1416,Revenue,COMM,Property Services - Workforce,Other Supplies & Services,Geoff Lewis Flooring Limited,8860.00, 19-Nov-2010
1417,Revenue,COMM,Grounds Maintenance,Vehicle Repair & Maintenance,George Carr & Sons (Saws) Limited,460.83, 26-Nov-2010
1418,Revenue,COMM,Grounds Maintenance,Vehicle Repair & Maintenance,George Carr & Sons (Saws) Limited,1170.31, 11-Nov-2010
1419,Revenue,COMM,Grounds Maintenance,Operational Equipment,George Carr & Sons (Saws) Limited,1102.75, 26-Nov-2010
1420,Revenue,COMM,Highways - Workforce,Other Supplies & Services,Geosynthetics Limited,969.25, 12-Nov-2010
1421,Revenue,COMM,Highways - Workforce,Other Supplies & Services,Glasdon Uk Limited,6056.82, 16-Nov-2010
1422,Revenue,COMM,Cleansing,Litter Bins,Glasdon Uk Limited,588.84, 04-Nov-2010
1423,Revenue,COMM,Yate Outdoor Sports Centre,Contract Cleaning,Glen Cleaning Co Limited,492.98, 22-Nov-2010
1424,Revenue,COMM,Street Care Mgt & General Overheads,Other Supplies & Services,Glug Glug Glug,592.80, 08-Nov-2010
1425,Revenue,COMM,Highways - Workforce,Other Supplies & Services,Greenham Trading Limited,1028.70, 23-Nov-2010
1426,Revenue,COMM,Highways - Workforce,Other Supplies & Services,Greentrees Surfacing Limited,2150.00, 10-Nov-2010
1427,Revenue,COMM,Highways - Workforce,Other Supplies & Services,Greentrees Surfacing Limited,2150.00, 16-Nov-2010
1428,Revenue,COMM,Highways - Workforce,Other Supplies & Services,Greentrees Surfacing Limited,2150.00, 18-Nov-2010
1429,Revenue,COMM,Street Cleansing,Other Private Contractors,Growth Industries Ltd,7989.00, 12-Nov-2010
1430,Revenue,COMM,Street Cleansing,Other Private Contractors,Growth Industries Ltd,7989.00, 25-Nov-2010
1431,Revenue,COMM,Transport - Workforce,Other Supplies & Services,H Curtis & Sons,1255.45, 10-Nov-2010
1432,Revenue,COMM,Grounds Maintenance,Vehicle Repair & Maintenance,H Curtis & Sons,433.53, 12-Nov-2010
1433,Revenue,COMM,Community Composting,Other Private Contractors,H Curtis & Sons,846.00, 19-Nov-2010
1434,Revenue,COMM,Transport - Workforce,Other Supplies & Services,Halls Auto Electrical Limited,843.75, 10-Nov-2010
1435,Revenue,COMM,Transport - Workforce,Other Supplies & Services,Halls Auto Electrical Limited,759.71, 23-Nov-2010
1436,Revenue,COMM,Transport - Workforce,Other Supplies & Services,Hareclive Vehicle Rental Ltd,796.40, 16-Nov-2010
1437,Revenue,COMM,Transport - Workforce,Other Supplies & Services,Hareclive Vehicle Rental Ltd,792.90, 09-Nov-2010
1438,Revenue,COMM,Transport - Workforce,Other Supplies & Services,Hareclive Vehicle Rental Ltd,498.33, 24-Nov-2010
1439,Revenue,COMM,Transport - Workforce,Other Supplies & Services,Hareclive Vehicle Rental Ltd,498.33, 24-Nov-2010
1440,Revenue,COMM,Transport - Workforce,Other Supplies & Services,Hareclive Vehicle Rental Ltd,498.33, 24-Nov-2010
1441,Revenue,COMM,Transport - Workforce,Other Supplies & Services,Hareclive Vehicle Rental Ltd,498.33, 24-Nov-2010
1442,Revenue,COMM,Transport - Workforce,Other Supplies & Services,Hareclive Vehicle Rental Ltd,498.33, 24-Nov-2010
1443,Revenue,COMM,Transport - Workforce,Other Supplies & Services,Hareclive Vehicle Rental Ltd,498.33, 24-Nov-2010
1444,Revenue,COMM,Highways - Workforce,Other Supplies & Services,Hays Specialist Recruitment,588.90, 03-Nov-2010
1445,Revenue,COMM,Highways - Workforce,Other Supplies & Services,Hays Specialist Recruitment,581.10, 03-Nov-2010
1446,Revenue,COMM,Highways - Workforce,Other Supplies & Services,Hays Specialist Recruitment,624.00, 09-Nov-2010
1447,Revenue,COMM,Highways - Workforce,Other Supplies & Services,Hays Specialist Recruitment,588.90, 09-Nov-2010
1448,Revenue,COMM,Highways - Workforce,Other Supplies & Services,Hays Specialist Recruitment,596.00, 09-Nov-2010
1449,Revenue,COMM,Highways - Workforce,Other Supplies & Services,Hays Specialist Recruitment,624.00, 16-Nov-2010
1450,Revenue,COMM,Highways - Workforce,Other Supplies & Services,Hays Specialist Recruitment,588.90, 16-Nov-2010
1451,Revenue,COMM,Highways - Workforce,Other Supplies & Services,Hays Specialist Recruitment,581.10, 16-Nov-2010
1452,Revenue,COMM,Highways - Workforce,Other Supplies & Services,Hays Specialist Recruitment,792.00, 19-Nov-2010
1453,Revenue,COMM,Highways - Workforce,Other Supplies & Services,Hays Specialist Recruitment,588.90, 19-Nov-2010
1454,Revenue,COMM,Highways - Workforce,Other Supplies & Services,Hire Station Ltd,2695.00, 16-Nov-2010
1455,Revenue,COMM,Highways - Workforce,Other Supplies & Services,Hire Station Ltd,1187.04, 03-Nov-2010
1456,Revenue,COMM,Mobile Library,Agency Staff (Admin/Support Staff) Pay,HSBC Invoice Finance (UK) Limited,504.28, 19-Nov-2010
1457,Revenue,COMM,Mobile Library,Agency Staff (Admin/Support Staff) Pay,HSBC Invoice Finance (UK) Limited,518.33, 29-Nov-2010
1458,Revenue,COMM,Highways - Workforce,Other Supplies & Services,HUESKER Ltd,2334.40, 02-Nov-2010
1459,Revenue,COMM,Highways - Workforce,Other Supplies & Services,IMG Industrial Maintenance Group,855.50, 24-Nov-2010
1460,Revenue,COMM,Highways - Workforce,Other Supplies & Services,Instarmac Group Plc,1149.12, 18-Nov-2010
1461,Revenue,COMM,Food and Health,Membership Fees,itsa Limited,450.00, 25-Nov-2010
1462,Revenue,COMM,Public Conveniences,Other Private Contractors,JCDecaux UK Ltd,2362.56, 12-Nov-2010
1463,Revenue,COMM,Departmental Training,Training Expenses,Jeremy Hurst,616.42, 08-Nov-2010
1464,Revenue,COMM,Highways - Workforce,Other Supplies & Services,John Davidson (Pipes) Limited,497.10, 16-Nov-2010
1465,Revenue,COMM,Highways - Workforce,Other Supplies & Services,John Davidson (Pipes) Limited,888.36, 16-Nov-2010
1466,Revenue,COMM,Highways - Workforce,Other Supplies & Services,John Davidson (Pipes) Limited,508.00, 19-Nov-2010
1467,Revenue,COMM,Highways - Workforce,Other Supplies & Services,John Davidson (Pipes) Limited,2024.66, 16-Nov-2010
1468,Revenue,COMM,Transport - Workforce,Other Supplies & Services,Johnston Sweepers Ltd,634.14, 10-Nov-2010
1469,Revenue,COMM,Highways - Workforce,Other Supplies & Services,Keary Contractors Limited,2371.75, 03-Nov-2010
1470,Revenue,COMM,Highways - Workforce,Other Supplies & Services,Keary Contractors Limited,2732.50, 03-Nov-2010
1471,Revenue,COMM,Highways - Workforce,Other Supplies & Services,Keary Contractors Limited,2732.50, 03-Nov-2010
1472,Revenue,COMM,Highways - Workforce,Other Supplies & Services,Keary Contractors Limited,2371.75, 03-Nov-2010
1473,Revenue,COMM,Highways - Workforce,Other Supplies & Services,Keary Contractors Limited,2732.50, 10-Nov-2010
1474,Revenue,COMM,Highways - Workforce,Other Supplies & Services,Keary Contractors Limited,2371.75, 10-Nov-2010
1475,Revenue,COMM,Highways - Workforce,Other Supplies & Services,Keary Contractors Limited,2371.75, 24-Nov-2010
1476,Revenue,COMM,Highways - Workforce,Other Supplies & Services,Keary Contractors Limited,2603.00, 24-Nov-2010
1477,Revenue,COMM,Highways - Workforce,Other Supplies & Services,Keary Contractors Limited,2263.25, 24-Nov-2010
1478,Revenue,COMM,Highways - Workforce,Other Supplies & Services,Keary Contractors Limited,2371.75, 24-Nov-2010
1479,Revenue,COMM,Cleansing,Fees - General,Keep Britain Tidy,523.25, 16-Nov-2010
1480,Revenue,COMM,Grounds Maintenance,Other Supplies & Services,Keith Morgan Mowers Ltd,850.00, 30-Nov-2010
1481,Revenue,COMM,Highways - Workforce,Other Supplies & Services,Kelly Bros (Road Markings) Limited,1041.10, 12-Nov-2010
1482,Revenue,COMM,Highways - Workforce,Other Supplies & Services,Kelly Bros (Road Markings) Limited,518.00, 12-Nov-2010
1483,Revenue,COMM,Highways - Workforce,Other Supplies & Services,Keyline Builders Merchants,1141.86, 16-Nov-2010
1484,Revenue,COMM,Highways - Workforce,Other Supplies & Services,Keyline Builders Merchants,3200.00, 09-Nov-2010
1485,Revenue,COMM,Highways - Workforce,Other Supplies & Services,Keyline Builders Merchants,643.19, 16-Nov-2010
1486,Revenue,COMM,Transport - Workforce,Other Supplies & Services,L & F Commercial Parts Specialists Ltd,604.00, 02-Nov-2010
1487,Revenue,COMM,Highways - Workforce,Other Supplies & Services,L M Farmer Limited,1086.50, 03-Nov-2010
1488,Revenue,COMM,Highways - Workforce,Other Supplies & Services,L M Farmer Limited,1086.50, 10-Nov-2010
1489,Revenue,COMM,Highways - Workforce,Other Supplies & Services,L M Farmer Limited,1086.50, 18-Nov-2010
1490,Revenue,COMM,Highways - Workforce,Other Supplies & Services,L M Farmer Limited,1086.50, 24-Nov-2010
1491,Revenue,COMM,Highways - Workforce,Other Supplies & Services,Lafarge Aggregates Limited,209415.86, 03-Nov-2010
1492,Revenue,COMM,Highways - Workforce,Other Supplies & Services,Lafarge Aggregates Limited,25490.08, 05-Nov-2010
1493,Revenue,COMM,Highways - Workforce,Other Supplies & Services,Lafarge Aggregates Limited,35423.85, 11-Nov-2010
1494,Revenue,COMM,Highways - Workforce,Other Supplies & Services,Lafarge Aggregates Limited,48576.04, 17-Nov-2010
1495,Revenue,COMM,Highways - Workforce,Other Supplies & Services,Lafarge Aggregates Limited,7985.91, 17-Nov-2010
1496,Revenue,COMM,Highways - Workforce,Other Supplies & Services,Lafarge Aggregates Limited,32752.60, 25-Nov-2010
1497,Revenue,COMM,Departmental Training,Training Expenses,Langley Training Services,3830.00, 25-Nov-2010
1498,Revenue,COMM,Play Areas,R & M by Departments - Vandalism,Lappset Uk Ltd,692.00, 18-Nov-2010
1499,Revenue,COMM,Highways - Workforce,Other Supplies & Services,Lapwing,450.00, 11-Nov-2010
1500,Revenue,COMM,Grounds Maintenance,Agency Staff (Operational)/PCT Pay,Lloyds TSB Commercial Finance Limited,6374.06, 25-Nov-2010
1501,Revenue,COMM,Street Cleansing,Agency Staff (Operational)/PCT Pay,Lloyds TSB Commercial Finance Limited,631.22, 26-Nov-2010
1502,Revenue,COMM,Street Cleansing,Agency Staff (Operational)/PCT Pay,Lloyds TSB Commercial Finance Limited,503.27, 29-Nov-2010
1503,Revenue,COMM,Grounds Maintenance,Agency Staff (Operational)/PCT Pay,Lloyds TSB Commercial Finance Limited,6307.95, 11-Nov-2010
1504,Revenue,COMM,Grounds Maintenance,Agency Staff (Operational)/PCT Pay,Lloyds TSB Commercial Finance Limited,2997.64, 11-Nov-2010
1505,Revenue,COMM,Street Cleansing,Agency Staff (Operational)/PCT Pay,Lloyds TSB Commercial Finance Limited,520.63, 11-Nov-2010
1506,Revenue,COMM,Grounds Maintenance,Agency Staff (Operational)/PCT Pay,Lloyds TSB Commercial Finance Limited,3036.26, 11-Nov-2010
1507,Revenue,COMM,Grounds Maintenance,Agency Staff (Operational)/PCT Pay,Lloyds TSB Commercial Finance Limited,2791.25, 30-Nov-2010
1508,Revenue,COMM,Street Cleansing,Agency Staff (Operational)/PCT Pay,Lloyds TSB Commercial Finance Limited,774.38, 30-Nov-2010
1509,Revenue,COMM,Grounds Maintenance,Agency Staff (Operational)/PCT Pay,Lloyds TSB Commercial Finance Limited,2638.13, 30-Nov-2010
1510,Revenue,COMM,Street Cleansing,Agency Staff (Operational)/PCT Pay,Lloyds TSB Commercial Finance Limited,1553.13, 30-Nov-2010
1511,Revenue,COMM,Arboricultural Service,Tree Maintenance,Lloyds TSB Commercial Finance Limited,180.00, 08-Nov-2010
1512,Revenue,COMM,Arboricultural Service,Tree Maintenance,Lloyds TSB Commercial Finance Limited,1350.00, 08-Nov-2010
1513,Revenue,COMM,Arboricultural Service,Tree Maintenance,Lloyds TSB Commercial Finance Limited,600.00, 16-Nov-2010
1514,Revenue,COMM,Arboricultural Service,Tree Maintenance,Lloyds TSB Commercial Finance Limited,760.00, 16-Nov-2010
1515,Revenue,COMM,Arboricultural Service,Tree Maintenance,Lloyds TSB Commercial Finance Limited,480.00, 23-Nov-2010
1516,Revenue,COMM,Highways - Workforce,Other Supplies & Services,M J Spencer,1521.41, 09-Nov-2010
1517,Revenue,COMM,Highways - Workforce,Other Supplies & Services,M J Spencer,834.50, 09-Nov-2010
1518,Revenue,COMM,Highways - Workforce,Other Supplies & Services,M J Spencer,582.40, 09-Nov-2010
1519,Revenue,COMM,Highways - Workforce,Other Supplies & Services,M J Spencer,466.00, 09-Nov-2010
1520,Revenue,COMM,Highways - Workforce,Other Supplies & Services,M J Spencer,596.95, 16-Nov-2010
1521,Revenue,COMM,Highways - Workforce,Other Supplies & Services,M J Spencer,583.70, 16-Nov-2010
1522,Revenue,COMM,Highways - Workforce,Other Supplies & Services,M J Spencer,647.40, 16-Nov-2010
1523,Revenue,COMM,Highways - Workforce,Other Supplies & Services,M J Spencer,2183.00, 16-Nov-2010
1524,Revenue,COMM,Highways - Workforce,Other Supplies & Services,M J Spencer,1779.60, 23-Nov-2010
1525,Revenue,COMM,Highways - Workforce,Other Supplies & Services,M J Spencer,1331.60, 23-Nov-2010
1526,Revenue,COMM,Highways - Workforce,Other Supplies & Services,M J Spencer,1671.35, 24-Nov-2010
1527,Revenue,COMM,Highways - Workforce,Other Supplies & Services,M J Spencer,666.30, 23-Nov-2010
1528,Revenue,COMM,Highways - Workforce,Other Supplies & Services,M J Spencer,499.20, 24-Nov-2010
1529,Revenue,COMM,Highways - Workforce,Other Supplies & Services,M J Spencer,1430.00, 24-Nov-2010
1530,Revenue,COMM,Community Projects,Project Funding,Mark Chamberlain,560.00, 16-Nov-2010
1531,Revenue,COMM,Highways - Workforce,Other Supplies & Services,Marshall Mono Ltd,1131.80, 03-Nov-2010
1532,Revenue,COMM,Highways - Workforce,Other Supplies & Services,Marwood Group,1452.16, 16-Nov-2010
1533,Revenue,COMM,Highways - Workforce,Other Supplies & Services,Marwood Group,438.04, 16-Nov-2010
1534,Revenue,COMM,Departmental Training,Training Expenses,Matrix Vocational Associates Limited,665.00, 16-Nov-2010
1535,Revenue,COMM,Departmental Training,Training Expenses,Matrix Vocational Associates Limited,1455.00, 15-Nov-2010
1536,Revenue,COMM,Departmental Training,Training Expenses,Matrix Vocational Associates Limited,835.00, 19-Nov-2010
1537,Revenue,COMM,Departmental Training,Training Expenses,Matrix Vocational Associates Limited,585.00, 19-Nov-2010
1538,Revenue,COMM,Departmental Training,Training Expenses,Matrix Vocational Associates Limited,585.00, 19-Nov-2010
1539,Revenue,COMM,Departmental Training,Training Expenses,Matrix Vocational Associates Limited,630.00, 19-Nov-2010
1540,Revenue,COMM,Departmental Training,Training Expenses,Matrix Vocational Associates Limited,525.00, 19-Nov-2010
1541,Revenue,COMM,Highways Management & Overheads,Printing & Stationery,Maxwell House Printers,740.50, 12-Nov-2010
1542,Revenue,COMM,Waste Minimisation,Agency Staff (Admin/Support Staff) Pay,Michael Page International,1478.00, 23-Nov-2010
1543,Revenue,COMM,Waste Minimisation,Agency Staff (Admin/Support Staff) Pay,Michael Page International,1197.18, 30-Nov-2010
1544,Revenue,COMM,Waste Minimisation,Agency Staff (Admin/Support Staff) Pay,Michael Page International,1226.74, 30-Nov-2010
1545,Revenue,COMM,Highways - Workforce,Other Supplies & Services,Mobile Mini UK Ltd,708.04, 30-Nov-2010
1546,Revenue,COMM,Dog Warden,Other Private Contractors,Indivdual,2023.63, 25-Nov-2010
1547,Revenue,COMM,Transport - Workforce,Other Supplies & Services,Mudie-Bond Limited,519.01, 10-Nov-2010
1548,Revenue,COMM,Transport - Workforce,Other Supplies & Services,Mudie-Bond Limited,466.15, 10-Nov-2010
1549,Revenue,COMM,Pollution,Operational Equipment,Natural Environment Research Council,448.00, 24-Nov-2010
1550,Revenue,COMM,Highways - Workforce,Other Supplies & Services,Neals Coatings Limited,864.00, 25-Nov-2010
1551,Revenue,COMM,Trading Standards,Books & Publications,News 4 U,80.50, 18-Nov-2010
1552,Revenue,COMM,Transport - Workforce,Other Supplies & Services,Northgate Vehicle Hire SW & W Ltd,478.06, 03-Nov-2010
1553,Revenue,COMM,Transport - Workforce,Other Supplies & Services,Northgate Vehicle Hire SW & W Ltd,456.33, 23-Nov-2010
1554,Revenue,COMM,Friends Group - Open Spaces,Security Systems,NSG Monitoring Ltd,606.16, 12-Nov-2010
1555,Revenue,COMM,King George V Playing Fields,Security Systems,NSG Monitoring Ltd,443.78, 12-Nov-2010
1556,Revenue,COMM,Southey Avenue Playing Fields,Security Systems,NSG Monitoring Ltd,2193.40, 12-Nov-2010
1557,Revenue,COMM,Street Cleansing,Other Private Contractors,NSG Monitoring Ltd,1453.59, 12-Nov-2010
1558,Revenue,COMM,Breakthrough and Inclusion Work,Radio Pager/Mobile Phones,O2 (UK) Limited,478.35, 05-Nov-2010
1559,Revenue,COMM,Inspector Miscellaneous,Street Care - Grounds Maintenance,P G Russell,640.00, 05-Nov-2010
1560,Revenue,COMM,Commons,Street Care - Grounds Maintenance,P G Russell,476.00, 05-Nov-2010
1561,Revenue,COMM,Play Areas,R & M by Departments - Vandalism,P G Russell,940.00, 26-Nov-2010
1562,Revenue,COMM,Highways - Workforce,Other Supplies & Services,P J McNama Limited,900.00, 24-Nov-2010
1563,Revenue,COMM,Highways - Workforce,Other Supplies & Services,P J McNama Limited,1800.00, 24-Nov-2010
1564,Revenue,COMM,Highways - Workforce,Other Supplies & Services,P J McNama Limited,5654.00, 24-Nov-2010
1565,Revenue,COMM,Highways - Workforce,Other Supplies & Services,P J McNama Limited,2050.00, 24-Nov-2010
1566,Revenue,COMM,Highways - Workforce,Other Supplies & Services,P J McNama Limited,450.00, 24-Nov-2010
1567,Revenue,COMM,Highways - Workforce,Other Supplies & Services,P J McNama Limited,1800.00, 24-Nov-2010
1568,Revenue,COMM,Highways - Workforce,Other Supplies & Services,P J McNama Limited,5734.00, 10-Nov-2010
1569,Revenue,COMM,Highways - Workforce,Other Supplies & Services,P J McNama Limited,1640.00, 10-Nov-2010
1570,Revenue,COMM,Highways - Workforce,Other Supplies & Services,P J McNama Limited,2700.00, 10-Nov-2010
1571,Revenue,COMM,Highways - Workforce,Other Supplies & Services,P J McNama Limited,5518.00, 24-Nov-2010
1572,Revenue,COMM,Highways - Workforce,Other Supplies & Services,P J McNama Limited,2050.00, 24-Nov-2010
1573,Revenue,COMM,Highways - Workforce,Other Supplies & Services,P J McNama Limited,2700.00, 24-Nov-2010
1574,Revenue,COMM,Highways - Workforce,Other Supplies & Services,P J McNama Limited,5654.00, 24-Nov-2010
1575,Revenue,COMM,Highways - Workforce,Other Supplies & Services,P J McNama Limited,2050.00, 24-Nov-2010
1576,Revenue,COMM,Highways - Workforce,Other Supplies & Services,P J McNama Limited,2700.00, 24-Nov-2010
1577,Revenue,COMM,Transport - Workforce,Other Supplies & Services,P N Gawin-Brian,1360.00, 18-Nov-2010
1578,Revenue,COMM,Inspector Miscellaneous,Other Private Contractors,Pama Sign Services Ltd,1191.50, 29-Nov-2010
1579,Revenue,COMM,Transport - Workforce,Other Supplies & Services,Pearce Bros Autorentals,540.00, 23-Nov-2010
1580,Revenue,COMM,Transport - Workforce,Other Supplies & Services,Pearce Bros Autorentals,480.00, 09-Nov-2010
1581,Revenue,COMM,Transport - Workforce,Other Supplies & Services,Pearce Bros Autorentals,535.70, 09-Nov-2010
1582,Revenue,COMM,Transport - Workforce,Other Supplies & Services,Pearce Bros Autorentals,812.00, 09-Nov-2010
1583,Revenue,COMM,Transport - Workforce,Other Supplies & Services,Pearce Bros Autorentals,975.00, 09-Nov-2010
1584,Revenue,COMM,Transport - Workforce,Other Supplies & Services,Pearce Bros Autorentals,630.41, 09-Nov-2010
1585,Revenue,COMM,Transport - Workforce,Other Supplies & Services,Pearce Bros Autorentals,630.41, 09-Nov-2010
1586,Revenue,COMM,Transport - Workforce,Other Supplies & Services,Pearce Bros Autorentals,477.13, 09-Nov-2010
1587,Revenue,COMM,Transport - Workforce,Other Supplies & Services,Pearce Bros Autorentals,483.66, 09-Nov-2010
1588,Revenue,COMM,Transport - Workforce,Other Supplies & Services,Pearce Bros Autorentals,975.00, 09-Nov-2010
1589,Revenue,COMM,Transport - Workforce,Other Supplies & Services,Pearce Bros Autorentals,975.00, 09-Nov-2010
1590,Revenue,COMM,Transport - Workforce,Other Supplies & Services,Pearce Bros Autorentals,975.00, 09-Nov-2010
1591,Revenue,COMM,Highways - Workforce,Other Supplies & Services,PF Cusack (Tool Supplies) Ltd,659.70, 16-Nov-2010
1592,Revenue,COMM,Highways - Workforce,Other Supplies & Services,PF Cusack (Tool Supplies) Ltd,568.50, 03-Nov-2010
1593,Revenue,COMM,Highways - Workforce,Other Supplies & Services,PF Cusack (Tool Supplies) Ltd,1598.75, 03-Nov-2010
1594,Revenue,COMM,Highways - Workforce,Other Supplies & Services,PF Cusack (Tool Supplies) Ltd,3267.93, 23-Nov-2010
1595,Revenue,COMM,Highways - Workforce,Other Supplies & Services,PF Cusack (Tool Supplies) Ltd,434.82, 23-Nov-2010
1596,Revenue,COMM,Highways - Workforce,Other Supplies & Services,PF Cusack (Tool Supplies) Ltd,990.00, 25-Nov-2010
1597,Revenue,COMM,Kingswood Park - Public Open Spaces,Street Care - Grounds Maintenance,Pharon Powder Coatings Limited,4150.00, 19-Nov-2010
1598,Revenue,COMM,Highways - Workforce,Other Supplies & Services,Phoenix Surveying Equipment Limited,1155.00, 23-Nov-2010
1599,Revenue,COMM,Highways - Workforce,Other Supplies & Services,Plant Speed Ltd,600.00, 23-Nov-2010
1600,Revenue,COMM,Highways - Workforce,Other Supplies & Services,PMG Services (Bristol) Ltd,700.00, 30-Nov-2010
1601,Revenue,COMM,Transport - Workforce,Other Supplies & Services,Post Office Counters,3110.00, 24-Nov-2010
1602,Revenue,COMM,Highways - Workforce,Other Supplies & Services,Pudsey Diamond Engineering Ltd,1997.20, 02-Nov-2010
1603,Revenue,COMM,Thornbury Library,Furniture & Fittings Loose,R & J Decorators (Bristol) Limited,1690.00, 15-Nov-2010
1604,Revenue,COMM,Highways - Workforce,Other Supplies & Services,R M Penny (Plant Hire) Limited,490.00, 16-Nov-2010
1605,Revenue,COMM,Arboricultural Service,Tree Maintenance,Redland Tree Services,1100.00, 29-Nov-2010
1606,Revenue,COMM,Arboricultural Service,Tree Maintenance,Redland Tree Services,100.00, 29-Nov-2010
1607,Revenue,COMM,Arboricultural Service,Tree Maintenance,Redland Tree Services,1800.00, 26-Nov-2010
1608,Revenue,COMM,Arboricultural Service,Tree Maintenance,Redland Tree Services,500.00, 29-Nov-2010
1609,Revenue,COMM,Arboricultural Service,Tree Maintenance,Redland Tree Services,610.00, 29-Nov-2010
1610,Revenue,COMM,Arboricultural Service,Tree Maintenance,Redland Tree Services,410.00, 29-Nov-2010
1611,Revenue,COMM,Arboricultural Service,Tree Maintenance,Redland Tree Services,300.00, 29-Nov-2010
1612,Revenue,COMM,Highways - Workforce,Other Supplies & Services,Ringway Infrastructure Services Limited,5379.08, 09-Nov-2010
1613,Revenue,COMM,Highways - Workforce,Other Supplies & Services,RJ & RE Stevens & Son Plant Sales,850.00, 02-Nov-2010
1614,Revenue,COMM,Highways - Workforce,Other Supplies & Services,RJ & RE Stevens & Son Plant Sales,1294.80, 30-Nov-2010
1615,Revenue,COMM,Departmental Training,Training Expenses,Road Haulage Association Limited,1020.00, 26-Nov-2010
1616,Revenue,COMM,"Information, Performance and Support",Bus & Rail Passes,RSP Limited,2274.20, 10-Nov-2010
1617,Revenue,COMM,"Information, Performance and Support",Bus & Rail Passes,RSP Limited,1041.10, 26-Nov-2010
1618,Revenue,COMM,Violent Crime (LAA Stretch),Commissioned Service (Inc SLA Grants),Safe & Sound UK Ltd,960.00, 26-Nov-2010
1619,Revenue,COMM,Violent Crime (LAA Stretch),Commissioned Service (Inc SLA Grants),Safe & Sound UK Ltd,1000.00, 26-Nov-2010
1620,Revenue,COMM,Violent Crime (LAA Stretch),Commissioned Service (Inc SLA Grants),Safe & Sound UK Ltd,1200.00, 03-Nov-2010
1621,Revenue,COMM,Violent Crime (LAA Stretch),Commissioned Service (Inc SLA Grants),Safe & Sound UK Ltd,1250.00, 03-Nov-2010
1622,Revenue,COMM,Highways - Workforce,Other Supplies & Services,Safpro Industrial Supply Company,2301.25, 03-Nov-2010
1623,Revenue,COMM,Highways - Workforce,Other Supplies & Services,Safpro Industrial Supply Company,1390.80, 03-Nov-2010
1624,Revenue,COMM,Highways - Workforce,Other Supplies & Services,Safpro Industrial Supply Company,1310.15, 16-Nov-2010
